{"text_format":"1","workbook":"xlsx","n_sheets":12,"sheets":["男子結果1日目","女子結果1日目","男子結果2日目","女子結果2日目","男子結果3日目","女子結果3日目","男子勝ち上がり","女子勝ち上がり","msystem","fsystem","mgamedata","fgamedata"],"not_rendered":{"charts":0,"images":0,"macros":1,"external_links":0,"defined_names":6,"comments":0,"pivot_tables":0},"unopened":[],"bounds":{"document_bytes":16777216,"sheet_cells":100000,"rows_first":2000,"rows_last":500,"rows_between":2000,"halvings":0,"cell_chars":16384,"cell_head_chars":4096},"cells_cut":0,"cells_raw":0,"read":"whole","date_system":"1900"}

{"sheet":"男子結果1日目","index":0,"n_rows":92,"n_cols":102,"rows_kept":92,"cut":false,"hidden":false,"merged":[[87,9,91,9],[87,1,91,1],[87,2,91,2],[87,3,91,3],[87,7,91,7],[87,8,91,8],[80,8,84,8],[80,9,84,9],[73,1,77,1],[73,2,77,2],[73,3,77,3],[73,7,77,7],[80,1,84,1],[80,2,84,2],[80,3,84,3],[80,7,84,7],[3,2,7,2],[3,3,7,3],[3,7,7,7],[73,8,77,8],[73,9,77,9],[3,9,7,9],[10,8,14,8],[10,9,14,9],[24,8,28,8],[24,9,28,9],[17,8,21,8],[17,9,21,9],[17,3,21,3],[17,7,21,7],[38,3,42,3],[38,7,42,7],[24,1,28,1],[24,2,28,2],[38,1,42,1],[38,2,42,2],[3,8,7,8],[31,1,35,1],[31,2,35,2],[31,3,35,3],[31,7,35,7],[10,1,14,1],[10,2,14,2],[10,3,14,3],[10,7,14,7],[17,1,21,1],[17,2,21,2],[3,1,7,1],[24,3,28,3],[24,7,28,7],[31,8,35,8],[31,9,35,9],[38,8,42,8],[38,9,42,9],[52,8,56,8],[52,9,56,9],[45,8,49,8],[45,9,49,9],[52,1,56,1],[52,2,56,2],[52,3,56,3],[52,7,56,7],[45,3,49,3],[45,7,49,7],[45,1,49,1],[45,2,49,2],[59,8,63,8],[59,9,63,9],[66,8,70,8],[66,9,70,9],[59,1,63,1],[59,2,63,2],[59,3,63,3],[59,7,63,7],[66,1,70,1],[66,2,70,2],[66,3,70,3],[66,7,70,7]]}
[null,"9月13日男子結果"]
[]
[]
["a1","北見北光",{"$f":"IF(D4>H4,\"○\",\"\")","v":"○"},{"$f":"SUM(E4:E8)","v":68},28,"1Ｑ",13,{"$f":"SUM(G4:G8)","v":51},{"$f":"IF(H4>D4,\"○\",\"\")","v":""},"置戸ジュニア"]
[null,null,null,null,8,"2Ｑ",19]
[null,null,null,null,15,"3Ｑ",8]
[null,null,null,null,17,"4Ｑ",11]
[null,null,null,null,null,"OT"]
[]
[]
["a4","BLOSSOM",{"$f":"IF(D11>H11,\"○\",\"\")","v":""},{"$f":"SUM(E11:E15)","v":46},14,"1Ｑ",20,{"$f":"SUM(G11:G15)","v":82},{"$f":"IF(H11>D11,\"○\",\"\")","v":"○"},"北見北"]
[null,null,null,null,5,"2Ｑ",20]
[null,null,null,null,11,"3Ｑ",18,null,null,null,null,null,null,null,null,null,null,null,null,null,null,null,null,null,null,null,null,null,null,null,null,null,null,null,null,null,null,null,null,null,null,null,null,null,null,null,null,null,null,null,null,null,null,null,null,null,null,null,null,null,null,null,null,null,null,null,null,null,null,null,null,null,null,null,null,null,null,null,null,null,null,null,null,null,null,null,null,null,null,null,null,null,null,null,null,null,null,null,null,null,null,"e5"]
[null,null,null,null,16,"4Ｑ",24]
[null,null,null,null,null,"OT"]
[]
[]
["b1","遠軽",{"$f":"IF(D18>H18,\"○\",\"\")","v":"○"},{"$f":"SUM(E18:E22)","v":56},13,"1Ｑ",12,{"$f":"SUM(G18:G22)","v":45},{"$f":"IF(H18>D18,\"○\",\"\")","v":""},"MUKU basketballclub"]
[null,null,null,null,10,"2Ｑ",7]
[null,null,null,null,17,"3Ｑ",9]
[null,null,null,null,16,"4Ｑ",17]
[null,null,null,null,null,"OT"]
[null,null,null,null,null,null,null,null,null,null,null,null,null,null,null,null,null,null,null,null,null,null,null,null,null,null,null,null,null,null,null,null,null,null,null,null,null,null,null,null,null,null,null,null,null,null,null,null,null,null,null,null,null,null,null,null,null,null,null,null,null,null,null,null,null,null,null,null,null,null,null,null,null,null,null,null,null,null,null,null,null,null,null,null,null,null,null,null,null,null,null,null,null,null,null,null,null,null,null,null,null,"e3"]
[]
["b4","津別",{"$f":"IF(D25>H25,\"○\",\"\")","v":"○"},{"$f":"SUM(E25:E29)","v":66},19,"1Ｑ",8,{"$f":"SUM(G25:G29)","v":56},{"$f":"IF(H25>D25,\"○\",\"\")","v":""},"上湧別・ゆうべつ・遠軽南"]
[null,null,null,null,15,"2Ｑ",16]
[null,null,null,null,22,"3Ｑ",13]
[null,null,null,null,10,"4Ｑ",19,null,null,null,null,null,null,null,null,null,null,null,null,null,null,null,null,null,null,null,null,null,null,null,null,null,null,null,null,null,null,null,null,null,null,null,null,null,null,null,null,null,null,null,null,null,null,null,null,null,null,null,null,null,null,null,null,null,null,null,null,null,null,null,null,null,null,null,null,null,null,null,null,null,null,null,null,null,null,null,null,null,null,null,null,2,null,"a3"]
[null,null,null,null,null,"OT"]
[]
[]
["b5","女満別",{"$f":"IF(D32>H32,\"○\",\"\")","v":""},{"$f":"SUM(E32:E36)","v":23},5,"1Ｑ",18,{"$f":"SUM(G32:G36)","v":45},{"$f":"IF(H32>D32,\"○\",\"\")","v":"○"},"斜里"]
[null,null,null,null,4,"2Ｑ",10]
[null,null,null,null,5,"3Ｑ",8]
[null,null,null,null,9,"4Ｑ",9]
[null,null,null,null,null,"OT"]
[]
[]
["c2","網走第一",{"$f":"IF(D39>H39,\"○\",\"\")","v":""},{"$f":"SUM(E39:E43)","v":40},4,"1Ｑ",16,{"$f":"SUM(G39:G43)","v":50},{"$f":"IF(H39>D39,\"○\",\"\")","v":"○"},"美幌北"]
[null,null,null,null,12,"2Ｑ",6]
[null,null,null,null,16,"3Ｑ",11]
[null,null,null,null,8,"4Ｑ",17]
[null,null,null,null,null,"OT"]
[]
[]
["c4","美幌",{"$f":"IF(D46>H46,\"○\",\"\")","v":"○"},{"$f":"SUM(E46:E50)","v":75},13,"1Ｑ",12,{"$f":"SUM(G46:G50)","v":61},{"$f":"IF(H46>D46,\"○\",\"\")","v":""},"北見高栄"]
[null,null,null,null,27,"2Ｑ",14]
[null,null,null,null,18,"3Ｑ",18]
[null,null,null,null,17,"4Ｑ",17]
[null,null,null,null,null,"OT"]
[]
[]
["c5","北見光西・東相内",{"$f":"IF(D53>H53,\"○\",\"\")","v":"○"},{"$f":"SUM(E53:E57)","v":56},14,"1Ｑ",11,{"$f":"SUM(G53:G57)","v":54},{"$f":"IF(H53>D53,\"○\",\"\")","v":""},"網走第三"]
[null,null,null,null,8,"2Ｑ",20]
[null,null,null,null,15,"3Ｑ",11]
[null,null,null,null,19,"4Ｑ",12]
[null,null,null,null,null,"OT"]
[]
[]
[null,null,{"$f":"IF(D60>H60,\"○\",\"\")","v":""},{"$f":"SUM(E60:E64)","v":0},null,"1Ｑ",null,{"$f":"SUM(G60:G64)","v":0},{"$f":"IF(H60>D60,\"○\",\"\")","v":""}]
[null,null,null,null,null,"2Ｑ"]
[null,null,null,null,null,"3Ｑ"]
[null,null,null,null,null,"4Ｑ"]
[null,null,null,null,null,"OT"]
[]
[]
[null,null,{"$f":"IF(D67>H67,\"○\",\"\")","v":""},{"$f":"SUM(E67:E71)","v":0},null,"1Ｑ",null,{"$f":"SUM(G67:G71)","v":0},{"$f":"IF(H67>D67,\"○\",\"\")","v":""}]
[null,null,null,null,null,"2Ｑ"]
[null,null,null,null,null,"3Ｑ"]
[null,null,null,null,null,"4Ｑ"]
[null,null,null,null,null,"OT"]
[]
[]
[null,null,{"$f":"IF(D74>H74,\"○\",\"\")","v":""},{"$f":"SUM(E74:E78)","v":0},null,"1Ｑ",null,{"$f":"SUM(G74:G78)","v":0},{"$f":"IF(H74>D74,\"○\",\"\")","v":""}]
[null,null,null,null,null,"2Ｑ"]
[null,null,null,null,null,"3Ｑ"]
[null,null,null,null,null,"4Ｑ"]
[null,null,null,null,null,"OT"]
[]
[]
[null,null,{"$f":"IF(D81>H81,\"○\",\"\")","v":""},{"$f":"SUM(E81:E85)","v":0},null,"1Ｑ",null,{"$f":"SUM(G81:G85)","v":0},{"$f":"IF(H81>D81,\"○\",\"\")","v":""}]
[null,null,null,null,null,"2Ｑ"]
[null,null,null,null,null,"3Ｑ"]
[null,null,null,null,null,"4Ｑ"]
[null,null,null,null,null,"OT"]
[]
[]
[null,null,{"$f":"IF(D88>H88,\"○\",\"\")","v":""},{"$f":"SUM(E88:E92)","v":0},null,"1Ｑ",null,{"$f":"SUM(G88:G92)","v":0},{"$f":"IF(H88>D88,\"○\",\"\")","v":""}]
[null,null,null,null,null,"2Ｑ"]
[null,null,null,null,null,"3Ｑ"]
[null,null,null,null,null,"4Ｑ"]
[null,null,null,null,null,"OT"]

{"sheet":"女子結果1日目","index":1,"n_rows":85,"n_cols":10,"rows_kept":85,"cut":false,"hidden":false,"merged":[[80,9,84,9],[80,1,84,1],[80,2,84,2],[80,3,84,3],[80,7,84,7],[80,8,84,8],[73,9,77,9],[73,1,77,1],[73,2,77,2],[73,3,77,3],[73,7,77,7],[73,8,77,8],[24,8,28,8],[24,9,28,9],[17,8,21,8],[17,9,21,9],[3,8,7,8],[3,9,7,9],[10,8,14,8],[10,9,14,9],[3,1,7,1],[3,2,7,2],[3,3,7,3],[3,7,7,7],[10,3,14,3],[10,7,14,7],[24,7,28,7],[17,3,21,3],[17,7,21,7],[10,1,14,1],[10,2,14,2],[17,1,21,1],[17,2,21,2],[24,1,28,1],[24,2,28,2],[24,3,28,3],[38,1,42,1],[38,2,42,2],[38,3,42,3],[38,7,42,7],[45,1,49,1],[45,2,49,2],[45,3,49,3],[45,7,49,7],[31,8,35,8],[31,9,35,9],[38,8,42,8],[38,9,42,9],[52,1,56,1],[52,2,56,2],[52,3,56,3],[52,7,56,7],[52,8,56,8],[52,9,56,9],[45,9,49,9],[31,1,35,1],[31,2,35,2],[31,3,35,3],[31,7,35,7],[45,8,49,8],[66,8,70,8],[66,9,70,9],[59,8,63,8],[59,9,63,9],[66,1,70,1],[66,2,70,2],[59,3,63,3],[59,7,63,7],[66,3,70,3],[66,7,70,7],[59,1,63,1],[59,2,63,2]]}
[null,"9月13日女子結果"]
[]
[]
["a2","北見ポプラガールズ　スパークス",{"$f":"IF(D4>H4,\"○\",\"\")","v":"○"},{"$f":"SUM(E4:E8)","v":89},17,"1Ｑ",10,{"$f":"SUM(G4:G8)","v":20},{"$f":"IF(H4>D4,\"○\",\"\")","v":""},"網走第三"]
[null,null,null,null,24,"2Ｑ",4]
[null,null,null,null,30,"3Ｑ",4]
[null,null,null,null,18,"4Ｑ",2]
[null,null,null,null,null,"OT"]
[]
[]
["a3","遠軽",{"$f":"IF(D11>H11,\"○\",\"\")","v":""},{"$f":"SUM(E11:E15)","v":16},0,"1Ｑ",28,{"$f":"SUM(G11:G15)","v":76},{"$f":"IF(H11>D11,\"○\",\"\")","v":"○"},"遠軽南"]
[null,null,null,null,10,"2Ｑ",13]
[null,null,null,null,4,"3Ｑ",24]
[null,null,null,null,2,"4Ｑ",11]
[null,null,null,null,null,"OT"]
[]
[]
["a5","okhotsk.black.eagles",{"$f":"IF(D18>H18,\"○\",\"\")","v":"○"},{"$f":"SUM(E18:E22)","v":92},17,"1Ｑ",4,{"$f":"SUM(G18:G22)","v":26},{"$f":"IF(H18>D18,\"○\",\"\")","v":""},"北見ポプラガールズ　スパークス"]
[null,null,null,null,26,"2Ｑ",4]
[null,null,null,null,24,"3Ｑ",8]
[null,null,null,null,25,"4Ｑ",10]
[null,null,null,null,null,"OT"]
[]
[]
["a6","上湧別・ゆうべつ・佐呂間・紋別潮見",{"$f":"IF(D25>H25,\"○\",\"\")","v":"○"},{"$f":"SUM(E25:E29)","v":75},23,"1Ｑ",0,{"$f":"SUM(G25:G29)","v":37},{"$f":"IF(H25>D25,\"○\",\"\")","v":""},"東相内"]
[null,null,null,null,17,"2Ｑ",17]
[null,null,null,null,22,"3Ｑ",9]
[null,null,null,null,13,"4Ｑ",11]
[null,null,null,null,null,"OT"]
[]
[]
["b2","北見北",{"$f":"IF(D32>H32,\"○\",\"\")","v":""},{"$f":"SUM(E32:E36)","v":24},7,"1Ｑ",19,{"$f":"SUM(G32:G36)","v":52},{"$f":"IF(H32>D32,\"○\",\"\")","v":"○"},"女満別"]
[null,null,null,null,9,"2Ｑ",11]
[null,null,null,null,4,"3Ｑ",10]
[null,null,null,null,4,"4Ｑ",12]
[null,null,null,null,null,"OT"]
[]
[]
["b3","北見北光",{"$f":"IF(D39>H39,\"○\",\"\")","v":""},{"$f":"SUM(E39:E43)","v":38},4,"1Ｑ",27,{"$f":"SUM(G39:G43)","v":99},{"$f":"IF(H39>D39,\"○\",\"\")","v":"○"},"北見小泉"]
[null,null,null,null,9,"2Ｑ",32]
[null,null,null,null,5,"3Ｑ",26]
[null,null,null,null,20,"4Ｑ",14]
[null,null,null,null,null,"OT"]
[" "]
[]
["b6","斜里・第二",null,{"$f":"SUM(E46:E50)","v":34},12,"1Ｑ",27,{"$f":"SUM(G46:G50)","v":79},null,"置戸"]
[null,null,null,null,5,"2Ｑ",24]
[null,null,null,null,8,"3Ｑ",17]
[null,null,null,null,9,"4Ｑ",11]
[null,null,null,null,null,"OT"]
[]
[]
["c1","網走第一",null,{"$f":"SUM(E53:E57)","v":24},6,"1Ｑ",28,{"$f":"SUM(G53:G57)","v":93},null,"北見光西"]
[null,null,null,null,2,"2Ｑ",30]
[null,null,null,null,7,"3Ｑ",16]
[null,null,null,null,9,"4Ｑ",19]
[null,null,null,null,null,"OT"]
[]
[]
["c3","美幌北",null,{"$f":"SUM(E60:E64)","v":75},25,"1Ｑ",10,{"$f":"SUM(G60:G64)","v":44},null,"高栄・留辺蘂"]
[null,null,null,null,13,"2Ｑ",6]
[null,null,null,null,19,"3Ｑ",13]
[null,null,null,null,18,"4Ｑ",15]
[null,null,null,null,null,"OT"]
[]
[]
[null,null,null,{"$f":"SUM(E67:E71)","v":0},null,"1Ｑ",null,{"$f":"SUM(G67:G71)","v":0}]
[null,null,null,null,null,"2Ｑ"]
[null,null,null,null,null,"3Ｑ"]
[null,null,null,null,null,"4Ｑ"]
[null,null,null,null,null,"OT"]
[]
[]
[null,null,null,{"$f":"SUM(E74:E78)","v":0},null,"1Ｑ",null,{"$f":"SUM(G74:G78)","v":0}]
[null,null,null,null,null,"2Ｑ"]
[null,null,null,null,null,"3Ｑ"]
[null,null,null,null,null,"4Ｑ"]
[null,null,null,null,null,"OT"]
[]
[]
[null,null,null,{"$f":"SUM(E81:E85)","v":0},null,"1Ｑ",null,{"$f":"SUM(G81:G85)","v":0}]
[null,null,null,null,null,"2Ｑ"]
[null,null,null,null,null,"3Ｑ"]
[null,null,null,null,null,"4Ｑ"]
[null,null,null,null,null,"OT"]

{"sheet":"男子結果2日目","index":2,"n_rows":99,"n_cols":10,"rows_kept":99,"cut":false,"hidden":false,"merged":[[94,1,98,1],[94,2,98,2],[94,3,98,3],[94,7,98,7],[80,9,84,9],[87,8,91,8],[87,9,91,9],[94,8,98,8],[94,9,98,9],[87,1,91,1],[87,2,91,2],[87,3,91,3],[87,7,91,7],[80,8,84,8],[73,1,77,1],[73,2,77,2],[73,3,77,3],[73,7,77,7],[80,1,84,1],[80,2,84,2],[80,3,84,3],[80,7,84,7],[59,8,63,8],[59,9,63,9],[66,8,70,8],[66,9,70,9],[73,8,77,8],[73,9,77,9],[66,1,70,1],[66,2,70,2],[66,3,70,3],[66,7,70,7],[59,1,63,1],[59,2,63,2],[59,3,63,3],[59,7,63,7],[52,8,56,8],[52,9,56,9],[45,1,49,1],[45,2,49,2],[52,1,56,1],[52,2,56,2],[52,3,56,3],[52,7,56,7],[45,3,49,3],[45,7,49,7],[31,8,35,8],[31,9,35,9],[38,8,42,8],[38,9,42,9],[45,8,49,8],[45,9,49,9],[38,1,42,1],[38,2,42,2],[38,3,42,3],[38,7,42,7],[31,1,35,1],[31,2,35,2],[31,3,35,3],[31,7,35,7],[24,8,28,8],[24,9,28,9],[17,1,21,1],[17,2,21,2],[24,1,28,1],[24,2,28,2],[24,3,28,3],[24,7,28,7],[17,3,21,3],[17,7,21,7],[3,8,7,8],[3,9,7,9],[10,8,14,8],[10,9,14,9],[17,8,21,8],[17,9,21,9],[10,1,14,1],[10,2,14,2],[10,3,14,3],[10,7,14,7],[3,1,7,1],[3,2,7,2],[3,3,7,3],[3,7,7,7]]}
[null,"9月14日男子結果"]
[]
[]
["a1","北見南",{"$f":"IF(D4>H4,\"○\",\"\")","v":""},{"$f":"SUM(E4:E8)","v":50},17,"１Ｑ",21,{"$f":"SUM(G4:G8)","v":69},{"$f":"IF(H4>D4,\"○\",\"\")","v":"○"},"遠軽"]
[null,null,null,null,8,"2Ｑ",10]
[null,null,null,null,13,"3Ｑ",22]
[null,null,null,null,12,"4Ｑ",16]
[null,null,null,null,null,"OT"]
[]
[]
["a2","紋別潮見・紋別",{"$f":"IF(D11>H11,\"○\",\"\")","v":"○"},{"$f":"SUM(E11:E15)","v":56},18,"１Ｑ",12,{"$f":"SUM(G11:G15)","v":49},{"$f":"IF(H11>D11,\"○\",\"\")","v":""},"北見北光"]
[null,null,null,null,12,"2Ｑ",8]
[null,null,null,null,15,"3Ｑ",8]
[null,null,null,null,11,"4Ｑ",21]
[null,null,null,null,null,"OT"]
[]
[]
["a3","興部",{"$f":"IF(D18>H18,\"○\",\"\")","v":""},{"$f":"SUM(E18:E22)","v":31},6,"１Ｑ",11,{"$f":"SUM(G18:G22)","v":60},{"$f":"IF(H18>D18,\"○\",\"\")","v":"○"},"美幌北"]
[null,null,null,null,6,"2Ｑ",17]
[null,null,null,null,5,"3Ｑ",16]
[null,null,null,null,14,"4Ｑ",16]
[null,null,null,null,null,"OT"]
[]
[]
["a4","網走第二",{"$f":"IF(D25>H25,\"○\",\"\")","v":""},{"$f":"SUM(E25:E29)","v":28},3,"１Ｑ",27,{"$f":"SUM(G25:G29)","v":107},{"$f":"IF(H25>D25,\"○\",\"\")","v":"○"},"斜里"]
[null,null,null,null,9,"2Ｑ",27]
[null,null,null,null,7,"3Ｑ",25]
[null,null,null,null,9,"4Ｑ",28]
[null,null,null,null,null,"OT"]
[]
[]
["a5","遠軽",{"$f":"IF(D32>H32,\"○\",\"\")","v":""},{"$f":"SUM(E32:E36)","v":19},11,"１Ｑ",37,{"$f":"SUM(G32:G36)","v":142},{"$f":"IF(H32>D32,\"○\",\"\")","v":"○"},"mukuOX basketballclub"]
[null,null,null,null,0,"2Ｑ",29]
[null,null,null,null,4,"3Ｑ",40]
[null,null,null,null,4,"4Ｑ",36]
[null,null,null,null,null,"OT"]
[]
[]
["a6","斜里",{"$f":"IF(D39>H39,\"○\",\"\")","v":""},{"$f":"SUM(E39:E43)","v":54},14,"１Ｑ",18,{"$f":"SUM(G39:G43)","v":90},{"$f":"IF(H39>D39,\"○\",\"\")","v":"○"},"okhotsk.black.eagles"]
[null,null,null,null,12,"2Ｑ",33]
[null,null,null,null,18,"3Ｑ",21]
[null,null,null,null,10,"4Ｑ",18]
[null,null,null,null,null,"OT"]
[]
[]
["b1","津別",{"$f":"IF(D46>H46,\"○\",\"\")","v":""},{"$f":"SUM(E46:E50)","v":30},4,"１Ｑ",35,{"$f":"SUM(G46:G50)","v":111},{"$f":"IF(H46>D46,\"○\",\"\")","v":"○"},"MUKU basketballclub"]
[null,null,null,null,13,"2Ｑ",15]
[null,null,null,null,2,"3Ｑ",41]
[null,null,null,null,11,"4Ｑ",20]
[null,null,null,null,null,"OT"]
[]
[]
["b2","北見北",{"$f":"IF(D53>H53,\"○\",\"\")","v":"○"},{"$f":"SUM(E53:E57)","v":68},20,"１Ｑ",8,{"$f":"SUM(G53:G57)","v":36},{"$f":"IF(H53>D53,\"○\",\"\")","v":""},"佐呂間"]
[null,null,null,null,18,"2Ｑ",11]
[null,null,null,null,24,"3Ｑ",8]
[null,null,null,null,6,"4Ｑ",9]
[null,null,null,null,null,"OT"]
[]
[]
["b3","北見光西・東相内",{"$f":"IF(D60>H60,\"○\",\"\")","v":""},{"$f":"SUM(E60:E64)","v":50},13,"１Ｑ",17,{"$f":"SUM(G60:G64)","v":67},{"$f":"IF(H60>D60,\"○\",\"\")","v":"○"},"北見小泉・端野"]
[null,null,null,null,14,"2Ｑ",25]
[null,null,null,null,8,"3Ｑ",13]
[null,null,null,null,15,"4Ｑ",12]
[null,null,null,null,null,"OT"]
[]
[]
["b4","美幌",{"$f":"IF(D67>H67,\"○\",\"\")","v":""},{"$f":"SUM(E67:E71)","v":13},4,"１Ｑ",38,{"$f":"SUM(G67:G71)","v":146},{"$f":"IF(H67>D67,\"○\",\"\")","v":"○"},"okhotsk.black.eagles"]
[null,null,null,null,2,"2Ｑ",30]
[null,null,null,null,2,"3Ｑ",42]
[null,null,null,null,5,"4Ｑ",36]
[null,null,null,null,null,"OT"]
[]
[]
["b5","紋別潮見・紋別",{"$f":"IF(D74>H74,\"○\",\"\")","v":""},{"$f":"SUM(E74:E78)","v":40},10,"１Ｑ",16,{"$f":"SUM(G74:G78)","v":68},{"$f":"IF(H74>D74,\"○\",\"\")","v":"○"},"北見北"]
[null,null,null,null,7,"2Ｑ",21]
[null,null,null,null,12,"3Ｑ",14]
[null,null,null,null,11,"4Ｑ",17]
[null,null,null,null,null,"OT"]
[]
[]
["b6","美幌北",{"$f":"IF(D81>H81,\"○\",\"\")","v":""},{"$f":"SUM(E81:E85)","v":39},7,"１Ｑ",23,{"$f":"SUM(G81:G85)","v":83},{"$f":"IF(H81>D81,\"○\",\"\")","v":"○"},"北見小泉・端野"]
[null,null,null,null,8,"2Ｑ",20]
[null,null,null,null,13,"3Ｑ",23]
[null,null,null,null,11,"4Ｑ",17]
[null,null,null,null,null,"OT"]
[]
[]
[null,null,null,{"$f":"SUM(E88:E92)","v":0},null,"１Ｑ",null,{"$f":"SUM(G88:G92)","v":0}]
[null,null,null,null,null,"2Ｑ"]
[null,null,null,null,null,"3Ｑ"]
[null,null,null,null,null,"4Ｑ"]
[null,null,null,null,null,"OT"]
[]
[]
[null,null,null,{"$f":"SUM(E95:E99)","v":0},null,"１Ｑ",null,{"$f":"SUM(G95:G99)","v":0}]
[null,null,null,null,null,"2Ｑ"]
[null,null,null,null,null,"3Ｑ"]
[null,null,null,null,null,"4Ｑ"]
[null,null,null,null,null,"OT"]

{"sheet":"女子結果2日目","index":3,"n_rows":85,"n_cols":10,"rows_kept":85,"cut":false,"hidden":false,"merged":[[52,9,56,9],[45,1,49,1],[45,2,49,2],[52,1,56,1],[52,2,56,2],[52,3,56,3],[52,7,56,7],[45,3,49,3],[45,7,49,7],[31,9,35,9],[38,8,42,8],[38,9,42,9],[45,8,49,8],[45,9,49,9],[24,8,28,8],[24,9,28,9],[17,1,21,1],[17,2,21,2],[24,1,28,1],[24,2,28,2],[24,3,28,3],[24,7,28,7],[17,3,21,3],[17,7,21,7],[3,8,7,8],[3,9,7,9],[10,8,14,8],[10,9,14,9],[17,8,21,8],[17,9,21,9],[59,1,63,1],[3,1,7,1],[3,2,7,2],[3,3,7,3],[3,7,7,7],[10,1,14,1],[10,2,14,2],[10,3,14,3],[10,7,14,7],[38,1,42,1],[38,2,42,2],[38,3,42,3],[38,7,42,7],[31,1,35,1],[31,2,35,2],[31,3,35,3],[31,7,35,7],[66,2,70,2],[66,3,70,3],[80,8,84,8],[59,8,63,8],[66,7,70,7],[59,3,63,3],[59,7,63,7],[31,8,35,8],[52,8,56,8],[59,9,63,9],[66,8,70,8],[66,9,70,9],[80,9,84,9],[73,1,77,1],[73,2,77,2],[80,1,84,1],[80,2,84,2],[80,3,84,3],[80,7,84,7],[73,3,77,3],[73,7,77,7],[73,8,77,8],[73,9,77,9],[59,2,63,2],[66,1,70,1]]}
[null,"9月14日女子結果"]
[]
[]
["c1","上湧別・ゆうべつ・佐呂間・紋別潮見",{"$f":"IF(D4>H4,\"○\",\"\")","v":""},{"$f":"SUM(E4:E8)","v":60},12,"1Ｑ",13,{"$f":"SUM(G4:G8)","v":63},{"$f":"IF(H4>D4,\"○\",\"\")","v":"○"},"北見小泉"]
[null,null,null,null,10,"2Ｑ",11]
[null,null,null,null,15,"3Ｑ",17]
[null,null,null,null,18,"4Ｑ",14]
[null,null,null,null,5,"OT",8]
[]
[]
["c2","okhotsk.black.eagles",{"$f":"IF(D11>H11,\"○\",\"\")","v":"○"},{"$f":"SUM(E11:E15)","v":106},28,"1Ｑ",4,{"$f":"SUM(G11:G15)","v":26},{"$f":"IF(H11>D11,\"○\",\"\")","v":""},"北見光西"]
[null,null,null,null,22,"2Ｑ",6]
[null,null,null,null,16,"3Ｑ",9]
[null,null,null,null,40,"4Ｑ",7]
[null,null,null,null,null,"OT"]
[]
[]
["c3","女満別",{"$f":"IF(D18>H18,\"○\",\"\")","v":""},{"$f":"SUM(E18:E22)","v":30},11,"1Ｑ",14,{"$f":"SUM(G18:G22)","v":73},{"$f":"IF(H18>D18,\"○\",\"\")","v":"○"},"置戸"]
[null,null,null,null,2,"2Ｑ",22]
[null,null,null,null,9,"3Ｑ",25]
[null,null,null,null,8,"4Ｑ",12]
[null,null,null,null,null,"OT"]
[]
[]
["c4","美幌北",{"$f":"IF(D25>H25,\"○\",\"\")","v":"○"},{"$f":"SUM(E25:E29)","v":71},15,"1Ｑ",11,{"$f":"SUM(G25:G29)","v":47},{"$f":"IF(H25>D25,\"○\",\"\")","v":""},"遠軽南"]
[null,null,null,null,12,"2Ｑ",16]
[null,null,null,null,24,"3Ｑ",9]
[null,null,null,null,20,"4Ｑ",11]
[null,null,null,null,null,"OT"]
[]
[]
[null,null,{"$f":"IF(D32>H32,\"○\",\"\")","v":""},{"$f":"SUM(E32:E36)","v":0},null,"1Ｑ",null,{"$f":"SUM(G32:G36)","v":0},{"$f":"IF(H32>D32,\"○\",\"\")","v":""}]
[null,null,null,null,null,"2Ｑ"]
[null,null,null,null,null,"3Ｑ"]
[null,null,null,null,null,"4Ｑ"]
[null,null,null,null,null,"OT"]
[]
[]
[null,null,{"$f":"IF(D39>H39,\"○\",\"\")","v":""},{"$f":"SUM(E39:E43)","v":0},null,"1Ｑ",null,{"$f":"SUM(G39:G43)","v":0},{"$f":"IF(H39>D39,\"○\",\"\")","v":""}]
[null,null,null,null,null,"2Ｑ"]
[null,null,null,null,null,"3Ｑ"]
[null,null,null,null,null,"4Ｑ"]
[null,null,null,null,null,"OT"]
[]
[]
[null,null,{"$f":"IF(D46>H46,\"○\",\"\")","v":""},{"$f":"SUM(E46:E50)","v":0},null,"1Ｑ",null,{"$f":"SUM(G46:G50)","v":0},{"$f":"IF(H46>D46,\"○\",\"\")","v":""}]
[null,null,null,null,null,"2Ｑ"]
[null,null,null,null,null,"3Ｑ"]
[null,null,null,null,null,"4Ｑ"]
[null,null,null,null,null,"OT"]
[]
[]
[null,null,{"$f":"IF(D53>H53,\"○\",\"\")","v":""},{"$f":"SUM(E53:E57)","v":0},null,"1Ｑ",null,{"$f":"SUM(G53:G57)","v":0},{"$f":"IF(H53>D53,\"○\",\"\")","v":""}]
[null,null,null,null,null,"2Ｑ"]
[null,null,null,null,null,"3Ｑ"]
[null,null,null,null,null,"4Ｑ"]
[null,null,null,null,null,"OT"]
[]
[]
[null,null,{"$f":"IF(D60>H60,\"○\",\"\")","v":""},{"$f":"SUM(E60:E64)","v":0},null,"1Ｑ",null,{"$f":"SUM(G60:G64)","v":0},{"$f":"IF(H60>D60,\"○\",\"\")","v":""}]
[null,null,null,null,null,"2Ｑ"]
[null,null,null,null,null,"3Ｑ"]
[null,null,null,null,null,"4Ｑ"]
[null,null,null,null,null,"OT"]
[]
[]
[null,null,{"$f":"IF(D67>H67,\"○\",\"\")","v":""},{"$f":"SUM(E67:E71)","v":0},null,"1Ｑ",null,{"$f":"SUM(G67:G71)","v":0},{"$f":"IF(H67>D67,\"○\",\"\")","v":""}]
[null,null,null,null,null,"2Ｑ"]
[null,null,null,null,null,"3Ｑ"]
[null,null,null,null,null,"4Ｑ"]
[null,null,null,null,null,"OT"]
[]
[]
[null,null,{"$f":"IF(D74>H74,\"○\",\"\")","v":""},{"$f":"SUM(E74:E78)","v":0},null,"1Ｑ",null,{"$f":"SUM(G74:G78)","v":0},{"$f":"IF(H74>D74,\"○\",\"\")","v":""}]
[null,null,null,null,null,"2Ｑ"]
[null,null,null,null,null,"3Ｑ"]
[null,null,null,null,null,"4Ｑ"]
[null,null,null,null,null,"OT"]
[]
[]
[null,null,{"$f":"IF(D81>H81,\"○\",\"\")","v":""},{"$f":"SUM(E81:E85)","v":0},null,"1Ｑ",null,{"$f":"SUM(G81:G85)","v":0},{"$f":"IF(H81>D81,\"○\",\"\")","v":""}]
[null,null,null,null,null,"2Ｑ"]
[null,null,null,null,null,"3Ｑ"]
[null,null,null,null,null,"4Ｑ"]
[null,null,null,null,null,"OT"]

{"sheet":"男子結果3日目","index":4,"n_rows":29,"n_cols":10,"rows_kept":29,"cut":false,"hidden":false,"merged":[[24,9,28,9],[17,1,21,1],[17,2,21,2],[17,3,21,3],[17,7,21,7],[17,8,21,8],[17,9,21,9],[24,1,28,1],[24,2,28,2],[24,3,28,3],[24,7,28,7],[24,8,28,8],[10,9,14,9],[3,1,7,1],[3,2,7,2],[3,3,7,3],[3,7,7,7],[3,8,7,8],[3,9,7,9],[10,1,14,1],[10,2,14,2],[10,3,14,3],[10,7,14,7],[10,8,14,8]]}
[null,"9月15日男子結果"]
[]
[null,"準決勝"]
["a2","mukuOX basketballclub",{"$f":"IF(D4>H4,\"○\",\"\")","v":"○"},{"$f":"SUM(E4:E8)","v":113},37,"１Ｑ",9,{"$f":"SUM(G4:G8)","v":41},{"$f":"IF(H4>D4,\"○\",\"\")","v":""},"okhotsk.black.eagles"]
[null,null,null,null,25,"2Ｑ",14]
[null,null,null,null,27,"3Ｑ",7]
[null,null,null,null,24,"4Ｑ",11]
[null,null,null,null,null,"OT"]
[]
[null,"準決勝"]
["b2","北見北",{"$f":"IF(D11>H11,\"○\",\"\")","v":""},{"$f":"SUM(E11:E15)","v":44},9,"１Ｑ",14,{"$f":"SUM(G11:G15)","v":52},{"$f":"IF(H11>D11,\"○\",\"\")","v":"○"},"北見小泉・端野"]
[null,null,null,null,17,"2Ｑ",10]
[null,null,null,null,6,"3Ｑ",15]
[null,null,null,null,12,"4Ｑ",13]
[null,null,null,null,null,"OT"]
[]
[null,"決勝"]
["a4","mukuOX basketballclub",{"$f":"IF(D18>H18,\"○\",\"\")","v":"○"},{"$f":"SUM(E18:E22)","v":128},46,"１Ｑ",10,{"$f":"SUM(G18:G22)","v":44},{"$f":"IF(H18>D18,\"○\",\"\")","v":""},"北見小泉・端野"]
[null,null,null,null,20,"2Ｑ",17]
[null,null,null,null,34,"3Ｑ",5]
[null,null,null,null,28,"4Ｑ",12]
[null,null,null,null,null,"OT"]
[]
[null,"代表決定戦"]
["b4","okhotsk.black.eagles",{"$f":"IF(D25>H25,\"○\",\"\")","v":"○"},{"$f":"SUM(E25:E29)","v":78},15,"１Ｑ",13,{"$f":"SUM(G25:G29)","v":36},{"$f":"IF(H25>D25,\"○\",\"\")","v":""},"北見北"]
[null,null,null,null,23,"2Ｑ",10]
[null,null,null,null,18,"3Ｑ",6]
[null,null,null,null,22,"4Ｑ",7]
[null,null,null,null,null,"OT"]

{"sheet":"女子結果3日目","index":5,"n_rows":29,"n_cols":10,"rows_kept":29,"cut":false,"hidden":false,"merged":[[24,8,28,8],[24,9,28,9],[17,8,21,8],[17,9,21,9],[24,3,28,3],[24,7,28,7],[17,3,21,3],[17,7,21,7],[3,8,7,8],[3,9,7,9],[10,8,14,8],[10,9,14,9],[3,1,7,1],[3,2,7,2],[3,3,7,3],[3,7,7,7],[10,3,14,3],[10,7,14,7],[17,1,21,1],[17,2,21,2],[24,1,28,1],[24,2,28,2],[10,1,14,1],[10,2,14,2]]}
[null,"9月15日女子結果"]
[]
[null,"準決勝"]
["a1","okhotsk.black.eagles",{"$f":"IF(D4>H4,\"○\",\"\")","v":"○"},{"$f":"SUM(E4:E8)","v":64},30,"1Ｑ",5,{"$f":"SUM(G4:G8)","v":27},{"$f":"IF(H4>D4,\"○\",\"\")","v":""},"北見小泉"]
[null,null,null,null,5,"2Ｑ",11]
[null,null,null,null,19,"3Ｑ",5]
[null,null,null,null,10,"4Ｑ",6]
[null,null,null,null,null,"ＯＴ"]
[]
[null,"準決勝"]
["b1","美幌北",{"$f":"IF(D11>H11,\"○\",\"\")","v":""},{"$f":"SUM(E11:E15)","v":40},7,"1Ｑ",29,{"$f":"SUM(G11:G15)","v":102},{"$f":"IF(H11>D11,\"○\",\"\")","v":"○"},"置戸"]
[null,null,null,null,15,"2Ｑ",22]
[null,null,null,null,11,"3Ｑ",26]
[null,null,null,null,7,"4Ｑ",25]
[null,null,null,null,null,"ＯＴ"]
[]
[null,"決勝"]
["a3","okhotsk.black.eagles",{"$f":"IF(D18>H18,\"○\",\"\")","v":"○"},{"$f":"SUM(E18:E22)","v":81},21,"1Ｑ",11,{"$f":"SUM(G18:G22)","v":45},{"$f":"IF(H18>D18,\"○\",\"\")","v":""},"置戸"]
[null,null,null,null,21,"2Ｑ",13]
[null,null,null,null,24,"3Ｑ",8]
[null,null,null,null,15,"4Ｑ",13]
[null,null,null,null,null,"ＯＴ"]
[]
[null,"代表決定戦"]
["b3","北見小泉",{"$f":"IF(D25>H25,\"○\",\"\")","v":""},{"$f":"SUM(E25:E29)","v":61},12,"1Ｑ",11,{"$f":"SUM(G25:G29)","v":70},{"$f":"IF(H25>D25,\"○\",\"\")","v":"○"},"美幌北"]
[null,null,null,null,22,"2Ｑ",10]
[null,null,null,null,12,"3Ｑ",27]
[null,null,null,null,15,"4Ｑ",22]
[null,null,null,null,null,"ＯＴ"]

{"sheet":"男子勝ち上がり","index":6,"n_rows":79,"n_cols":127,"rows_kept":79,"cut":false,"hidden":false,"merged":[[38,0,39,1],[38,2,39,5],[38,6,39,20],[45,91,47,94],[47,59,48,62],[49,59,50,62],[51,59,52,62],[47,63,48,64],[49,63,50,64],[51,63,52,64],[49,41,51,44],[51,25,53,28],[53,0,54,1],[53,2,54,5],[41,0,42,1],[41,2,42,5],[41,6,42,20],[51,35,52,36],[47,0,48,1],[51,33,52,34],[78,33,80,36],[73,41,75,44],[65,0,66,1],[65,2,66,5],[65,6,66,20],[63,25,65,28],[66,33,68,36],[62,41,63,42],[62,43,63,44],[72,25,74,28],[71,0,72,1],[71,2,72,5],[71,6,72,20],[77,0,78,1],[77,2,78,5],[77,6,78,20],[68,25,69,26],[68,27,69,28],[72,33,73,34],[72,35,73,36],[20,43,21,44],[26,25,27,26],[26,27,27,28],[32,33,33,34],[32,35,33,36],[27,91,28,92],[27,93,28,94],[22,99,23,100],[22,101,23,102],[20,83,21,84],[20,85,21,86],[31,91,33,94],[23,0,24,1],[23,2,24,5],[23,6,24,20],[29,0,30,1],[29,2,30,5],[29,6,30,20],[35,0,36,1],[35,2,36,5],[35,6,36,20],[10,126,11,127],[51,99,53,102],[14,107,15,121],[14,122,15,125],[14,126,15,127],[15,99,17,102],[24,107,25,121],[24,122,25,125],[24,126,25,127],[25,99,27,102],[18,99,20,102],[20,126,21,127],[53,126,54,127],[35,122,36,125],[10,122,11,125],[20,122,21,125],[30,126,31,127],[12,99,13,100],[12,101,13,102],[65,126,66,127],[65,122,66,125],[65,107,66,121],[71,107,72,121],[71,122,72,125],[63,99,65,102],[35,126,36,127],[44,107,45,121],[44,122,45,125],[44,126,45,127],[59,122,60,125],[59,126,60,127],[41,107,42,121],[41,122,42,125],[39,99,41,102],[47,107,48,121],[41,126,42,127],[47,122,48,125],[47,126,48,127],[68,99,69,100],[68,101,69,102],[3,33,5,36],[15,33,17,36],[24,33,26,36],[39,33,41,36],[71,126,72,127],[77,126,78,127],[77,122,78,125],[77,107,78,121],[45,33,47,36],[57,33,59,36],[5,126,6,127],[3,91,5,94],[30,107,31,121],[30,122,31,125],[5,122,6,125],[5,107,6,121],[48,99,50,102],[42,91,44,94],[48,83,50,86],[53,107,54,121],[53,122,54,125],[60,99,62,102],[72,99,74,102],[59,107,60,121],[9,25,11,28],[18,25,20,28],[21,25,23,28],[30,25,32,28],[7,41,9,44],[33,41,35,44],[33,25,35,28],[42,25,44,28],[20,107,21,121],[7,83,9,86],[18,49,20,52],[28,83,30,86],[18,75,20,78],[35,107,36,121],[10,107,11,121],[8,99,10,102],[28,99,30,102],[36,99,38,102],[36,54,38,73],[8,35,9,36],[8,33,9,34],[14,27,15,28],[14,25,15,26],[20,41,21,42],[5,0,6,1],[5,2,6,5],[5,6,6,20],[11,0,12,1],[11,2,12,5],[11,6,12,20],[17,0,18,1],[17,2,18,5],[17,6,18,20],[78,91,80,94],[57,91,59,94],[47,65,48,68],[49,65,50,68],[51,65,52,68],[63,75,65,78],[74,66,75,69],[76,60,77,63],[76,64,77,65],[76,66,77,69],[66,57,68,72],[70,56,79,59],[70,60,71,63],[70,64,71,65],[70,66,71,69],[70,70,79,73],[70,74,79,80],[72,60,73,63],[72,64,73,65],[72,66,73,69],[74,60,75,63],[74,64,75,65],[78,60,79,63],[78,64,79,65],[78,66,79,69],[43,55,52,58],[43,69,52,72],[43,63,44,64],[45,63,46,64],[43,59,44,62],[45,59,46,62],[43,65,44,68],[45,65,46,68],[70,49,79,55],[72,91,73,92],[63,49,65,52],[60,91,62,94],[54,91,56,94],[59,0,60,1],[47,2,48,5],[47,6,48,20],[59,2,60,5],[59,6,60,20],[60,25,62,28],[56,2,57,5],[56,6,57,20],[72,93,73,94],[50,91,51,92],[50,93,51,94],[66,91,68,94],[62,83,63,84],[62,85,63,86],[73,83,75,86],[53,6,54,20],[56,25,57,26],[56,27,57,28],[56,0,57,1],[9,91,10,92],[9,93,10,94],[56,99,57,100],[56,101,57,102],[20,91,22,94],[41,49,42,50],[41,51,42,52],[41,75,42,76],[41,77,42,78],[13,91,15,94],[34,91,36,94]]}
[null,"9月3日男子結果"]
[]
[]
[null,null,null,null,null,null,null,null,null,null,null,null,null,null,null,null,null,null,null,null,null,null,null,null,null,null,null,null,null,null,null,null,null,{"$f":"IF(AH9=1,VLOOKUP(AJ9,mgamedata!B2:E25,3,FALSE),IF(AH9=2,VLOOKUP(AJ9,mgamedata!G2:J25,3,FALSE),VLOOKUP(AJ9,mgamedata!L2:O25,3,FALSE)))","v":50},null,null,null,null,null,null,null,null,null,null,null,null,null,null,null,null,null,null,null,null,null,null,null,null,null,null,null,null,null,null,null,null,null,null,null,null,null,null,null,null,null,null,null,null,null,null,null,null,null,null,null,null,null,null,null,null,null,{"$f":"IF(CN10=1,VLOOKUP(CP10,mgamedata!B2:E25,3,FALSE),IF(CN10=2,VLOOKUP(CP10,mgamedata!G2:J25,3,FALSE),VLOOKUP(CP10,mgamedata!L2:O25,3,FALSE)))","v":56}]
[]
[1,null,{"$f":"VLOOKUP(A6,msystem!A2:C26,2,FALSE)","v":"東北見"},null,null,null,{"$f":"VLOOKUP(A6,msystem!A2:C26,3,FALSE)","v":"北見南"},null,null,null,null,null,null,null,null,null,null,null,null,null,null,null,null,null,null,null,null,null,null,null,null,null,null,null,null,null,null,null,null,null,null,null,null,null,null,null,null,null,null,null,null,null,null,null,null,null,null,null,null,null,null,null,null,null,null,null,null,null,null,null,null,null,null,null,null,null,null,null,null,null,null,null,null,null,null,null,null,null,null,null,null,null,null,null,null,null,null,null,null,null,null,null,null,null,null,null,null,{"$f":"VLOOKUP(DW6,msystem!A2:C26,3,FALSE)","v":"紋別潮見・紋別"},null,null,null,null,null,null,null,null,null,null,null,null,null,null,{"$f":"VLOOKUP(DW6,msystem!A2:C26,2,FALSE)","v":"遠紋"},null,null,null,13]
[]
[null,null,null,null,null,null,null,null,null,null,null,null,null,null,null,null,null,null,null,null,null,null,null,null,null,null,null,null,null,null,null,null,null,null,null,null,null,null,null,null,null,{"$f":"IF(AP21=1,VLOOKUP(AR21,mgamedata!B2:E25,3,FALSE),IF(AP21=2,VLOOKUP(AR21,mgamedata!G2:J25,3,FALSE),VLOOKUP(AR21,mgamedata!L2:O25,3,FALSE)))","v":19},null,null,null,null,null,null,null,null,null,null,null,null,null,null,null,null,null,null,null,null,null,null,null,null,null,null,null,null,null,null,null,null,null,null,null,null,null,null,null,null,null,{"$f":"IF(CF21=1,VLOOKUP(CH21,mgamedata!B2:E25,3,FALSE),IF(CF21=2,VLOOKUP(CH21,mgamedata!G2:J25,3,FALSE),VLOOKUP(CH21,mgamedata!L2:O25,3,FALSE)))","v":39}]
[null,null,null,null,null,null,null,null,null,null,null,null,null,null,null,null,null,null,null,null,null,null,null,null,null,null,null,null,null,null,null,null,null,2,null,"a1",null,null,null,null,null,null,null,null,null,null,null,null,null,null,null,null,null,null,null,null,null,null,null,null,null,null,null,null,null,null,null,null,null,null,null,null,null,null,null,null,null,null,null,null,null,null,null,null,null,null,null,null,null,null,null,null,null,null,null,null,null,null,null,{"$f":"IF(CV13=1,VLOOKUP(CX13,mgamedata!B2:E25,3,FALSE),IF(CV13=2,VLOOKUP(CX13,mgamedata!G2:J25,3,FALSE),VLOOKUP(CX13,mgamedata!L2:O25,3,FALSE)))","v":68}]
[null,null,null,null,null,null,null,null,null,null,null,null,null,null,null,null,null,null,null,null,null,null,null,null,null,{"$f":"IF(Z15=1,VLOOKUP(AB15,mgamedata!B2:E25,3,FALSE),IF(Z15=2,VLOOKUP(AB15,mgamedata!G2:J25,3,FALSE),VLOOKUP(AB15,mgamedata!L2:O25,3,FM25)))","v":56},null,null,null,null,null,null,null,null,null,null,null,null,null,null,null,null,null,null,null,null,null,null,null,null,null,null,null,null,null,null,null,null,null,null,null,null,null,null,null,null,null,null,null,null,null,null,null,null,null,null,null,null,null,null,null,null,null,null,null,null,null,null,null,null,null,2,null,"a2"]
[null,null,null,null,null,null,null,null,null,null,null,null,null,null,null,null,null,null,null,null,null,null,null,null,null,null,null,null,null,null,null,null,null,null,null,null,null,null,null,null,null,null,null,null,null,null,null,null,null,null,null,null,null,null,null,null,null,null,null,null,null,null,null,null,null,null,null,null,null,null,null,null,null,null,null,null,null,null,null,null,null,null,null,null,null,null,null,null,null,null,null,null,null,null,null,null,null,null,null,null,null,null,null,null,null,null,null,{"$f":"VLOOKUP(DW11,msystem!A2:C26,3,FALSE)","v":"北見北光"},null,null,null,null,null,null,null,null,null,null,null,null,null,null,{"$f":"VLOOKUP(DW11,msystem!A2:C26,2,FALSE)","v":"西北見"},null,null,null,14]
[2,null,{"$f":"VLOOKUP(A12,msystem!A2:C26,2,FALSE)","v":"遠紋"},null,null,null,{"$f":"VLOOKUP(A12,msystem!A2:C26,3,FALSE)","v":"遠軽"}]
[null,null,null,null,null,null,null,null,null,null,null,null,null,null,null,null,null,null,null,null,null,null,null,null,null,null,null,null,null,null,null,null,null,null,null,null,null,null,null,null,null,null,null,null,null,null,null,null,null,null,null,null,null,null,null,null,null,null,null,null,null,null,null,null,null,null,null,null,null,null,null,null,null,null,null,null,null,null,null,null,null,null,null,null,null,null,null,null,null,null,null,null,null,null,null,null,null,null,null,1,null,"a1"]
[null,null,null,null,null,null,null,null,null,null,null,null,null,null,null,null,null,null,null,null,null,null,null,null,null,null,null,null,null,null,null,null,null,null,null,null,null,null,null,null,null,null,null,null,null,null,null,null,null,null,null,null,null,null,null,null,null,null,null,null,null,null,null,null,null,null,null,null,null,null,null,null,null,null,null,null,null,null,null,null,null,null,null,null,null,null,null,null,null,null,null,{"$f":"IF(CN10=1,VLOOKUP(CP10,mgamedata!B2:E25,4,FALSE),IF(CN10=2,VLOOKUP(CP10,mgamedata!G2:J25,4,FALSE),VLOOKUP(CP10,mgamedata!L2:O25,4,FALSE)))","v":49}]
[null,null,null,null,null,null,null,null,null,null,null,null,null,null,null,null,null,null,null,null,null,null,null,null,null,1,null,"b1",null,null,null,null,null,null,null,null,null,null,null,null,null,null,null,null,null,null,null,null,null,null,null,null,null,null,null,null,null,null,null,null,null,null,null,null,null,null,null,null,null,null,null,null,null,null,null,null,null,null,null,null,null,null,null,null,null,null,null,null,null,null,null,null,null,null,null,null,null,null,null,null,null,null,null,null,null,null,null,{"$f":"VLOOKUP(DW15,msystem!A2:C26,3,FALSE)","v":"置戸ジュニア"},null,null,null,null,null,null,null,null,null,null,null,null,null,null,{"$f":"VLOOKUP(DW15,msystem!A2:C26,2,FALSE)","v":"クラブ"},null,null,null,15]
[null,null,null,null,null,null,null,null,null,null,null,null,null,null,null,null,null,null,null,null,null,null,null,null,null,null,null,null,null,null,null,null,null,{"$f":"IF(AH9=1,VLOOKUP(AJ9,mgamedata!B2:E25,4,FALSE),IF(AH9=2,VLOOKUP(AJ9,mgamedata!G2:J25,4,FALSE),VLOOKUP(AJ9,mgamedata!L2:O25,4,FALSE)))","v":69},null,null,null,null,null,null,null,null,null,null,null,null,null,null,null,null,null,null,null,null,null,null,null,null,null,null,null,null,null,null,null,null,null,null,null,null,null,null,null,null,null,null,null,null,null,null,null,null,null,null,null,null,null,null,null,null,null,null,null,null,null,null,null,null,null,{"$f":"IF(CV13=1,VLOOKUP(CX13,mgamedata!B2:E25,4,FALSE),IF(CV13=2,VLOOKUP(CX13,mgamedata!G2:J25,4,FALSE),VLOOKUP(CX13,mgamedata!L2:O25,4,FALSE)))","v":51}]
[]
[3,null,{"$f":"VLOOKUP(A18,msystem!A2:C26,2,FALSE)","v":"クラブ"},null,null,null,{"$f":"VLOOKUP(A18,msystem!A2:C26,3,FALSE)","v":"MUKU basketballclub"}]
[null,null,null,null,null,null,null,null,null,null,null,null,null,null,null,null,null,null,null,null,null,null,null,null,null,{"$f":"IF(Z15=1,VLOOKUP(AB15,mgamedata!B2:E25,4,FALSE),IF(Z15=2,VLOOKUP(AB15,mgamedata!G2:J25,4,FALSE),VLOOKUP(AB15,mgamedata!L2:O25,4,FALSE)))","v":45},null,null,null,null,null,null,null,null,null,null,null,null,null,null,null,null,null,null,null,null,null,null,null,{"$f":"IF(AX42=1,VLOOKUP(AZ42,mgamedata!B2:E25,3,FALSE),IF(AX42=2,VLOOKUP(AZ42,mgamedata!G2:J25,3,FALSE),VLOOKUP(AZ42,mgamedata!L2:O25,3,FALSE)))","v":113},null,null,null,null,null,null,null,null,null,null,null,null,null,null,null,null,null,null,null,null,null,null,null,null,null,{"$f":"IF(BX42=1,VLOOKUP(BZ42,mgamedata!B2:E25,3,FALSE),IF(BX42=2,VLOOKUP(BZ42,mgamedata!G2:J25,3,FALSE),VLOOKUP(BZ42,mgamedata!L2:O25,3,FALSE)))","v":44},null,null,null,null,null,null,null,null,null,null,null,null,null,null,null,null,null,null,null,null,null,null,null,{"$f":"IF(CV23=1,VLOOKUP(CX23,mgamedata!B2:E25,3,FALSE),IF(CV23=2,VLOOKUP(CX23,mgamedata!G2:J25,3,FALSE),VLOOKUP(CX23,mgamedata!L2:O25,3,FALSE)))","v":46}]
[]
[null,null,null,null,null,null,null,null,null,null,null,null,null,null,null,null,null,null,null,null,null,null,null,null,null,null,null,null,null,null,null,null,null,null,null,null,null,null,null,null,null,2,null,"a5",null,null,null,null,null,null,null,null,null,null,null,null,null,null,null,null,null,null,null,null,null,null,null,null,null,null,null,null,null,null,null,null,null,null,null,null,null,null,null,2,null,"b6",null,null,null,null,null,{"$f":"IF(CN28=1,VLOOKUP(CP28,mgamedata!B2:E25,3,FALSE),IF(CN28=2,VLOOKUP(CP28,mgamedata!G2:J25,3,FALSE),VLOOKUP(CP28,mgamedata!L2:O25,3,FALSE)))","v":68},null,null,null,null,null,null,null,null,null,null,null,null,null,null,null,{"$f":"VLOOKUP(DW21,msystem!A2:C26,3,FALSE)","v":"BLOSSOM"},null,null,null,null,null,null,null,null,null,null,null,null,null,null,{"$f":"VLOOKUP(DW21,msystem!A2:C26,2,FALSE)","v":"クラブ"},null,null,null,16]
[null,null,null,null,null,null,null,null,null,null,null,null,null,null,null,null,null,null,null,null,null,null,null,null,null,{"$f":"IF(Z27=1,VLOOKUP(AB27,mgamedata!B2:E25,3,FALSE),IF(Z27=2,VLOOKUP(AB27,mgamedata!G2:J25,3,FALSE),VLOOKUP(AB27,mgamedata!L2:O25,3,FALSE)))","v":66}]
[null,null,null,null,null,null,null,null,null,null,null,null,null,null,null,null,null,null,null,null,null,null,null,null,null,null,null,null,null,null,null,null,null,null,null,null,null,null,null,null,null,null,null,null,null,null,null,null,null,null,null,null,null,null,null,null,null,null,null,null,null,null,null,null,null,null,null,null,null,null,null,null,null,null,null,null,null,null,null,null,null,null,null,null,null,null,null,null,null,null,null,null,null,null,null,null,null,null,null,1,null,"a4"]
[4,null,{"$f":"VLOOKUP(A24,msystem!A2:C26,2,FALSE)","v":"東北見"},null,null,null,{"$f":"VLOOKUP(A24,msystem!A2:C26,3,FALSE)","v":"津別"}]
[null,null,null,null,null,null,null,null,null,null,null,null,null,null,null,null,null,null,null,null,null,null,null,null,null,null,null,null,null,null,null,null,null,{"$f":"IF(AH33=1,VLOOKUP(AJ33,mgamedata!B2:E25,3,FALSE),IF(AH33=2,VLOOKUP(AJ33,mgamedata!G2:J25,3,FALSE),VLOOKUP(AJ33,mgamedata!L2:O25,3,FALSE)))","v":30},null,null,null,null,null,null,null,null,null,null,null,null,null,null,null,null,null,null,null,null,null,null,null,null,null,null,null,null,null,null,null,null,null,null,null,null,null,null,null,null,null,null,null,null,null,null,null,null,null,null,null,null,null,null,null,null,null,null,null,null,null,null,null,null,null,null,null,null,null,null,null,null,null,{"$f":"VLOOKUP(DW25,msystem!A2:C26,3,FALSE)","v":"北見北"},null,null,null,null,null,null,null,null,null,null,null,null,null,null,{"$f":"VLOOKUP(DW25,msystem!A2:C26,2,FALSE)","v":"西北見"},null,null,null,17]
[null,null,null,null,null,null,null,null,null,null,null,null,null,null,null,null,null,null,null,null,null,null,null,null,null,null,null,null,null,null,null,null,null,null,null,null,null,null,null,null,null,null,null,null,null,null,null,null,null,null,null,null,null,null,null,null,null,null,null,null,null,null,null,null,null,null,null,null,null,null,null,null,null,null,null,null,null,null,null,null,null,null,null,null,null,null,null,null,null,null,null,null,null,null,null,null,null,null,null,{"$f":"IF(CV23=1,VLOOKUP(CX23,mgamedata!B2:E25,4,FALSE),IF(CV23=2,VLOOKUP(CX23,mgamedata!G2:J25,4,FALSE),VLOOKUP(CX23,mgamedata!L2:O25,4,FALSE)))","v":82}]
[null,null,null,null,null,null,null,null,null,null,null,null,null,null,null,null,null,null,null,null,null,null,null,null,null,1,null,"b4"]
[null,null,null,null,null,null,null,null,null,null,null,null,null,null,null,null,null,null,null,null,null,null,null,null,null,null,null,null,null,null,null,null,null,null,null,null,null,null,null,null,null,null,null,null,null,null,null,null,null,null,null,null,null,null,null,null,null,null,null,null,null,null,null,null,null,null,null,null,null,null,null,null,null,null,null,null,null,null,null,null,null,null,null,null,null,null,null,null,null,null,null,2,null,"b2"]
[null,null,null,null,null,null,null,null,null,null,null,null,null,null,null,null,null,null,null,null,null,null,null,null,null,null,null,null,null,null,null,null,null,null,null,null,null,null,null,null,null,null,null,null,null,null,null,null,null,null,null,null,null,null,null,null,null,null,null,null,null,null,null,null,null,null,null,null,null,null,null,null,null,null,null,null,null,null,null,null,null,null,null,{"$f":"IF(CF21=1,VLOOKUP(CH21,mgamedata!B2:E25,4,FALSE),IF(CF21=2,VLOOKUP(CH21,mgamedata!G2:J25,4,FALSE),VLOOKUP(CH21,mgamedata!L2:O25,4,FALSE)))","v":83}]
[5,null,{"$f":"VLOOKUP(A30,msystem!A2:C26,2,FALSE)","v":"遠紋"},null,null,null,{"$f":"VLOOKUP(A30,msystem!A2:C26,3,FALSE)","v":"上湧別・ゆうべつ・遠軽南"}]
[null,null,null,null,null,null,null,null,null,null,null,null,null,null,null,null,null,null,null,null,null,null,null,null,null,{"$f":"IF(Z27=1,VLOOKUP(AB27,mgamedata!B2:E25,4,FALSE),IF(Z27=2,VLOOKUP(AB27,mgamedata!G2:J25,4,FALSE),VLOOKUP(AB27,mgamedata!L2:O25,4,FALSE)))","v":56},null,null,null,null,null,null,null,null,null,null,null,null,null,null,null,null,null,null,null,null,null,null,null,null,null,null,null,null,null,null,null,null,null,null,null,null,null,null,null,null,null,null,null,null,null,null,null,null,null,null,null,null,null,null,null,null,null,null,null,null,null,null,null,null,null,null,null,null,null,null,null,null,null,null,null,null,null,null,null,null,null,{"$f":"VLOOKUP(DW31,msystem!A2:C26,3,FALSE)","v":"佐呂間"},null,null,null,null,null,null,null,null,null,null,null,null,null,null,{"$f":"VLOOKUP(DW31,msystem!A2:C26,2,FALSE)","v":"遠紋"},null,null,null,18]
[null,null,null,null,null,null,null,null,null,null,null,null,null,null,null,null,null,null,null,null,null,null,null,null,null,null,null,null,null,null,null,null,null,null,null,null,null,null,null,null,null,null,null,null,null,null,null,null,null,null,null,null,null,null,null,null,null,null,null,null,null,null,null,null,null,null,null,null,null,null,null,null,null,null,null,null,null,null,null,null,null,null,null,null,null,null,null,null,null,null,null,{"$f":"IF(CN28=1,VLOOKUP(CP28,mgamedata!B2:E25,4,FALSE),IF(CN28=2,VLOOKUP(CP28,mgamedata!G2:J25,4,FALSE),VLOOKUP(CP28,mgamedata!L2:O25,4,FALSE)))","v":36}]
[null,null,null,null,null,null,null,null,null,null,null,null,null,null,null,null,null,null,null,null,null,null,null,null,null,null,null,null,null,null,null,null,null,2,null,"b1"]
[null,null,null,null,null,null,null,null,null,null,null,null,null,null,null,null,null,null,null,null,null,null,null,null,null,null,null,null,null,null,null,null,null,null,null,null,null,null,null,null,null,{"$f":"IF(AP21=1,VLOOKUP(AR21,mgamedata!B2:E25,4,FALSE),IF(AP21=2,VLOOKUP(AR21,mgamedata!G2:J25,4,FALSE),VLOOKUP(AR21,mgamedata!L2:O25,4,FALSE)))","v":142}]
[]
[null,null,{"$f":"VLOOKUP(A36,msystem!A2:C26,2,FALSE)","v":{"$error":"#N/A"}},null,null,null,{"$f":"VLOOKUP(A36,msystem!A2:C26,3,FALSE)","v":{"$error":"#N/A"}},null,null,null,null,null,null,null,null,null,null,null,null,null,null,null,null,null,null,null,null,null,null,null,null,null,null,null,null,null,null,null,null,null,null,null,null,null,null,null,null,null,null,null,null,null,null,null,null,null,null,null,null,null,null,null,null,null,null,null,null,null,null,null,null,null,null,null,null,null,null,null,null,null,null,null,null,null,null,null,null,null,null,null,null,null,null,null,null,null,null,null,null,null,null,null,null,null,null,null,null,{"$f":"VLOOKUP(DW36,msystem!A2:C26,3,FALSE)","v":{"$error":"#N/A"}},null,null,null,null,null,null,null,null,null,null,null,null,null,null,{"$f":"VLOOKUP(DW36,msystem!A2:C26,2,FALSE)","v":{"$error":"#N/A"}}]
[null,null,null,null,null,null,null,null,null,null,null,null,null,null,null,null,null,null,null,null,null,null,null,null,null,null,null,null,null,null,null,null,null,null,null,null,null,null,null,null,null,null,null,null,null,null,null,null,null,null,null,null,null,null,"mukuOX basketballclub"]
[]
[6,null,{"$f":"VLOOKUP(A39,msystem!A2:C26,2,FALSE)","v":"クラブ"},null,null,null,{"$f":"VLOOKUP(A39,msystem!A2:C26,3,FALSE)","v":"mukuOX basketballclub"}]
[null,null,null,null,null,null,null,null,null,null,null,null,null,null,null,null,null,null,null,null,null,null,null,null,null,null,null,null,null,null,null,null,null,{"$f":"IF(AH33=1,VLOOKUP(AJ33,mgamedata!B2:E25,4,FALSE),IF(AH33=2,VLOOKUP(AJ33,mgamedata!G2:J25,4,FALSE),VLOOKUP(AJ33,mgamedata!L2:O25,4,FALSE)))","v":111}]
[]
[null,null,{"$f":"VLOOKUP(A42,msystem!A2:C26,2,FALSE)","v":{"$error":"#N/A"}},null,null,null,{"$f":"VLOOKUP(A42,msystem!A2:C26,3,FALSE)","v":{"$error":"#N/A"}},null,null,null,null,null,null,null,null,null,null,null,null,null,null,null,null,null,null,null,null,null,null,null,null,null,null,null,null,null,null,null,null,null,null,null,null,null,null,null,null,null,null,3,null,"a2",null,null,null,null,null,null,null,null,null,null,null,null,null,null,null,null,null,null,null,null,null,null,null,3,null,"b2",null,null,null,null,null,null,null,null,null,null,null,null,null,null,null,null,null,null,null,null,null,null,null,null,null,null,null,null,null,{"$f":"VLOOKUP(DW42,msystem!A2:C26,3,FALSE)","v":{"$error":"#N/A"}},null,null,null,null,null,null,null,null,null,null,null,null,null,null,{"$f":"VLOOKUP(DW42,msystem!A2:C26,2,FALSE)","v":{"$error":"#N/A"}}]
[]
[null,null,null,null,null,null,null,null,null,null,null,null,null,null,null,null,null,null,null,null,null,null,null,null,null,null,null,null,null,null,null,null,null,null,null,null,null,null,null,null,null,null,null,null,null,null,null,null,null,null,null,null,null,null,null,{"$f":"SUM(BH44:BK51)","v":128},null,null,null,{"$f":"男子結果3日目!E18","v":46},null,null,null,"-",null,{"$f":"男子結果3日目!G18","v":10},null,null,null,{"$f":"SUM(BN44:BQ51)","v":44}]
[null,null,null,null,null,null,null,null,null,null,null,null,null,null,null,null,null,null,null,null,null,null,null,null,null,null,null,null,null,null,null,null,null,null,null,null,null,null,null,null,null,null,null,null,null,null,null,null,null,null,null,null,null,null,null,null,null,null,null,null,null,null,null,null,null,null,null,null,null,null,null,null,null,null,null,null,null,null,null,null,null,null,null,null,null,null,null,null,null,null,null,null,null,null,null,null,null,null,null,null,null,null,null,null,null,null,null,{"$f":"VLOOKUP(DW45,msystem!A2:C26,3,FALSE)","v":{"$error":"#N/A"}},null,null,null,null,null,null,null,null,null,null,null,null,null,null,{"$f":"VLOOKUP(DW45,msystem!A2:C26,2,FALSE)","v":{"$error":"#N/A"}}]
[null,null,null,null,null,null,null,null,null,null,null,null,null,null,null,null,null,null,null,null,null,null,null,null,null,null,null,null,null,null,null,null,null,{"$f":"IF(AH52=1,VLOOKUP(AJ52,mgamedata!B2:E25,3,FALSE),IF(AH52=2,VLOOKUP(AJ52,mgamedata!G2:J25,3,FALSE),VLOOKUP(AJ52,mgamedata!L2:O25,3,FALSE)))","v":28},null,null,null,null,null,null,null,null,null,null,null,null,null,null,null,null,null,null,null,null,null,null,null,null,null,{"$f":"男子結果3日目!E19","v":20},null,null,null,"-",null,{"$f":"男子結果3日目!G19","v":17},null,null,null,null,null,null,null,null,null,null,null,null,null,null,null,null,null,null,null,null,null,null,null,null,null,{"$f":"IF(CN51=1,VLOOKUP(CP51,mgamedata!B2:E25,3,FALSE),IF(CN51=2,VLOOKUP(CP51,mgamedata!G2:J25,3,FALSE),VLOOKUP(CP51,mgamedata!L2:O25,3,FALSE)))","v":31}]
[]
[7,null,{"$f":"VLOOKUP(A48,msystem!A2:C26,2,FALSE)","v":"斜網"},null,null,null,{"$f":"VLOOKUP(A48,msystem!A2:C26,3,FALSE)","v":"網走第二"},null,null,null,null,null,null,null,null,null,null,null,null,null,null,null,null,null,null,null,null,null,null,null,null,null,null,null,null,null,null,null,null,null,null,null,null,null,null,null,null,null,null,null,null,null,null,null,null,null,null,null,null,{"$f":"男子結果3日目!E20","v":34},null,null,null,"-",null,{"$f":"男子結果3日目!G20","v":5},null,null,null,null,null,null,null,null,null,null,null,null,null,null,null,null,null,null,null,null,null,null,null,null,null,null,null,null,null,null,null,null,null,null,null,null,null,null,null,null,null,{"$f":"VLOOKUP(DW48,msystem!A2:C26,3,FALSE)","v":"興部"},null,null,null,null,null,null,null,null,null,null,null,null,null,null,{"$f":"VLOOKUP(DW48,msystem!A2:C26,2,FALSE)","v":"クラブ"},null,null,null,19]
[null,null,null,null,null,null,null,null,null,null,null,null,null,null,null,null,null,null,null,null,null,null,null,null,null,null,null,null,null,null,null,null,null,null,null,null,null,null,null,null,null,null,null,null,null,null,null,null,null,null,null,null,null,null,null,null,null,null,null,null,null,null,null,null,null,null,null,null,null,null,null,null,null,null,null,null,null,null,null,null,null,null,null,{"$f":"IF(CF63=1,VLOOKUP(CH63,mgamedata!B2:E25,3,FALSE),IF(CF63=2,VLOOKUP(CH63,mgamedata!G2:J25,3,FALSE),VLOOKUP(CH63,mgamedata!L2:O25,3,FALSE)))","v":40}]
[null,null,null,null,null,null,null,null,null,null,null,null,null,null,null,null,null,null,null,null,null,null,null,null,null,null,null,null,null,null,null,null,null,null,null,null,null,null,null,null,null,{"$f":"IF(AP63=1,VLOOKUP(AR63,mgamedata!B2:E25,3,FALSE),IF(AP63=2,VLOOKUP(AR63,mgamedata!G2:J25,3,FALSE),VLOOKUP(AR63,mgamedata!L2:O25,3,FALSE)))","v":54},null,null,null,null,null,null,null,null,null,null,null,null,null,null,null,null,null,{"$f":"男子結果3日目!E21","v":28},null,null,null,"-",null,{"$f":"男子結果3日目!G21","v":12}]
[null,null,null,null,null,null,null,null,null,null,null,null,null,null,null,null,null,null,null,null,null,null,null,null,null,null,null,null,null,null,null,null,null,null,null,null,null,null,null,null,null,null,null,null,null,null,null,null,null,null,null,null,null,null,null,null,null,null,null,null,null,null,null,null,null,null,null,null,null,null,null,null,null,null,null,null,null,null,null,null,null,null,null,null,null,null,null,null,null,null,null,2,null,"a3"]
[null,null,null,null,null,null,null,null,null,null,null,null,null,null,null,null,null,null,null,null,null,null,null,null,null,{"$f":"IF(Z57=1,VLOOKUP(AB57,mgamedata!B2:E25,3,FALSE),IF(Z57=2,VLOOKUP(AB57,mgamedata!G2:J25,3,FALSE),VLOOKUP(AB57,mgamedata!L2:O25,3,FALSE)))","v":23},null,null,null,null,null,null,null,2,null,"a4",null,null,null,null,null,null,null,null,null,null,null,null,null,null,null,null,null,null,null,null,null,null,null,{"$f":"男子結果3日目!E22","v":0},null,null,null,"-",null,{"$f":"男子結果3日目!G22","v":0},null,null,null,null,null,null,null,null,null,null,null,null,null,null,null,null,null,null,null,null,null,null,null,null,null,null,null,null,null,null,null,null,null,{"$f":"IF(CV57=1,VLOOKUP(CX57,mgamedata!B2:E25,3,FALSE),IF(CV57=2,VLOOKUP(CX57,mgamedata!G2:J25,3,FALSE),VLOOKUP(CX57,mgamedata!L2:O25,3,FALSE)))","v":40}]
[]
[8,null,{"$f":"VLOOKUP(A54,msystem!A2:C26,2,FALSE)","v":"東北見"},null,null,null,{"$f":"VLOOKUP(A54,msystem!A2:C26,3,FALSE)","v":"女満別"},null,null,null,null,null,null,null,null,null,null,null,null,null,null,null,null,null,null,null,null,null,null,null,null,null,null,null,null,null,null,null,null,null,null,null,null,null,null,null,null,null,null,null,null,null,null,null,null,null,null,null,null,null,null,null,null,null,null,null,null,null,null,null,null,null,null,null,null,null,null,null,null,null,null,null,null,null,null,null,null,null,null,null,null,null,null,null,null,null,null,null,null,null,null,null,null,null,null,null,null,{"$f":"VLOOKUP(DW54,msystem!A2:C26,3,FALSE)","v":"網走第一"},null,null,null,null,null,null,null,null,null,null,null,null,null,null,{"$f":"VLOOKUP(DW54,msystem!A2:C26,2,FALSE)","v":"斜網"},null,null,null,20]
[]
[]
[null,null,{"$f":"VLOOKUP(A57,msystem!A2:C26,2,FALSE)","v":{"$error":"#N/A"}},null,null,null,{"$f":"VLOOKUP(A57,msystem!A2:C26,3,FALSE)","v":{"$error":"#N/A"}},null,null,null,null,null,null,null,null,null,null,null,null,null,null,null,null,null,null,1,null,"b5",null,null,null,null,null,null,null,null,null,null,null,null,null,null,null,null,null,null,null,null,null,null,null,null,null,null,null,null,null,null,null,null,null,null,null,null,null,null,null,null,null,null,null,null,null,null,null,null,null,null,null,null,null,null,null,null,null,null,null,null,null,null,null,null,null,null,null,null,null,null,null,1,null,"c2"]
[null,null,null,null,null,null,null,null,null,null,null,null,null,null,null,null,null,null,null,null,null,null,null,null,null,null,null,null,null,null,null,null,null,{"$f":"IF(AH52=1,VLOOKUP(AJ52,mgamedata!B2:E25,4,FALSE),IF(AH52=2,VLOOKUP(AJ52,mgamedata!G2:J25,4,FALSE),VLOOKUP(AJ52,mgamedata!L2:O25,4,FALSE)))","v":107},null,null,null,null,null,null,null,null,null,null,null,null,null,null,null,null,null,null,null,null,null,null,null,null,null,null,null,null,null,null,null,null,null,null,null,null,null,null,null,null,null,null,null,null,null,null,null,null,null,null,null,null,null,null,null,null,null,{"$f":"IF(CN51=1,VLOOKUP(CP51,mgamedata!B2:E25,4,FALSE),IF(CN51=2,VLOOKUP(CP51,mgamedata!G2:J25,4,FALSE),VLOOKUP(CP51,mgamedata!L2:O25,4,FALSE)))","v":60}]
[]
[9,null,{"$f":"VLOOKUP(A60,msystem!A2:C26,2,FALSE)","v":"斜網"},null,null,null,{"$f":"VLOOKUP(A60,msystem!A2:C26,3,FALSE)","v":"斜里"},null,null,null,null,null,null,null,null,null,null,null,null,null,null,null,null,null,null,null,null,null,null,null,null,null,null,null,null,null,null,null,null,null,null,null,null,null,null,null,null,null,null,null,null,null,null,null,null,null,null,null,null,null,null,null,null,null,null,null,null,null,null,null,null,null,null,null,null,null,null,null,null,null,null,null,null,null,null,null,null,null,null,null,null,null,null,null,null,null,null,null,null,null,null,null,null,null,null,null,null,{"$f":"VLOOKUP(DW60,msystem!A2:C26,3,FALSE)","v":"美幌北"},null,null,null,null,null,null,null,null,null,null,null,null,null,null,{"$f":"VLOOKUP(DW60,msystem!A2:C26,2,FALSE)","v":"東北見"},null,null,null,21]
[null,null,null,null,null,null,null,null,null,null,null,null,null,null,null,null,null,null,null,null,null,null,null,null,null,{"$f":"IF(Z57=1,VLOOKUP(AB57,mgamedata!B2:E25,4,FALSE),IF(Z57=2,VLOOKUP(AB57,mgamedata!G2:J25,4,FALSE),VLOOKUP(AB57,mgamedata!L2:O25,4,FALSE)))","v":45},null,null,null,null,null,null,null,null,null,null,null,null,null,null,null,null,null,null,null,null,null,null,null,null,null,null,null,null,null,null,null,null,null,null,null,null,null,null,null,null,null,null,null,null,null,null,null,null,null,null,null,null,null,null,null,null,null,null,null,null,null,null,null,null,null,null,null,null,null,null,null,null,null,{"$f":"IF(CV57=1,VLOOKUP(CX57,mgamedata!B2:E25,4,FALSE),IF(CV57=2,VLOOKUP(CX57,mgamedata!G2:J25,4,FALSE),VLOOKUP(CX57,mgamedata!L2:O25,4,FALSE)))","v":50}]
[]
[null,null,null,null,null,null,null,null,null,null,null,null,null,null,null,null,null,null,null,null,null,null,null,null,null,null,null,null,null,null,null,null,null,null,null,null,null,null,null,null,null,2,null,"a6",null,null,null,null,null,null,null,null,null,null,null,null,null,null,null,null,null,null,null,null,null,null,null,null,null,null,null,null,null,null,null,null,null,null,null,null,null,null,null,2,null,"b5"]
[null,null,null,null,null,null,null,null,null,null,null,null,null,null,null,null,null,null,null,null,null,null,null,null,null,{"$f":"IF(Z69=1,VLOOKUP(AB69,mgamedata!B2:E25,3,FALSE),IF(Z69=2,VLOOKUP(AB69,mgamedata!G2:J25,3,FALSE),VLOOKUP(AB69,mgamedata!L2:O25,3,FALSE)))","v":75},null,null,null,null,null,null,null,null,null,null,null,null,null,null,null,null,null,null,null,null,null,null,null,{"$f":"IF(AX42=1,VLOOKUP(AZ42,mgamedata!B2:E25,4,FALSE),IF(AX42=2,VLOOKUP(AZ42,mgamedata!G2:J25,4,FALSE),VLOOKUP(AZ42,mgamedata!L2:O25,4,FALSE)))","v":41},null,null,null,null,null,null,null,null,null,null,null,null,null,null,null,null,null,null,null,null,null,null,null,null,null,{"$f":"IF(BX42=1,VLOOKUP(BZ42,mgamedata!B2:E25,4,FALSE),IF(BX42=2,VLOOKUP(BZ42,mgamedata!G2:J25,4,FALSE),VLOOKUP(BZ42,mgamedata!L2:O25,4,FALSE)))","v":52},null,null,null,null,null,null,null,null,null,null,null,null,null,null,null,null,null,null,null,null,null,null,null,{"$f":"IF(CV69=1,VLOOKUP(CX69,mgamedata!B2:E25,3,FALSE),IF(CV69=2,VLOOKUP(CX69,mgamedata!G2:J25,3,FALSE),VLOOKUP(CX69,mgamedata!L2:O25,3,FALSE)))","v":56}]
[]
[10,null,{"$f":"VLOOKUP(A66,msystem!A2:C26,2,FALSE)","v":"東北見"},null,null,null,{"$f":"VLOOKUP(A66,msystem!A2:C26,3,FALSE)","v":"美幌"},null,null,null,null,null,null,null,null,null,null,null,null,null,null,null,null,null,null,null,null,null,null,null,null,null,null,null,null,null,null,null,null,null,null,null,null,null,null,null,null,null,null,null,null,null,null,null,null,null,null,null,null,null,null,null,null,null,null,null,null,null,null,null,null,null,null,null,null,null,null,null,null,null,null,null,null,null,null,null,null,null,null,null,null,null,null,null,null,null,null,null,null,null,null,null,null,null,null,null,null,{"$f":"VLOOKUP(DW66,msystem!A2:C26,3,FALSE)","v":"北見光西・東相内"},null,null,null,null,null,null,null,null,null,null,null,null,null,null,{"$f":"VLOOKUP(DW66,msystem!A2:C26,2,FALSE)","v":"西北見"},null,null,null,22]
[null,null,null,null,null,null,null,null,null,null,null,null,null,null,null,null,null,null,null,null,null,null,null,null,null,null,null,null,null,null,null,null,null,{"$f":"IF(AH73=1,VLOOKUP(AJ73,mgamedata!B2:E25,3,FALSE),IF(AH73=2,VLOOKUP(AJ73,mgamedata!G2:J25,3,FALSE),VLOOKUP(AJ73,mgamedata!L2:O25,3,FALSE)))","v":13},null,null,null,null,null,null,null,null,null,null,null,null,null,null,null,null,null,null,null,null,null,null,null,"代表決定戦",null,null,null,null,null,null,null,null,null,null,null,null,null,null,null,null,null,null,null,null,null,null,null,null,null,null,null,null,null,null,null,null,null,{"$f":"IF(CN73=1,VLOOKUP(CP73,mgamedata!B2:E25,3,FALSE),IF(CN73=2,VLOOKUP(CP73,mgamedata!G2:J25,3,FALSE),VLOOKUP(CP51,mgamedata!L2:O25,3,FALSE)))","v":50}]
[]
[null,null,null,null,null,null,null,null,null,null,null,null,null,null,null,null,null,null,null,null,null,null,null,null,null,1,null,"c4",null,null,null,null,null,null,null,null,null,null,null,null,null,null,null,null,null,null,null,null,null,null,null,null,null,null,null,null,null,null,null,null,null,null,null,null,null,null,null,null,null,null,null,null,null,null,null,null,null,null,null,null,null,null,null,null,null,null,null,null,null,null,null,null,null,null,null,null,null,null,null,1,null,"c5"]
[]
[null,null,null,null,null,null,null,null,null,null,null,null,null,null,null,null,null,null,null,null,null,null,null,null,null,null,null,null,null,null,null,null,null,null,null,null,null,null,null,null,null,null,null,null,null,null,null,null,null,{"$f":"男子結果3日目!B25","v":"okhotsk.black.eagles"},null,null,null,null,null,null,{"$f":"SUM(BI71:BL80)","v":78},null,null,null,{"$f":"男子結果3日目!E25","v":15},null,null,null,"-",null,{"$f":"男子結果3日目!G25","v":13},null,null,null,{"$f":"SUM(BO71:BR80)","v":36},null,null,null,{"$f":"男子結果3日目!J25","v":"北見北"}]
[11,null,{"$f":"VLOOKUP(A72,msystem!A2:C26,2,FALSE)","v":"西北見"},null,null,null,{"$f":"VLOOKUP(A72,msystem!A2:C26,3,FALSE)","v":"北見高栄"},null,null,null,null,null,null,null,null,null,null,null,null,null,null,null,null,null,null,null,null,null,null,null,null,null,null,null,null,null,null,null,null,null,null,null,null,null,null,null,null,null,null,null,null,null,null,null,null,null,null,null,null,null,null,null,null,null,null,null,null,null,null,null,null,null,null,null,null,null,null,null,null,null,null,null,null,null,null,null,null,null,null,null,null,null,null,null,null,null,null,null,null,null,null,null,null,null,null,null,null,{"$f":"VLOOKUP(DW72,msystem!A2:C26,3,FALSE)","v":"網走第三"},null,null,null,null,null,null,null,null,null,null,null,null,null,null,{"$f":"VLOOKUP(DW72,msystem!A2:C26,2,FALSE)","v":"斜網"},null,null,null,23]
[null,null,null,null,null,null,null,null,null,null,null,null,null,null,null,null,null,null,null,null,null,null,null,null,null,{"$f":"IF(Z69=1,VLOOKUP(AB69,mgamedata!B2:E25,4,FALSE),IF(Z69=2,VLOOKUP(AB69,mgamedata!G2:J25,4,FALSE),VLOOKUP(AB69,mgamedata!L2:O25,4,FALSE)))","v":61},null,null,null,null,null,null,null,2,null,"b4",null,null,null,null,null,null,null,null,null,null,null,null,null,null,null,null,null,null,null,null,null,null,null,null,{"$f":"男子結果3日目!E26","v":23},null,null,null,"-",null,{"$f":"男子結果3日目!G26","v":10},null,null,null,null,null,null,null,null,null,null,null,null,null,null,null,null,null,null,null,null,null,null,null,null,2,null,"b3",null,null,null,null,null,{"$f":"IF(CV69=1,VLOOKUP(CX69,mgamedata!B2:E25,4,FALSE),IF(CV69=2,VLOOKUP(CX69,mgamedata!G2:J25,4,FALSE),VLOOKUP(CX69,mgamedata!L2:O25,4,FALSE)))","v":54}]
[null,null,null,null,null,null,null,null,null,null,null,null,null,null,null,null,null,null,null,null,null,null,null,null,null,null,null,null,null,null,null,null,null,null,null,null,null,null,null,null,null,{"$f":"IF(AP63=1,VLOOKUP(AR63,mgamedata!B2:E25,4,FALSE),IF(AP63=2,VLOOKUP(AR63,mgamedata!G2:J25,4,FALSE),VLOOKUP(AR63,mgamedata!L2:O25,4,FALSE)))","v":90},null,null,null,null,null,null,null,null,null,null,null,null,null,null,null,null,null,null,null,null,null,null,null,null,null,null,null,null,null,null,null,null,null,null,null,null,null,null,null,null,null,{"$f":"IF(CF63=1,VLOOKUP(CH63,mgamedata!B2:E25,4,FALSE),IF(CF63=2,VLOOKUP(CH63,mgamedata!G2:J25,4,FALSE),VLOOKUP(CH63,mgamedata!L2:O25,4,FALSE)))","v":68}]
[null,null,null,null,null,null,null,null,null,null,null,null,null,null,null,null,null,null,null,null,null,null,null,null,null,null,null,null,null,null,null,null,null,null,null,null,null,null,null,null,null,null,null,null,null,null,null,null,null,null,null,null,null,null,null,null,null,null,null,null,{"$f":"男子結果3日目!E27","v":18},null,null,null,"-",null,{"$f":"男子結果3日目!G27","v":6}]
[]
[null,null,null,null,null,null,null,null,null,null,null,null,null,null,null,null,null,null,null,null,null,null,null,null,null,null,null,null,null,null,null,null,null,null,null,null,null,null,null,null,null,null,null,null,null,null,null,null,null,null,null,null,null,null,null,null,null,null,null,null,{"$f":"男子結果3日目!E28","v":22},null,null,null,"-",null,{"$f":"男子結果3日目!G28","v":7}]
[12,null,{"$f":"VLOOKUP(A78,msystem!A2:C26,2,FALSE)","v":"クラブ"},null,null,null,{"$f":"VLOOKUP(A78,msystem!A2:C26,3,FALSE)","v":"okhotsk.black.eagles"},null,null,null,null,null,null,null,null,null,null,null,null,null,null,null,null,null,null,null,null,null,null,null,null,null,null,null,null,null,null,null,null,null,null,null,null,null,null,null,null,null,null,null,null,null,null,null,null,null,null,null,null,null,null,null,null,null,null,null,null,null,null,null,null,null,null,null,null,null,null,null,null,null,null,null,null,null,null,null,null,null,null,null,null,null,null,null,null,null,null,null,null,null,null,null,null,null,null,null,null,{"$f":"VLOOKUP(DW78,msystem!A2:C26,3,FALSE)","v":"北見小泉・端野"},null,null,null,null,null,null,null,null,null,null,null,null,null,null,{"$f":"VLOOKUP(DW78,msystem!A2:C26,2,FALSE)","v":"東北見"},null,null,null,24]
[null,null,null,null,null,null,null,null,null,null,null,null,null,null,null,null,null,null,null,null,null,null,null,null,null,null,null,null,null,null,null,null,null,{"$f":"IF(AH73=1,VLOOKUP(AJ73,mgamedata!B2:E25,4,FALSE),IF(AH73=2,VLOOKUP(AJ73,mgamedata!G2:J25,4,FALSE),VLOOKUP(AJ73,mgamedata!L2:O25,4,FALSE)))","v":146},null,null,null,null,null,null,null,null,null,null,null,null,null,null,null,null,null,null,null,null,null,null,null,null,null,null,{"$f":"男子結果3日目!E33","v":0},null,null,null,"-",null,{"$f":"男子結果3日目!G33","v":0},null,null,null,null,null,null,null,null,null,null,null,null,null,null,null,null,null,null,null,null,null,null,null,null,{"$f":"IF(CN73=1,VLOOKUP(CP73,mgamedata!B2:E25,4,FALSE),IF(CN73=2,VLOOKUP(CP73,mgamedata!G2:J25,4,FALSE),VLOOKUP(CP73,mgamedata!L2:O25,4,FALSE)))","v":67}]

{"sheet":"女子勝ち上がり","index":7,"n_rows":79,"n_cols":127,"rows_kept":79,"cut":false,"hidden":false,"merged":[[68,101,69,102],[68,25,69,26],[77,0,78,1],[77,2,78,5],[77,6,78,20],[72,91,73,92],[72,93,73,94],[12,126,13,127],[63,91,65,94],[71,126,72,127],[72,25,74,28],[72,60,73,63],[72,64,73,65],[72,66,73,69],[73,41,75,44],[73,83,75,86],[74,60,75,63],[74,64,75,65],[70,74,79,80],[78,91,80,94],[77,107,78,121],[77,122,78,125],[77,126,78,127],[78,33,80,36],[78,60,79,63],[78,64,79,65],[72,99,74,102],[71,122,72,125],[74,66,75,69],[76,60,77,63],[76,64,77,65],[76,66,77,69],[70,49,79,55],[70,56,79,59],[70,60,71,63],[70,64,71,65],[70,66,71,69],[70,70,79,73],[78,66,79,69],[71,107,72,121],[59,107,60,121],[59,122,60,125],[53,107,54,121],[53,122,54,125],[57,91,59,94],[59,126,60,127],[60,25,62,28],[60,99,62,102],[65,107,66,121],[65,122,66,125],[65,126,66,127],[66,33,68,36],[66,57,68,72],[63,25,65,28],[63,49,65,52],[63,75,65,78],[53,91,54,92],[53,93,54,94],[63,99,65,102],[63,33,65,36],[60,91,62,94],[62,41,63,42],[62,83,63,84],[68,99,69,100],[51,59,52,62],[51,63,52,64],[51,65,52,68],[53,2,54,5],[53,6,54,20],[51,83,53,86],[65,0,66,1],[65,2,66,5],[65,6,66,20],[59,6,60,20],[62,85,63,86],[45,59,46,62],[45,63,46,64],[45,65,46,68],[45,91,47,94],[47,107,48,121],[47,122,48,125],[47,126,48,127],[48,83,50,86],[48,99,50,102],[49,59,50,62],[49,63,50,64],[49,65,50,68],[41,122,42,125],[41,126,42,127],[42,25,44,28],[42,91,44,94],[43,55,52,58],[43,59,44,62],[43,63,44,64],[43,65,44,68],[43,69,52,72],[44,107,45,121],[44,122,45,125],[44,126,45,127],[47,59,48,62],[47,63,48,64],[47,65,48,68],[41,75,42,76],[41,77,42,78],[51,33,52,34],[51,35,52,36],[41,49,42,50],[41,51,42,52],[51,25,53,28],[53,126,54,127],[51,99,53,102],[35,107,36,121],[35,122,36,125],[30,41,32,44],[35,126,36,127],[36,54,38,73],[36,99,38,102],[38,0,39,1],[38,2,39,5],[30,122,31,125],[30,126,31,127],[31,91,33,94],[33,25,35,28],[33,41,35,44],[34,91,36,94],[38,6,39,20],[39,33,41,36],[39,99,41,102],[41,0,42,1],[41,2,42,5],[41,6,42,20],[35,0,36,1],[35,2,36,5],[35,6,36,20],[41,107,42,121],[24,126,25,127],[25,99,27,102],[21,33,23,36],[28,83,30,86],[28,99,30,102],[29,0,30,1],[29,2,30,5],[29,6,30,20],[30,25,32,28],[30,107,31,121],[20,41,21,42],[20,43,21,44],[29,33,30,34],[29,35,30,36],[20,83,21,84],[20,85,21,86],[27,91,28,92],[27,93,28,94],[5,0,6,1],[5,2,6,5],[5,6,6,20],[5,107,6,121],[14,126,15,127],[15,33,17,36],[15,99,17,102],[17,0,18,1],[17,2,18,5],[17,6,18,20],[18,25,20,28],[18,49,20,52],[18,75,20,78],[19,99,21,102],[20,107,21,121],[20,122,21,125],[20,126,21,127],[21,25,23,28],[22,91,24,94],[23,0,24,1],[23,2,24,5],[23,6,24,20],[24,107,25,121],[24,122,25,125],[14,107,15,121],[14,122,15,125],[5,122,6,125],[5,126,6,127],[7,41,9,44],[7,83,9,86],[8,99,10,102],[9,25,11,28],[10,107,11,121],[10,122,11,125],[10,126,11,127],[3,33,5,36],[3,91,5,94],[14,25,15,26],[14,27,15,28],[9,91,10,92],[9,93,10,94],[9,33,10,34],[9,35,10,36],[13,91,15,94],[12,107,13,121],[12,122,13,125],[11,0,12,1],[11,2,12,5],[11,6,12,20],[47,0,48,1],[47,2,48,5],[47,6,48,20],[62,43,63,44],[72,33,73,34],[72,35,73,36],[56,0,57,1],[56,2,57,5],[56,6,57,20],[57,33,59,36],[59,0,60,1],[59,2,60,5],[53,0,54,1],[45,33,47,36],[49,41,51,44],[68,27,69,28],[71,0,72,1],[71,2,72,5],[71,6,72,20]]}
[null,"9月3日男子結果"]
[]
[]
[null,null,null,null,null,null,null,null,null,null,null,null,null,null,null,null,null,null,null,null,null,null,null,null,null,null,null,null,null,null,null,null,null,{"$f":"IF(AH10=1,VLOOKUP(AJ10,fgamedata!B2:E25,3,FALSE),IF(AH10=2,VLOOKUP(AJ10,fgamedata!G2:J25,3,FALSE),VLOOKUP(AJ10,fgamedata!L2:O25,3,FALSE)))","v":92},null,null,null,null,null,null,null,null,null,null,null,null,null,null,null,null,null,null,null,null,null,null,null,null,null,null,null,null,null,null,null,null,null,null,null,null,null,null,null,null,null,null,null,null,null,null,null,null,null,null,null,null,null,null,null,null,null,{"$f":"IF(CN10=1,VLOOKUP(CP10,fgamedata!B2:E25,3,FALSE),IF(CN10=2,VLOOKUP(CP10,fgamedata!G2:J25,3,FALSE),VLOOKUP(CP10,fgamedata!L2:O25,3,FALSE)))","v":75}]
[]
[1,null,{"$f":"VLOOKUP(A6,fsystem!A2:C26,2,FALSE)","v":"クラブ"},null,null,null,{"$f":"VLOOKUP(A6,fsystem!A2:C26,3,FALSE)","v":"okhotsk.black.eagles"},null,null,null,null,null,null,null,null,null,null,null,null,null,null,null,null,null,null,null,null,null,null,null,null,null,null,null,null,null,null,null,null,null,null,null,null,null,null,null,null,null,null,null,null,null,null,null,null,null,null,null,null,null,null,null,null,null,null,null,null,null,null,null,null,null,null,null,null,null,null,null,null,null,null,null,null,null,null,null,null,null,null,null,null,null,null,null,null,null,null,null,null,null,null,null,null,null,null,null,null,{"$f":"VLOOKUP(DW6,fsystem!A2:C26,3,FALSE)","v":"美幌北"},null,null,null,null,null,null,null,null,null,null,null,null,null,null,{"$f":"VLOOKUP(DW6,fsystem!A2:C26,2,FALSE)","v":"東北見"},null,null,null,10]
[]
[null,null,null,null,null,null,null,null,null,null,null,null,null,null,null,null,null,null,null,null,null,null,null,null,null,null,null,null,null,null,null,null,null,null,null,null,null,null,null,null,null,{"$f":"IF(AP21=1,VLOOKUP(AR21,fgamedata!B2:E25,3,FALSE),IF(AP21=2,VLOOKUP(AR21,fgamedata!G2:J25,3,FALSE),VLOOKUP(AR21,fgamedata!L2:O25,3,FALSE)))","v":106},null,null,null,null,null,null,null,null,null,null,null,null,null,null,null,null,null,null,null,null,null,null,null,null,null,null,null,null,null,null,null,null,null,null,null,null,null,null,null,null,null,{"$f":"IF(CF21=1,VLOOKUP(CH21,fgamedata!B2:E25,3,FALSE),IF(CF21=2,VLOOKUP(CH21,fgamedata!G2:J25,3,FALSE),VLOOKUP(CH21,fgamedata!L2:O25,3,FALSE)))","v":71}]
[null,null,null,null,null,null,null,null,null,null,null,null,null,null,null,null,null,null,null,null,null,null,null,null,null,null,null,null,null,null,null,null,null,null,null,null,null,null,null,null,null,null,null,null,null,null,null,null,null,null,null,null,null,null,null,null,null,null,null,null,null,null,null,null,null,null,null,null,null,null,null,null,null,null,null,null,null,null,null,null,null,null,null,null,null,null,null,null,null,null,null,null,null,null,null,null,null,null,null,{"$f":"IF(CV13=1,VLOOKUP(CX13,fgamedata!B2:E25,3,FALSE),IF(CV13=2,VLOOKUP(CX13,fgamedata!G2:J25,3,FALSE),VLOOKUP(CX13,fgamedata!L2:O25,3,FALSE)))","v":{"$error":"#N/A"}}]
[null,null,null,null,null,null,null,null,null,null,null,null,null,null,null,null,null,null,null,null,null,null,null,null,null,{"$f":"IF(Z15=1,VLOOKUP(AB15,fgamedata!B2:E25,3,FALSE),IF(Z15=2,VLOOKUP(AB15,fgamedata!G2:J25,3,FALSE),VLOOKUP(AB15,fgamedata!L2:O25,3,FALSE)))","v":89},null,null,null,null,null,null,null,1,null,"a5",null,null,null,null,null,null,null,null,null,null,null,null,null,null,null,null,null,null,null,null,null,null,null,null,null,null,null,null,null,null,null,null,null,null,null,null,null,null,null,null,null,null,null,null,null,null,null,null,null,null,null,null,null,null,null,1,null,"c3"]
[null,null,null,null,null,null,null,null,null,null,null,null,null,null,null,null,null,null,null,null,null,null,null,null,null,null,null,null,null,null,null,null,null,null,null,null,null,null,null,null,null,null,null,null,null,null,null,null,null,null,null,null,null,null,null,null,null,null,null,null,null,null,null,null,null,null,null,null,null,null,null,null,null,null,null,null,null,null,null,null,null,null,null,null,null,null,null,null,null,null,null,null,null,null,null,null,null,null,null,null,null,null,null,null,null,null,null,null,null,null,null,null,null,null,null,null,null,null,null,null,null,null,{"$f":"VLOOKUP(DW11,fsystem!$A$2:$C$26,2,FALSE)","v":{"$error":"#N/A"}}]
[2,null,{"$f":"VLOOKUP(A12,fsystem!A2:C26,2,FALSE)","v":"クラブ"},null,null,null,{"$f":"VLOOKUP(A12,fsystem!A2:C26,3,FALSE)","v":"北見ポプラガールズ　スパークス"}]
[null,null,null,null,null,null,null,null,null,null,null,null,null,null,null,null,null,null,null,null,null,null,null,null,null,null,null,null,null,null,null,null,null,null,null,null,null,null,null,null,null,null,null,null,null,null,null,null,null,null,null,null,null,null,null,null,null,null,null,null,null,null,null,null,null,null,null,null,null,null,null,null,null,null,null,null,null,null,null,null,null,null,null,null,null,null,null,null,null,null,null,null,null,null,null,null,null,null,null,1,null,"d1",null,null,null,null,null,{"$f":"VLOOKUP(DW13,fsystem!$A$2:$C$26,3,FALSE)","v":"高栄・留辺蘂"},null,null,null,null,null,null,null,null,null,null,null,null,null,null,{"$f":"VLOOKUP(DW13,fsystem!$A$2:$C$26,2,FALSE)","v":"西北見"},null,null,null,11]
[null,null,null,null,null,null,null,null,null,null,null,null,null,null,null,null,null,null,null,null,null,null,null,null,null,null,null,null,null,null,null,null,null,null,null,null,null,null,null,null,null,null,null,null,null,null,null,null,null,null,null,null,null,null,null,null,null,null,null,null,null,null,null,null,null,null,null,null,null,null,null,null,null,null,null,null,null,null,null,null,null,null,null,null,null,null,null,null,null,null,null,{"$f":"IF(CN10=1,VLOOKUP(CP10,fgamedata!B2:E25,4,FALSE),IF(CN10=2,VLOOKUP(CP10,fgamedata!G2:J25,4,FALSE),VLOOKUP(CP10,fgamedata!L2:O25,4,FALSE)))","v":44}]
[null,null,null,null,null,null,null,null,null,null,null,null,null,null,null,null,null,null,null,null,null,null,null,null,null,1,null,"a2",null,null,null,null,null,null,null,null,null,null,null,null,null,null,null,null,null,null,null,null,null,null,null,null,null,null,null,null,null,null,null,null,null,null,null,null,null,null,null,null,null,null,null,null,null,null,null,null,null,null,null,null,null,null,null,null,null,null,null,null,null,null,null,null,null,null,null,null,null,null,null,null,null,null,null,null,null,null,null,null,null,null,null,null,null,null,null,null,null,null,null,null,null,null,{"$f":"VLOOKUP(DW15,fsystem!A2:C26,2,FALSE)","v":{"$error":"#N/A"}}]
[null,null,null,null,null,null,null,null,null,null,null,null,null,null,null,null,null,null,null,null,null,null,null,null,null,null,null,null,null,null,null,null,null,{"$f":"IF(AH10=1,VLOOKUP(AJ10,fgamedata!B2:E25,4,FALSE),IF(AH10=2,VLOOKUP(AJ10,fgamedata!G2:J25,4,FALSE),VLOOKUP(AJ10,fgamedata!L2:O25,4,BG16)))","v":26},null,null,null,null,null,null,null,null,null,null,null,null,null,null,null,null,null,null,null,null,null,null,null,null,null,null,null,null,null,null,null,null,null,null,null,null,null,null,null,null,null,null,null,null,null,null,null,null,null,null,null,null,null,null,null,null,null,null,null,null,null,null,null,null,null,{"$f":"IF(CV13=1,VLOOKUP(CX13,fgamedata!B2:E25,4,FALSE),IF(CV13=2,VLOOKUP(CX13,fgamedata!G2:J25,4,FALSE),VLOOKUP(CX13,fgamedata!L2:O25,4,FALSE)))","v":{"$error":"#N/A"}}]
[]
[3,null,{"$f":"VLOOKUP(A18,fsystem!A2:C26,2,FALSE)","v":"斜網"},null,null,null,{"$f":"VLOOKUP(A18,fsystem!A2:C26,3,FALSE)","v":"網走第三"}]
[null,null,null,null,null,null,null,null,null,null,null,null,null,null,null,null,null,null,null,null,null,null,null,null,null,{"$f":"IF(Z15=1,VLOOKUP(AB15,fgamedata!B2:E25,4,FALSE),IF(Z15=2,VLOOKUP(AB15,fgamedata!G2:J25,4,FALSE),VLOOKUP(AB15,fgamedata!L2:O25,4,FALSE)))","v":20},null,null,null,null,null,null,null,null,null,null,null,null,null,null,null,null,null,null,null,null,null,null,null,{"$f":"IF(AX42=1,VLOOKUP(AZ42,fgamedata!B2:E25,3,FALSE),IF(AX42=2,VLOOKUP(AZ42,fgamedata!G2:J25,3,FALSE),VLOOKUP(AZ42,fgamedata!L2:O25,3,FALSE)))","v":64},null,null,null,null,null,null,null,null,null,null,null,null,null,null,null,null,null,null,null,null,null,null,null,null,null,{"$f":"IF(BX42=1,VLOOKUP(BZ42,fgamedata!B2:E25,3,FALSE),IF(BX42=2,VLOOKUP(BZ42,fgamedata!G2:J25,3,FALSE),VLOOKUP(BZ42,fgamedata!L2:O25,3,FALSE)))","v":40}]
[]
[null,null,null,null,null,null,null,null,null,null,null,null,null,null,null,null,null,null,null,null,null,null,null,null,null,null,null,null,null,null,null,null,null,null,null,null,null,null,null,null,null,2,null,"c2",null,null,null,null,null,null,null,null,null,null,null,null,null,null,null,null,null,null,null,null,null,null,null,null,null,null,null,null,null,null,null,null,null,null,null,null,null,null,null,2,null,"c4",null,null,null,null,null,null,null,null,null,null,null,null,null,null,null,null,null,null,null,null,null,{"$f":"VLOOKUP(DW21,fsystem!A2:C26,3,FALSE)","v":{"$error":"#N/A"}},null,null,null,null,null,null,null,null,null,null,null,null,null,null,{"$f":"VLOOKUP(DW21,fsystem!A2:C26,2,FALSE)","v":{"$error":"#N/A"}}]
[null,null,null,null,null,null,null,null,null,null,null,null,null,null,null,null,null,null,null,null,null,null,null,null,null,null,null,null,null,null,null,null,null,{"$f":"IF(AH30=1,VLOOKUP(AJ30,fgamedata!B2:E25,3,FALSE),IF(AH30=2,VLOOKUP(AJ30,fgamedata!G2:J25,3,FALSE),VLOOKUP(AJ30,fgamedata!L2:O25,3,FALSE)))","v":24}]
[null,null,null,null,null,null,null,null,null,null,null,null,null,null,null,null,null,null,null,null,null,null,null,null,null,null,null,null,null,null,null,null,null,null,null,null,null,null,null,null,null,null,null,null,null,null,null,null,null,null,null,null,null,null,null,null,null,null,null,null,null,null,null,null,null,null,null,null,null,null,null,null,null,null,null,null,null,null,null,null,null,null,null,null,null,null,null,null,null,null,null,{"$f":"IF(CN28=1,VLOOKUP(CP28,fgamedata!B2:E25,3,FALSE),IF(CN28=2,VLOOKUP(CP28,fgamedata!G2:J25,3,FALSE),VLOOKUP(CP28,fgamedata!L2:O25,3,FALSE)))","v":16}]
[4,null,{"$f":"VLOOKUP(A24,fsystem!A2:C26,2,FALSE)","v":"斜網"},null,null,null,{"$f":"VLOOKUP(A24,fsystem!A2:C26,3,FALSE)","v":"網走第一"}]
[null,null,null,null,null,null,null,null,null,null,null,null,null,null,null,null,null,null,null,null,null,null,null,null,null,null,null,null,null,null,null,null,null,null,null,null,null,null,null,null,null,null,null,null,null,null,null,null,null,null,null,null,null,null,null,null,null,null,null,null,null,null,null,null,null,null,null,null,null,null,null,null,null,null,null,null,null,null,null,null,null,null,null,null,null,null,null,null,null,null,null,null,null,null,null,null,null,null,null,null,null,null,null,null,null,null,null,{"$f":"VLOOKUP(DW25,fsystem!A2:C26,3,FALSE)","v":"遠軽"},null,null,null,null,null,null,null,null,null,null,null,null,null,null,{"$f":"VLOOKUP(DW25,fsystem!A2:C26,2,FALSE)","v":"遠紋"},null,null,null,12]
[]
[]
[null,null,null,null,null,null,null,null,null,null,null,null,null,null,null,null,null,null,null,null,null,null,null,null,null,null,null,null,null,null,null,null,null,null,null,null,null,null,null,null,null,null,null,null,null,null,null,null,null,null,null,null,null,null,null,null,null,null,null,null,null,null,null,null,null,null,null,null,null,null,null,null,null,null,null,null,null,null,null,null,null,null,null,null,null,null,null,null,null,null,null,1,null,"a3"]
[null,null,null,null,null,null,null,null,null,null,null,null,null,null,null,null,null,null,null,null,null,null,null,null,null,null,null,null,null,null,null,null,null,null,null,null,null,null,null,null,null,null,null,null,null,null,null,null,null,null,null,null,null,null,null,null,null,null,null,null,null,null,null,null,null,null,null,null,null,null,null,null,null,null,null,null,null,null,null,null,null,null,null,{"$f":"IF(CF21=1,VLOOKUP(CH21,fgamedata!B2:E25,4,FALSE),IF(CF21=2,VLOOKUP(CH21,fgamedata!G2:J25,4,FALSE),VLOOKUP(CH21,fgamedata!L2:O25,4,FALSE)))","v":47}]
[null,null,{"$f":"VLOOKUP(A30,fsystem!A2:C26,2,FALSE)","v":{"$error":"#N/A"}},null,null,null,{"$f":"VLOOKUP(A30,fsystem!A2:C26,3,FALSE)","v":{"$error":"#N/A"}},null,null,null,null,null,null,null,null,null,null,null,null,null,null,null,null,null,null,null,null,null,null,null,null,null,null,1,null,"c1"]
[null,null,null,null,null,null,null,null,null,null,null,null,null,null,null,null,null,null,null,null,null,null,null,null,null,null,null,null,null,null,null,null,null,null,null,null,null,null,null,null,null,{"$f":"IF(AP21=1,VLOOKUP(AR21,fgamedata!B2:E25,4,FALSE),IF(AP21=2,VLOOKUP(AR21,fgamedata!G2:J25,4,FALSE),VLOOKUP(AR21,fgamedata!L2:O25,4,FALSE)))","v":26},null,null,null,null,null,null,null,null,null,null,null,null,null,null,null,null,null,null,null,null,null,null,null,null,null,null,null,null,null,null,null,null,null,null,null,null,null,null,null,null,null,null,null,null,null,null,null,null,null,null,null,null,null,null,null,null,null,null,null,null,null,null,null,null,null,{"$f":"VLOOKUP(DW31,fsystem!A2:C26,3,FALSE)","v":"遠軽南"},null,null,null,null,null,null,null,null,null,null,null,null,null,null,{"$f":"VLOOKUP(DW31,fsystem!A2:C26,2,FALSE)","v":"遠紋"},null,null,null,13]
[null,null,null,null,null,null,null,null,null,null,null,null,null,null,null,null,null,null,null,null,null,null,null,null,null,null,null,null,null,null,null,null,null,null,null,null,null,null,null,null,null,null,null,null,null,null,null,null,null,null,null,null,null,null,null,null,null,null,null,null,null,null,null,null,null,null,null,null,null,null,null,null,null,null,null,null,null,null,null,null,null,null,null,null,null,null,null,null,null,null,null,{"$f":"IF(CN28=1,VLOOKUP(CP28,fgamedata!B2:E25,4,FALSE),IF(CN28=2,VLOOKUP(CP28,fgamedata!G2:J25,4,FALSE),VLOOKUP(CP28,fgamedata!L2:O25,4,FALSE)))","v":76}]
[]
[]
[]
[null,null,{"$f":"VLOOKUP(A36,fsystem!A2:C26,2,FALSE)","v":{"$error":"#N/A"}},null,null,null,{"$f":"VLOOKUP(A36,fsystem!A2:C26,3,FALSE)","v":{"$error":"#N/A"}},null,null,null,null,null,null,null,null,null,null,null,null,null,null,null,null,null,null,null,null,null,null,null,null,null,null,null,null,null,null,null,null,null,null,null,null,null,null,null,null,null,null,null,null,null,null,null,null,null,null,null,null,null,null,null,null,null,null,null,null,null,null,null,null,null,null,null,null,null,null,null,null,null,null,null,null,null,null,null,null,null,null,null,null,null,null,null,null,null,null,null,null,null,null,null,null,null,null,null,null,{"$f":"VLOOKUP(DW36,fsystem!A2:C26,3,FALSE)","v":{"$error":"#N/A"}},null,null,null,null,null,null,null,null,null,null,null,null,null,null,{"$f":"VLOOKUP(DW36,fsystem!A2:C26,2,FALSE)","v":{"$error":"#N/A"}}]
[null,null,null,null,null,null,null,null,null,null,null,null,null,null,null,null,null,null,null,null,null,null,null,null,null,null,null,null,null,null,null,null,null,null,null,null,null,null,null,null,null,null,null,null,null,null,null,null,null,null,null,null,null,null,"okhotsk.black.eagles"]
[]
[5,null,{"$f":"VLOOKUP(A39,fsystem!A2:C26,2,FALSE)","v":"西北見"},null,null,null,{"$f":"VLOOKUP(A39,fsystem!A2:C26,3,FALSE)","v":"北見光西"}]
[null,null,null,null,null,null,null,null,null,null,null,null,null,null,null,null,null,null,null,null,null,null,null,null,null,null,null,null,null,null,null,null,null,{"$f":"IF(AH30=1,VLOOKUP(AJ30,fgamedata!B2:E25,4,FALSE),IF(AH30=2,VLOOKUP(AJ30,fgamedata!G2:J25,4,FALSE),VLOOKUP(AJ30,fgamedata!L2:O25,4,FALSE)))","v":93}]
[]
[null,null,{"$f":"VLOOKUP(A42,fsystem!A2:C26,2,FALSE)","v":{"$error":"#N/A"}},null,null,null,{"$f":"VLOOKUP(A42,fsystem!A2:C26,3,FALSE)","v":{"$error":"#N/A"}},null,null,null,null,null,null,null,null,null,null,null,null,null,null,null,null,null,null,null,null,null,null,null,null,null,null,null,null,null,null,null,null,null,null,null,null,null,null,null,null,null,null,3,null,"a1",null,null,null,null,null,null,null,null,null,null,null,null,null,null,null,null,null,null,null,null,null,null,null,3,null,"b1",null,null,null,null,null,null,null,null,null,null,null,null,null,null,null,null,null,null,null,null,null,null,null,null,null,null,null,null,null,{"$f":"VLOOKUP(DW42,fsystem!A2:C26,3,FALSE)","v":{"$error":"#N/A"}},null,null,null,null,null,null,null,null,null,null,null,null,null,null,{"$f":"VLOOKUP(DW42,fsystem!A2:C26,2,FALSE)","v":{"$error":"#N/A"}}]
[]
[null,null,null,null,null,null,null,null,null,null,null,null,null,null,null,null,null,null,null,null,null,null,null,null,null,null,null,null,null,null,null,null,null,null,null,null,null,null,null,null,null,null,null,null,null,null,null,null,null,null,null,null,null,null,null,{"$f":"SUM(BH44:BK53)","v":81},null,null,null,{"$f":"女子結果3日目!E18","v":21},null,null,null,"-",null,{"$f":"女子結果3日目!G18","v":11},null,null,null,{"$f":"SUM(BN44:BQ53)","v":45}]
[null,null,null,null,null,null,null,null,null,null,null,null,null,null,null,null,null,null,null,null,null,null,null,null,null,null,null,null,null,null,null,null,null,null,null,null,null,null,null,null,null,null,null,null,null,null,null,null,null,null,null,null,null,null,null,null,null,null,null,null,null,null,null,null,null,null,null,null,null,null,null,null,null,null,null,null,null,null,null,null,null,null,null,null,null,null,null,null,null,null,null,null,null,null,null,null,null,null,null,null,null,null,null,null,null,null,null,{"$f":"VLOOKUP(DW45,fsystem!A2:C26,3,FALSE)","v":{"$error":"#N/A"}},null,null,null,null,null,null,null,null,null,null,null,null,null,null,{"$f":"VLOOKUP(DW45,fsystem!A2:C26,2,FALSE)","v":{"$error":"#N/A"}}]
[null,null,null,null,null,null,null,null,null,null,null,null,null,null,null,null,null,null,null,null,null,null,null,null,null,null,null,null,null,null,null,null,null,{"$f":"IF(AH52=1,VLOOKUP(AJ52,fgamedata!B2:E25,3,FALSE),IF(AH52=2,VLOOKUP(AJ52,fgamedata!G2:J25,3,FALSE),VLOOKUP(AJ52,fgamedata!L2:O25,3,FALSE)))","v":75},null,null,null,null,null,null,null,null,null,null,null,null,null,null,null,null,null,null,null,null,null,null,null,null,null,{"$f":"女子結果3日目!E19","v":21},null,null,null,"-",null,{"$f":"女子結果3日目!G19","v":13},null,null,null,null,null,null,null,null,null,null,null,null,null,null,null,null,null,null,null,null,null,null,null,null,null,{"$f":"IF(CN54=1,VLOOKUP(CP54,fgamedata!B2:E25,3,FALSE),IF(CN54=2,VLOOKUP(CP54,fgamedata!G2:J25,3,FALSE),VLOOKUP(CP54,fgamedata!L2:O25,3,FALSE)))","v":24}]
[]
[6,null,{"$f":"VLOOKUP(A48,fsystem!A2:C26,2,FALSE)","v":"遠紋"},null,null,null,{"$f":"VLOOKUP(A48,fsystem!A2:C26,3,FALSE)","v":"上湧別・ゆうべつ・佐呂間・紋別潮見"},null,null,null,null,null,null,null,null,null,null,null,null,null,null,null,null,null,null,null,null,null,null,null,null,null,null,null,null,null,null,null,null,null,null,null,null,null,null,null,null,null,null,null,null,null,null,null,null,null,null,null,null,{"$f":"女子結果3日目!E20","v":24},null,null,null,"-",null,{"$f":"女子結果3日目!G20","v":8},null,null,null,null,null,null,null,null,null,null,null,null,null,null,null,null,null,null,null,null,null,null,null,null,null,null,null,null,null,null,null,null,null,null,null,null,null,null,null,null,null,{"$f":"VLOOKUP(DW48,fsystem!A2:C26,3,FALSE)","v":"北見北"},null,null,null,null,null,null,null,null,null,null,null,null,null,null,{"$f":"VLOOKUP(DW48,fsystem!A2:C26,2,FALSE)","v":"西北見"},null,null,null,14]
[]
[null,null,null,null,null,null,null,null,null,null,null,null,null,null,null,null,null,null,null,null,null,null,null,null,null,null,null,null,null,null,null,null,null,null,null,null,null,null,null,null,null,{"$f":"IF(AP63=1,VLOOKUP(AR63,fgamedata!B2:E25,3,FALSE),IF(AP63=2,VLOOKUP(AR63,fgamedata!G2:J25,3,FALSE),VLOOKUP(AR63,fgamedata!L2:O25,3,FALSE)))","v":60},null,null,null,null,null,null,null,null,null,null,null,null,null,null,null,null,null,{"$f":"女子結果3日目!E21","v":15},null,null,null,"-",null,{"$f":"女子結果3日目!G21","v":13}]
[]
[null,null,null,null,null,null,null,null,null,null,null,null,null,null,null,null,null,null,null,null,null,null,null,null,null,null,null,null,null,null,null,null,null,1,null,"a6",null,null,null,null,null,null,null,null,null,null,null,null,null,null,null,null,null,null,null,null,null,null,null,{"$f":"女子結果3日目!E22","v":0},null,null,null,"-",null,{"$f":"女子結果3日目!G22","v":0},null,null,null,null,null,null,null,null,null,null,null,null,null,null,null,null,null,{"$f":"IF(CF63=1,VLOOKUP(CH63,fgamedata!B2:E25,3,FALSE),IF(CF63=2,VLOOKUP(CH63,fgamedata!G2:J25,3,FALSE),VLOOKUP(CH63,fgamedata!L2:O25,3,FALSE)))","v":30}]
[]
[null,null,{"$f":"VLOOKUP(A54,fsystem!A2:C26,2,FALSE)","v":{"$error":"#N/A"}},null,null,null,{"$f":"VLOOKUP(A54,fsystem!A2:C26,3,FALSE)","v":{"$error":"#N/A"}},null,null,null,null,null,null,null,null,null,null,null,null,null,null,null,null,null,null,null,null,null,null,null,null,null,null,null,null,null,null,null,null,null,null,null,null,null,null,null,null,null,null,null,null,null,null,null,null,null,null,null,null,null,null,null,null,null,null,null,null,null,null,null,null,null,null,null,null,null,null,null,null,null,null,null,null,null,null,null,null,null,null,null,null,1,null,"b2",null,null,null,null,null,null,null,null,null,null,null,null,null,{"$f":"VLOOKUP(DW54,fsystem!A2:C26,3,FALSE)","v":{"$error":"#N/A"}},null,null,null,null,null,null,null,null,null,null,null,null,null,null,{"$f":"VLOOKUP(DW54,fsystem!A2:C26,2,FALSE)","v":{"$error":"#N/A"}}]
[]
[]
[7,null,{"$f":"VLOOKUP(A57,fsystem!A2:C26,2,FALSE)","v":"西北見"},null,null,null,{"$f":"VLOOKUP(A57,fsystem!A2:C26,3,FALSE)","v":"東相内"}]
[null,null,null,null,null,null,null,null,null,null,null,null,null,null,null,null,null,null,null,null,null,null,null,null,null,null,null,null,null,null,null,null,null,{"$f":"IF(AH52=1,VLOOKUP(AJ52,fgamedata!B2:E25,4,FALSE),IF(AH52=2,VLOOKUP(AJ52,fgamedata!G2:J25,4,FALSE),VLOOKUP(AJ52,fgamedata!L2:O25,4,FALSE)))","v":37}]
[]
[null,null,{"$f":"VLOOKUP(A60,fsystem!A2:C26,2,FALSE)","v":{"$error":"#N/A"}},null,null,null,{"$f":"VLOOKUP(A60,fsystem!A2:C26,3,FALSE)","v":{"$error":"#N/A"}},null,null,null,null,null,null,null,null,null,null,null,null,null,null,null,null,null,null,null,null,null,null,null,null,null,null,null,null,null,null,null,null,null,null,null,null,null,null,null,null,null,null,null,null,null,null,null,null,null,null,null,null,null,null,null,null,null,null,null,null,null,null,null,null,null,null,null,null,null,null,null,null,null,null,null,null,null,null,null,null,null,null,null,null,null,null,null,null,null,null,null,null,null,null,null,null,null,null,null,null,{"$f":"VLOOKUP(DW60,fsystem!A2:C26,3,FALSE)","v":"女満別"},null,null,null,null,null,null,null,null,null,null,null,null,null,null,{"$f":"VLOOKUP(DW60,fsystem!A2:C26,2,FALSE)","v":"東北見"},null,null,null,15]
[null,null,null,null,null,null,null,null,null,null,null,null,null,null,null,null,null,null,null,null,null,null,null,null,null,null,null,null,null,null,null,null,null,null,null,null,null,null,null,null,null,null,null,null,null,null,null,null,null,null,null,null,null,null,null,null,null,null,null,null,null,null,null,null,null,null,null,null,null,null,null,null,null,null,null,null,null,null,null,null,null,null,null,null,null,null,null,null,null,null,null,{"$f":"IF(CN54=1,VLOOKUP(CP54,fgamedata!B2:E25,4,FALSE),IF(CN54=2,VLOOKUP(CP54,fgamedata!G2:J25,4,FALSE),VLOOKUP(CP54,fgamedata!L2:O25,4,FALSE)))","v":52}]
[]
[null,null,null,null,null,null,null,null,null,null,null,null,null,null,null,null,null,null,null,null,null,null,null,null,null,null,null,null,null,null,null,null,null,null,null,null,null,null,null,null,null,2,null,"c1",null,null,null,null,null,null,null,null,null,null,null,null,null,null,null,null,null,null,null,null,null,null,null,null,null,null,null,null,null,null,null,null,null,null,null,null,null,null,null,2,null,"c3"]
[null,null,null,null,null,null,null,null,null,null,null,null,null,null,null,null,null,null,null,null,null,null,null,null,null,null,null,null,null,null,null,null,null,{"$f":"IF(AH73=1,VLOOKUP(AJ73,fgamedata!B2:E25,3,FALSE),IF(AH73=2,VLOOKUP(AJ73,fgamedata!G2:J25,3,FALSE),VLOOKUP(AJ73,fgamedata!L2:O25,3,FALSE)))","v":38},null,null,null,null,null,null,null,null,null,null,null,null,null,null,null,{"$f":"IF(AX42=1,VLOOKUP(AZ42,fgamedata!B2:E25,4,FALSE),IF(AX42=2,VLOOKUP(AZ42,fgamedata!G2:J25,4,FALSE),VLOOKUP(AZ42,fgamedata!L2:O25,4,FALSE)))","v":27},null,null,null,null,null,null,null,null,null,null,null,null,null,null,null,null,null,null,null,null,null,null,null,null,null,{"$f":"IF(BX42=1,VLOOKUP(BZ42,fgamedata!B2:E25,4,FALSE),IF(BX42=2,VLOOKUP(BZ42,fgamedata!G2:J25,4,FALSE),VLOOKUP(BZ42,fgamedata!L2:O25,4,FALSE)))","v":102},null,null,null,null,null,null,null,null,null,null,null,null,null,null,null,{"$f":"IF($CN$73=1,VLOOKUP($CP$73,fgamedata!$B$2:$E$25,3,FALSE),IF($CN470=2,VLOOKUP($CP$73,fgamedata!$G$2:$J$25,3,FALSE),VLOOKUP($CP$73,fgamedata!$L$2:$O$25,3,FALSE)))","v":34}]
[]
[8,null,{"$f":"VLOOKUP(A66,fsystem!A2:C26,2,FALSE)","v":"西北見"},null,null,null,{"$f":"VLOOKUP(A66,fsystem!A2:C26,3,FALSE)","v":"北見北光"},null,null,null,null,null,null,null,null,null,null,null,null,null,null,null,null,null,null,null,null,null,null,null,null,null,null,null,null,null,null,null,null,null,null,null,null,null,null,null,null,null,null,null,null,null,null,null,null,null,null,null,null,null,null,null,null,null,null,null,null,null,null,null,null,null,null,null,null,null,null,null,null,null,null,null,null,null,null,null,null,null,null,null,null,null,null,null,null,null,null,null,null,null,null,null,null,null,null,null,null,{"$f":"VLOOKUP(DW66,fsystem!A2:C26,3,FALSE)","v":"斜里・第二"},null,null,null,null,null,null,null,null,null,null,null,null,null,null,{"$f":"VLOOKUP(DW66,fsystem!A2:C26,2,FALSE)","v":"斜網"},null,null,null,16]
[null,null,null,null,null,null,null,null,null,null,null,null,null,null,null,null,null,null,null,null,null,null,null,null,null,null,null,null,null,null,null,null,null,null,null,null,null,null,null,null,null,null,null,null,null,null,null,null,null,null,null,null,null,null,null,null,null,"代表決定戦"]
[]
[null,null,null,null,null,null,null,null,null,null,null,null,null,null,null,null,null,null,null,null,null,null,null,null,null,null,null,null,null,null,null,null,null,null,null,null,null,null,null,null,null,null,null,null,null,null,null,null,null,null,null,null,null,null,null,null,null,null,null,null,null,null,null,null,null,null,null,null,null,null,null,null,null,null,null,null,null,null,null,null,null,null,null,null,null,null,null,null,null,null,null,null,null,null,null,null,null,null,null,1,null,"b1"]
[]
[null,null,null,null,null,null,null,null,null,null,null,null,null,null,null,null,null,null,null,null,null,null,null,null,null,null,null,null,null,null,null,null,null,null,null,null,null,null,null,null,null,null,null,null,null,null,null,null,null,{"$f":"女子結果3日目!B25","v":"北見小泉"},null,null,null,null,null,null,{"$f":"SUM(BI71:BL80)","v":61},null,null,null,{"$f":"女子結果3日目!E25","v":12},null,null,null,"-",null,{"$f":"女子結果3日目!G25","v":11},null,null,null,{"$f":"SUM(BO71:BR80)","v":70},null,null,null,{"$f":"女子結果3日目!J25","v":"美幌北"}]
[null,null,{"$f":"VLOOKUP(A72,fsystem!A2:C26,2,FALSE)","v":{"$error":"#N/A"}},null,null,null,{"$f":"VLOOKUP(A72,fsystem!A2:C26,3,FALSE)","v":{"$error":"#N/A"}},null,null,null,null,null,null,null,null,null,null,null,null,null,null,null,null,null,null,null,null,null,null,null,null,null,null,null,null,null,null,null,null,null,null,null,null,null,null,null,null,null,null,null,null,null,null,null,null,null,null,null,null,null,null,null,null,null,null,null,null,null,null,null,null,null,null,null,null,null,null,null,null,null,null,null,null,null,null,null,null,null,null,null,null,null,null,null,null,null,null,null,null,null,null,null,null,null,null,null,null,{"$f":"VLOOKUP(DW72,fsystem!A2:C26,3,FALSE)","v":{"$error":"#N/A"}},null,null,null,null,null,null,null,null,null,null,null,null,null,null,{"$f":"VLOOKUP(DW72,fsystem!A2:C26,2,FALSE)","v":{"$error":"#N/A"}}]
[null,null,null,null,null,null,null,null,null,null,null,null,null,null,null,null,null,null,null,null,null,null,null,null,null,null,null,null,null,null,null,null,null,1,null,"b3",null,null,null,null,null,null,null,null,null,null,null,null,null,null,null,null,null,null,null,null,null,null,null,null,{"$f":"女子結果3日目!E26","v":22},null,null,null,"-",null,{"$f":"女子結果3日目!G26","v":10},null,null,null,null,null,null,null,null,null,null,null,null,null,null,null,null,null,null,null,null,null,null,null,null,1,null,"b6"]
[null,null,null,null,null,null,null,null,null,null,null,null,null,null,null,null,null,null,null,null,null,null,null,null,null,null,null,null,null,null,null,null,null,null,null,null,null,null,null,null,null,{"$f":"IF(AP63=1,VLOOKUP(AR63,fgamedata!B2:E25,4,FALSE),IF(AP63=2,VLOOKUP(AR63,fgamedata!G2:J25,4,FALSE),VLOOKUP(AR63,fgamedata!L2:O25,4,FALSE)))","v":63},null,null,null,null,null,null,null,null,null,null,null,null,null,null,null,null,null,null,null,null,null,null,null,null,null,null,null,null,null,null,null,null,null,null,null,null,null,null,null,null,null,{"$f":"IF(CF63=1,VLOOKUP(CH63,fgamedata!B2:E25,4,FALSE),IF(CF63=2,VLOOKUP(CH63,fgamedata!G2:J25,4,FALSE),VLOOKUP(CH63,fgamedata!L2:O25,4,FALSE)))","v":73}]
[null,null,null,null,null,null,null,null,null,null,null,null,null,null,null,null,null,null,null,null,null,null,null,null,null,null,null,null,null,null,null,null,null,null,null,null,null,null,null,null,null,null,null,null,null,null,null,null,null,null,null,null,null,null,null,null,null,null,null,null,{"$f":"女子結果3日目!E27","v":12},null,null,null,"-",null,{"$f":"女子結果3日目!G27","v":27}]
[]
[null,null,null,null,null,null,null,null,null,null,null,null,null,null,null,null,null,null,null,null,null,null,null,null,null,null,null,null,null,null,null,null,null,null,null,null,null,null,null,null,null,null,null,null,null,null,null,null,null,null,null,null,null,null,null,null,null,null,null,null,{"$f":"女子結果3日目!E28","v":15},null,null,null,"-",null,{"$f":"女子結果3日目!G28","v":22}]
[9,null,{"$f":"VLOOKUP(A78,fsystem!A2:C26,2,FALSE)","v":"東北見"},null,null,null,{"$f":"VLOOKUP(A78,fsystem!A2:C26,3,FALSE)","v":"北見小泉"},null,null,null,null,null,null,null,null,null,null,null,null,null,null,null,null,null,null,null,null,null,null,null,null,null,null,null,null,null,null,null,null,null,null,null,null,null,null,null,null,null,null,null,null,null,null,null,null,null,null,null,null,null,null,null,null,null,null,null,null,null,null,null,null,null,null,null,null,null,null,null,null,null,null,null,null,null,null,null,null,null,null,null,null,null,null,null,null,null,null,null,null,null,null,null,null,null,null,null,null,{"$f":"VLOOKUP(DW78,fsystem!A2:C26,3,FALSE)","v":"置戸"},null,null,null,null,null,null,null,null,null,null,null,null,null,null,{"$f":"VLOOKUP(DW78,fsystem!A2:C26,2,FALSE)","v":"西北見"},null,null,null,17]
[null,null,null,null,null,null,null,null,null,null,null,null,null,null,null,null,null,null,null,null,null,null,null,null,null,null,null,null,null,null,null,null,null,{"$f":"IF(AH73=1,VLOOKUP(AJ73,fgamedata!B2:E25,4,FALSE),IF(AH73=2,VLOOKUP(AJ73,fgamedata!G2:J25,4,FALSE),VLOOKUP(AJ73,fgamedata!L2:O25,4,FALSE)))","v":99},null,null,null,null,null,null,null,null,null,null,null,null,null,null,null,null,null,null,null,null,null,null,null,null,null,null,{"$f":"女子結果3日目!E33","v":0},null,null,null,"-",null,{"$f":"女子結果3日目!G33","v":0},null,null,null,null,null,null,null,null,null,null,null,null,null,null,null,null,null,null,null,null,null,null,null,null,{"$f":"IF(CN73=1,VLOOKUP(CP73,fgamedata!B2:E25,4,FALSE),IF(CN73=2,VLOOKUP(CP73,fgamedata!G2:J25,4,FALSE),VLOOKUP(CP73,fgamedata!L2:O25,4,FALSE)))","v":79}]

{"sheet":"msystem","index":8,"n_rows":26,"n_cols":9,"rows_kept":26,"cut":false,"hidden":false,"merged":[]}
["整理番号","地区","学校名","西北見","斜網","遠紋","東北見","クラブ"]
[1,{"$f":"IF(I2=0,\"\",IF(I2=1,\"西北見\",IF(I2=2,\"斜網\",IF(I2=3,\"遠紋\",IF(I2=4,\"東北見\",IF(I2=5,\"クラブ\",\"\"))))))","v":"東北見"},"北見南",{"$f":"COUNTIF(C2,\"*光西*\")+COUNTIF(C2,\"*東相内*\")+COUNTIF(C2,\"*北光*\")+COUNTIF(C2,\"*北見北*\")+COUNTIF(C2,\"*高栄*\")+COUNTIF(C2,\"*留辺蘂*\")","v":0},{"$f":"COUNTIF(C2,\"*斜里*\")+COUNTIF(C2,\"*網走*\")+COUNTIF(C2,\"*小清水*\")+COUNTIF(C2,\"*清里*\")","v":0},{"$f":"COUNTIF(C2,\"*紋別*\")+COUNTIF(C2,\"*遠軽*\")+COUNTIF(C2,\"*湧別*\")+COUNTIF(C2,\"*佐呂間*\")","v":0},{"$f":"COUNTIF(C2,\"*端野*\")+COUNTIF(C2,\"*美幌*\")+COUNTIF(C2,\"*女満別*\")+COUNTIF(C2,\"*小泉*\")+COUNTIF(C2,\"*津別*\")+COUNTIF(C2,\"*小泉*\")+COUNTIF(C2,\"*北見南*\")","v":1},{"$f":"COUNTIF(C2,\"*okhotsk.black.eagles*\")+COUNTIF(C2,\"*MUKU basketballclub*\")+COUNTIF(C2,\"BLOSSOM\")+COUNTIF(C2,\"*置戸*\")+COUNTIF(C2,\"*興部*\")+COUNTIF(C2,\"*mukuOX basketballclub*\")","v":0},{"$f":"IF(C2=\"\",\"\",MATCH(MAX(D2:H2),D2:H2,0))","v":4}]
[2,{"$f":"IF(I3=0,\"\",IF(I3=1,\"西北見\",IF(I3=2,\"斜網\",IF(I3=3,\"遠紋\",IF(I3=4,\"東北見\",IF(I3=5,\"クラブ\",\"\"))))))","v":"遠紋"},"遠軽",{"$f":"COUNTIF(C3,\"*光西*\")+COUNTIF(C3,\"*東相内*\")+COUNTIF(C3,\"*北光*\")+COUNTIF(C3,\"*北見北*\")+COUNTIF(C3,\"*高栄*\")+COUNTIF(C3,\"*留辺蘂*\")","v":0},{"$f":"COUNTIF(C3,\"*斜里*\")+COUNTIF(C3,\"*網走*\")+COUNTIF(C3,\"*小清水*\")+COUNTIF(C3,\"*清里*\")","v":0},{"$f":"COUNTIF(C3,\"*紋別*\")+COUNTIF(C3,\"*遠軽*\")+COUNTIF(C3,\"*湧別*\")+COUNTIF(C3,\"*佐呂間*\")","v":1},{"$f":"COUNTIF(C3,\"*端野*\")+COUNTIF(C3,\"*美幌*\")+COUNTIF(C3,\"*女満別*\")+COUNTIF(C3,\"*小泉*\")+COUNTIF(C3,\"*津別*\")+COUNTIF(C3,\"*小泉*\")+COUNTIF(C3,\"*北見南*\")","v":0},{"$f":"COUNTIF(C3,\"*okhotsk.black.eagles*\")+COUNTIF(C3,\"*MUKU basketballclub*\")+COUNTIF(C3,\"BLOSSOM\")+COUNTIF(C3,\"*置戸*\")+COUNTIF(C3,\"*興部*\")+COUNTIF(C3,\"*mukuOX basketballclub*\")","v":0},{"$f":"IF(C3=\"\",\"\",MATCH(MAX(D3:H3),D3:H3,0))","v":3}]
[3,"クラブ","MUKU basketballclub",0,0,0,0,1,5]
[4,"東北見","津別",0,0,0,1,0,4]
[5,"遠紋","上湧別・ゆうべつ・遠軽南",0,0,2,0,0,3]
[6,"クラブ","mukuOX basketballclub",0,0,0,0,1,5]
[7,"斜網","網走第二",0,1,0,0,0,2]
[8,"東北見","女満別",0,0,0,1,0,4]
[9,"斜網","斜里",0,1,0,0,0,2]
[10,"東北見","美幌",0,0,0,1,0,4]
[11,"西北見","北見高栄",1,0,0,0,0,1]
[12,"クラブ","okhotsk.black.eagles",0,0,0,0,1,5]
[13,"遠紋","紋別潮見・紋別",0,0,1,0,0,3]
[14,"西北見","北見北光",2,0,0,0,0,1]
[15,"クラブ","置戸ジュニア",0,0,0,0,1,5]
[16,"クラブ","BLOSSOM",0,0,0,0,1,5]
[17,"西北見","北見北",1,0,0,0,0,1]
[18,"遠紋","佐呂間",0,0,1,0,0,3]
[19,"クラブ","興部",0,0,0,0,1,5]
[20,"斜網","網走第一",0,1,0,0,0,2]
[21,"東北見","美幌北",0,0,0,1,0,4]
[22,"西北見","北見光西・東相内",2,0,0,0,0,1]
[23,{"$f":"IF(I24=0,\"\",IF(I24=1,\"西北見\",IF(I24=2,\"斜網\",IF(I24=3,\"遠紋\",IF(I24=4,\"東北見\",\"\")))))","v":"斜網"},"網走第三",0,1,0,0,0,{"$f":"IF(C24=\"\",\"\",MATCH(MAX(D24:G24),D24:G24,0))","v":2}]
[24,"東北見","北見小泉・端野",0,0,0,3,0,4]
[25,"",null,0,0,0,0,0,""]

{"sheet":"fsystem","index":9,"n_rows":26,"n_cols":9,"rows_kept":26,"cut":false,"hidden":false,"merged":[]}
["整理番号","地区","学校名","西北見","斜網","遠紋","東北見","クラブ"]
[1,{"$f":"IF(I2=0,\"\",IF(I2=1,\"西北見\",IF(I2=2,\"斜網\",IF(I2=3,\"遠紋\",IF(I2=4,\"東北見\",IF(I2=5,\"クラブ\",\"\"))))))","v":"クラブ"},"okhotsk.black.eagles",{"$f":"COUNTIF(C2,\"*光西*\")+COUNTIF(C2,\"*東相内*\")+COUNTIF(C2,\"*北光*\")+COUNTIF(C2,\"*北見北*\")+COUNTIF(C2,\"*高栄*\")+COUNTIF(C2,\"*留辺蘂*\")","v":0},{"$f":"COUNTIF(C2,\"*斜里*\")+COUNTIF(C2,\"*網走*\")+COUNTIF(C2,\"*小清水*\")+COUNTIF(C2,\"*清里*\")","v":0},{"$f":"COUNTIF(C2,\"*紋別*\")+COUNTIF(C2,\"*遠軽*\")+COUNTIF(C2,\"*興部*\")+COUNTIF(C2,\"*湧別*\")+COUNTIF(C2,\"*佐呂間*\")","v":0},{"$f":"COUNTIF(C2,\"*端野*\")+COUNTIF(C2,\"*美幌*\")+COUNTIF(C2,\"*女満別*\")+COUNTIF(C2,\"*小泉*\")+COUNTIF(C2,\"*津別*\")+COUNTIF(C2,\"*小泉*\")+COUNTIF(C2,\"*北見南*\")","v":0},{"$f":"COUNTIF(C2,\"*okhotsk.black.eagles*\")+COUNTIF(C2,\"*北見ポプラガールズ　スパークス*\")","v":1},{"$f":"IF(C2=\"\",\"\",MATCH(MAX(D2:H2),D2:H2,0))","v":5}]
[2,{"$f":"IF(I3=0,\"\",IF(I3=1,\"西北見\",IF(I3=2,\"斜網\",IF(I3=3,\"遠紋\",IF(I3=4,\"東北見\",IF(I3=5,\"クラブ\",\"\"))))))","v":"クラブ"},"北見ポプラガールズ　スパークス",{"$f":"COUNTIF(C3,\"*光西*\")+COUNTIF(C3,\"*東相内*\")+COUNTIF(C3,\"*北光*\")+COUNTIF(C3,\"*北見北*\")+COUNTIF(C3,\"*高栄*\")+COUNTIF(C3,\"*留辺蘂*\")","v":0},0,0,{"$f":"COUNTIF(C3,\"*端野*\")+COUNTIF(C3,\"*美幌*\")+COUNTIF(C3,\"*女満別*\")+COUNTIF(C3,\"*小泉*\")+COUNTIF(C3,\"*津別*\")+COUNTIF(C3,\"*小泉*\")+COUNTIF(C3,\"*北見南*\")","v":0},{"$f":"COUNTIF(C3,\"*okhotsk.black.eagles*\")+COUNTIF(C3,\"*北見ポプラガールズ　スパークス*\")","v":1},{"$f":"IF(C3=\"\",\"\",MATCH(MAX(D3:H3),D3:H3,0))","v":5}]
[3,"斜網","網走第三",0,1,0,0,0,2]
[4,"斜網","網走第一",0,1,0,0,0,2]
[5,"西北見","北見光西",1,0,0,0,0,1]
[6,"遠紋","上湧別・ゆうべつ・佐呂間・紋別潮見",0,0,3,0,0,3]
[7,"西北見","東相内",1,0,0,0,0,1]
[8,"西北見","北見北光",2,0,0,0,0,1]
[9,"東北見","北見小泉",0,0,0,2,0,4]
[10,"東北見","美幌北",0,0,0,1,0,4]
[11,"西北見","高栄・留辺蘂",2,0,0,0,0,1]
[12,"遠紋","遠軽",0,0,1,0,0,3]
[13,"遠紋","遠軽南",0,0,1,0,0,3]
[14,"西北見","北見北",1,0,0,0,0,1]
[15,"東北見","女満別",0,0,0,1,0,4]
[16,"斜網","斜里・第二",0,1,0,0,0,2]
[17,"西北見","置戸",0,0,0,0,0,1]
[18,"",null,0,0,0,0,null,{"$f":"IF(C19=\"\",\"\",MATCH(MAX(D19:G19),D19:G19,0))","v":""}]
[19,{"$f":"IF(I20=0,\"\",IF(I20=1,\"西北見\",IF(I20=2,\"斜網\",IF(I20=3,\"遠紋\",IF(I20=4,\"東北見\",\"\")))))","v":""},null,0,0,0,0,null,""]
[20,"",null,0,0,0,0,null,""]
[21,"",null,0,0,0,0,null,""]
[22,"",null,0,0,0,0,null,""]
[23,"",null,0,0,0,0,null,""]
[24,"",null,0,0,0,0,null,""]
[25,"",null,0,0,0,0,null,""]

{"sheet":"mgamedata","index":10,"n_rows":25,"n_cols":15,"rows_kept":25,"cut":false,"hidden":false,"merged":[]}
["m"]
["Day1",{"$f":"INDEX(男子結果1日目!A:A,(ROW()-1)*7-3)","v":"a1"},{"$f":"VLOOKUP(B2,男子結果1日目!$A:$K,2,FALSE)&\"-\"&VLOOKUP(B2,男子結果1日目!$A:$K,10,FALSE)","v":"北見北光-置戸ジュニア"},{"$f":"VLOOKUP(B2,男子結果1日目!$A:$K,4,FALSE)","v":68},{"$f":"VLOOKUP(B2,男子結果1日目!$A:$K,8,FALSE)","v":51},"Day2",{"$f":"INDEX(男子結果2日目!A:A,(ROW()-1)*7-3)","v":"a1"},{"$f":"VLOOKUP(G2,男子結果2日目!$A:$K,2,FALSE)&\"-\"&VLOOKUP(G2,男子結果2日目!$A:$K,10,FALSE)","v":"北見南-遠軽"},{"$f":"VLOOKUP(G2,男子結果2日目!$A:$K,4,FALSE)","v":50},{"$f":"VLOOKUP(G2,男子結果2日目!$A:$K,8,FALSE)","v":69},"Day3",{"$f":"INDEX(男子結果3日目!A:A,(ROW()-1)*7-3)","v":"a2"},{"$f":"VLOOKUP(L2,男子結果3日目!$A:$K,2,FALSE)&\"-\"&VLOOKUP(L2,男子結果3日目!$A:$K,10,FALSE)","v":"mukuOX basketballclub-okhotsk.black.eagles"},{"$f":"VLOOKUP(L2,男子結果3日目!$A:$K,4,FALSE)","v":113},{"$f":"VLOOKUP(L2,男子結果3日目!$A:$K,8,FALSE)","v":41}]
[null,{"$f":"INDEX(男子結果1日目!A:A,(ROW()-1)*7-3)","v":"a4"},{"$f":"VLOOKUP(B3,男子結果1日目!$A:$K,2,FALSE)&\"-\"&VLOOKUP(B3,男子結果1日目!$A:$K,10,FALSE)","v":"BLOSSOM-北見北"},{"$f":"VLOOKUP(B3,男子結果1日目!$A:$K,4,FALSE)","v":46},{"$f":"VLOOKUP(B3,男子結果1日目!$A:$K,8,FALSE)","v":82},null,{"$f":"INDEX(男子結果2日目!A:A,(ROW()-1)*7-3)","v":"a2"},{"$f":"VLOOKUP(G3,男子結果2日目!$A:$K,2,FALSE)&\"-\"&VLOOKUP(G3,男子結果2日目!$A:$K,10,FALSE)","v":"紋別潮見・紋別-北見北光"},{"$f":"VLOOKUP(G3,男子結果2日目!$A:$K,4,FALSE)","v":56},{"$f":"VLOOKUP(G3,男子結果2日目!$A:$K,8,FALSE)","v":49},null,{"$f":"INDEX(男子結果3日目!A:A,(ROW()-1)*7-3)","v":"b2"},{"$f":"VLOOKUP(L3,男子結果3日目!$A:$K,2,FALSE)&\"-\"&VLOOKUP(L3,男子結果3日目!$A:$K,10,FALSE)","v":"北見北-北見小泉・端野"},{"$f":"VLOOKUP(L3,男子結果3日目!$A:$K,4,FALSE)","v":44},{"$f":"VLOOKUP(L3,男子結果3日目!$A:$K,8,FALSE)","v":52}]
[null,{"$f":"INDEX(男子結果1日目!A:A,(ROW()-1)*7-3)","v":"b1"},{"$f":"VLOOKUP(B4,男子結果1日目!$A:$K,2,FALSE)&\"-\"&VLOOKUP(B4,男子結果1日目!$A:$K,10,FALSE)","v":"遠軽-MUKU basketballclub"},{"$f":"VLOOKUP(B4,男子結果1日目!$A:$K,4,FALSE)","v":56},{"$f":"VLOOKUP(B4,男子結果1日目!$A:$K,8,FALSE)","v":45},null,{"$f":"INDEX(男子結果2日目!A:A,(ROW()-1)*7-3)","v":"a3"},{"$f":"VLOOKUP(G4,男子結果2日目!$A:$K,2,FALSE)&\"-\"&VLOOKUP(G4,男子結果2日目!$A:$K,10,FALSE)","v":"興部-美幌北"},{"$f":"VLOOKUP(G4,男子結果2日目!$A:$K,4,FALSE)","v":31},{"$f":"VLOOKUP(G4,男子結果2日目!$A:$K,8,FALSE)","v":60},null,{"$f":"INDEX(男子結果3日目!A:A,(ROW()-1)*7-3)","v":"a4"},{"$f":"VLOOKUP(L4,男子結果3日目!$A:$K,2,FALSE)&\"-\"&VLOOKUP(L4,男子結果3日目!$A:$K,10,FALSE)","v":"mukuOX basketballclub-北見小泉・端野"},{"$f":"VLOOKUP(L4,男子結果3日目!$A:$K,4,FALSE)","v":128},{"$f":"VLOOKUP(L4,男子結果3日目!$A:$K,8,FALSE)","v":44}]
[null,{"$f":"INDEX(男子結果1日目!A:A,(ROW()-1)*7-3)","v":"b4"},{"$f":"VLOOKUP(B5,男子結果1日目!$A:$K,2,FALSE)&\"-\"&VLOOKUP(B5,男子結果1日目!$A:$K,10,FALSE)","v":"津別-上湧別・ゆうべつ・遠軽南"},{"$f":"VLOOKUP(B5,男子結果1日目!$A:$K,4,FALSE)","v":66},{"$f":"VLOOKUP(B5,男子結果1日目!$A:$K,8,FALSE)","v":56},null,{"$f":"INDEX(男子結果2日目!A:A,(ROW()-1)*7-3)","v":"a4"},{"$f":"VLOOKUP(G5,男子結果2日目!$A:$K,2,FALSE)&\"-\"&VLOOKUP(G5,男子結果2日目!$A:$K,10,FALSE)","v":"網走第二-斜里"},{"$f":"VLOOKUP(G5,男子結果2日目!$A:$K,4,FALSE)","v":28},{"$f":"VLOOKUP(G5,男子結果2日目!$A:$K,8,FALSE)","v":107},null,{"$f":"INDEX(男子結果3日目!A:A,(ROW()-1)*7-3)","v":"b4"},{"$f":"VLOOKUP(L5,男子結果3日目!$A:$K,2,FALSE)&\"-\"&VLOOKUP(L5,男子結果3日目!$A:$K,10,FALSE)","v":"okhotsk.black.eagles-北見北"},{"$f":"VLOOKUP(L5,男子結果3日目!$A:$K,4,FALSE)","v":78},{"$f":"VLOOKUP(L5,男子結果3日目!$A:$K,8,FALSE)","v":36}]
[null,{"$f":"INDEX(男子結果1日目!A:A,(ROW()-1)*7-3)","v":"b5"},{"$f":"VLOOKUP(B6,男子結果1日目!$A:$K,2,FALSE)&\"-\"&VLOOKUP(B6,男子結果1日目!$A:$K,10,FALSE)","v":"女満別-斜里"},{"$f":"VLOOKUP(B6,男子結果1日目!$A:$K,4,FALSE)","v":23},{"$f":"VLOOKUP(B6,男子結果1日目!$A:$K,8,FALSE)","v":45},null,{"$f":"INDEX(男子結果2日目!A:A,(ROW()-1)*7-3)","v":"a5"},{"$f":"VLOOKUP(G6,男子結果2日目!$A:$K,2,FALSE)&\"-\"&VLOOKUP(G6,男子結果2日目!$A:$K,10,FALSE)","v":"遠軽-mukuOX basketballclub"},{"$f":"VLOOKUP(G6,男子結果2日目!$A:$K,4,FALSE)","v":19},{"$f":"VLOOKUP(G6,男子結果2日目!$A:$K,8,FALSE)","v":142},null,{"$f":"INDEX(男子結果3日目!A:A,(ROW()-1)*7-3)","v":0},{"$f":"VLOOKUP(L6,男子結果3日目!$A:$K,2,FALSE)&\"-\"&VLOOKUP(L6,男子結果3日目!$A:$K,10,FALSE)","v":{"$error":"#N/A"}},{"$f":"VLOOKUP(L6,男子結果3日目!$A:$K,4,FALSE)","v":{"$error":"#N/A"}},{"$f":"VLOOKUP(L6,男子結果3日目!$A:$K,8,FALSE)","v":{"$error":"#N/A"}}]
[null,{"$f":"INDEX(男子結果1日目!A:A,(ROW()-1)*7-3)","v":"c2"},{"$f":"VLOOKUP(B7,男子結果1日目!$A:$K,2,FALSE)&\"-\"&VLOOKUP(B7,男子結果1日目!$A:$K,10,FALSE)","v":"網走第一-美幌北"},{"$f":"VLOOKUP(B7,男子結果1日目!$A:$K,4,FALSE)","v":40},{"$f":"VLOOKUP(B7,男子結果1日目!$A:$K,8,FALSE)","v":50},null,{"$f":"INDEX(男子結果2日目!A:A,(ROW()-1)*7-3)","v":"a6"},{"$f":"VLOOKUP(G7,男子結果2日目!$A:$K,2,FALSE)&\"-\"&VLOOKUP(G7,男子結果2日目!$A:$K,10,FALSE)","v":"斜里-okhotsk.black.eagles"},{"$f":"VLOOKUP(G7,男子結果2日目!$A:$K,4,FALSE)","v":54},{"$f":"VLOOKUP(G7,男子結果2日目!$A:$K,8,FALSE)","v":90},null,{"$f":"INDEX(男子結果3日目!A:A,(ROW()-1)*7-3)","v":0},{"$f":"VLOOKUP(L7,男子結果3日目!$A:$K,2,FALSE)&\"-\"&VLOOKUP(L7,男子結果3日目!$A:$K,10,FALSE)","v":{"$error":"#N/A"}},{"$f":"VLOOKUP(L7,男子結果3日目!$A:$K,4,FALSE)","v":{"$error":"#N/A"}},{"$f":"VLOOKUP(L7,男子結果3日目!$A:$K,8,FALSE)","v":{"$error":"#N/A"}}]
[null,{"$f":"INDEX(男子結果1日目!A:A,(ROW()-1)*7-3)","v":"c4"},{"$f":"VLOOKUP(B8,男子結果1日目!$A:$K,2,FALSE)&\"-\"&VLOOKUP(B8,男子結果1日目!$A:$K,10,FALSE)","v":"美幌-北見高栄"},{"$f":"VLOOKUP(B8,男子結果1日目!$A:$K,4,FALSE)","v":75},{"$f":"VLOOKUP(B8,男子結果1日目!$A:$K,8,FALSE)","v":61},null,{"$f":"INDEX(男子結果2日目!A:A,(ROW()-1)*7-3)","v":"b1"},{"$f":"VLOOKUP(G8,男子結果2日目!$A:$K,2,FALSE)&\"-\"&VLOOKUP(G8,男子結果2日目!$A:$K,10,FALSE)","v":"津別-MUKU basketballclub"},{"$f":"VLOOKUP(G8,男子結果2日目!$A:$K,4,FALSE)","v":30},{"$f":"VLOOKUP(G8,男子結果2日目!$A:$K,8,FALSE)","v":111},null,{"$f":"INDEX(男子結果3日目!A:A,(ROW()-1)*7-3)","v":0},{"$f":"VLOOKUP(L8,男子結果3日目!$A:$K,2,FALSE)&\"-\"&VLOOKUP(L8,男子結果3日目!$A:$K,10,FALSE)","v":{"$error":"#N/A"}},{"$f":"VLOOKUP(L8,男子結果3日目!$A:$K,4,FALSE)","v":{"$error":"#N/A"}},{"$f":"VLOOKUP(L8,男子結果3日目!$A:$K,8,FALSE)","v":{"$error":"#N/A"}}]
[null,{"$f":"INDEX(男子結果1日目!A:A,(ROW()-1)*7-3)","v":"c5"},{"$f":"VLOOKUP(B9,男子結果1日目!$A:$K,2,FALSE)&\"-\"&VLOOKUP(B9,男子結果1日目!$A:$K,10,FALSE)","v":"北見光西・東相内-網走第三"},{"$f":"VLOOKUP(B9,男子結果1日目!$A:$K,4,FALSE)","v":56},{"$f":"VLOOKUP(B9,男子結果1日目!$A:$K,8,FALSE)","v":54},null,{"$f":"INDEX(男子結果2日目!A:A,(ROW()-1)*7-3)","v":"b2"},{"$f":"VLOOKUP(G9,男子結果2日目!$A:$K,2,FALSE)&\"-\"&VLOOKUP(G9,男子結果2日目!$A:$K,10,FALSE)","v":"北見北-佐呂間"},{"$f":"VLOOKUP(G9,男子結果2日目!$A:$K,4,FALSE)","v":68},{"$f":"VLOOKUP(G9,男子結果2日目!$A:$K,8,FALSE)","v":36},null,{"$f":"INDEX(男子結果3日目!A:A,(ROW()-1)*7-3)","v":0},{"$f":"VLOOKUP(L9,男子結果3日目!$A:$K,2,FALSE)&\"-\"&VLOOKUP(L9,男子結果3日目!$A:$K,10,FALSE)","v":{"$error":"#N/A"}},{"$f":"VLOOKUP(L9,男子結果3日目!$A:$K,4,FALSE)","v":{"$error":"#N/A"}},{"$f":"VLOOKUP(L9,男子結果3日目!$A:$K,8,FALSE)","v":{"$error":"#N/A"}}]
[null,{"$f":"INDEX(男子結果1日目!A:A,(ROW()-1)*7-3)","v":0},{"$f":"VLOOKUP(B10,男子結果1日目!$A:$K,2,FALSE)&\"-\"&VLOOKUP(B10,男子結果1日目!$A:$K,10,FALSE)","v":{"$error":"#N/A"}},{"$f":"VLOOKUP(B10,男子結果1日目!$A:$K,4,FALSE)","v":{"$error":"#N/A"}},{"$f":"VLOOKUP(B10,男子結果1日目!$A:$K,8,FALSE)","v":{"$error":"#N/A"}},null,{"$f":"INDEX(男子結果2日目!A:A,(ROW()-1)*7-3)","v":"b3"},{"$f":"VLOOKUP(G10,男子結果2日目!$A:$K,2,FALSE)&\"-\"&VLOOKUP(G10,男子結果2日目!$A:$K,10,FALSE)","v":"北見光西・東相内-北見小泉・端野"},{"$f":"VLOOKUP(G10,男子結果2日目!$A:$K,4,FALSE)","v":50},{"$f":"VLOOKUP(G10,男子結果2日目!$A:$K,8,FALSE)","v":67},null,{"$f":"INDEX(男子結果3日目!A:A,(ROW()-1)*7-3)","v":0},{"$f":"VLOOKUP(L10,男子結果3日目!$A:$K,2,FALSE)&\"-\"&VLOOKUP(L10,男子結果3日目!$A:$K,10,FALSE)","v":{"$error":"#N/A"}},{"$f":"VLOOKUP(L10,男子結果3日目!$A:$K,4,FALSE)","v":{"$error":"#N/A"}},{"$f":"VLOOKUP(L10,男子結果3日目!$A:$K,8,FALSE)","v":{"$error":"#N/A"}}]
[null,{"$f":"INDEX(男子結果1日目!A:A,(ROW()-1)*7-3)","v":0},{"$f":"VLOOKUP(B11,男子結果1日目!$A:$K,2,FALSE)&\"-\"&VLOOKUP(B11,男子結果1日目!$A:$K,10,FALSE)","v":{"$error":"#N/A"}},{"$f":"VLOOKUP(B11,男子結果1日目!$A:$K,4,FALSE)","v":{"$error":"#N/A"}},{"$f":"VLOOKUP(B11,男子結果1日目!$A:$K,8,FALSE)","v":{"$error":"#N/A"}},null,{"$f":"INDEX(男子結果2日目!A:A,(ROW()-1)*7-3)","v":"b4"},{"$f":"VLOOKUP(G11,男子結果2日目!$A:$K,2,FALSE)&\"-\"&VLOOKUP(G11,男子結果2日目!$A:$K,10,FALSE)","v":"美幌-okhotsk.black.eagles"},{"$f":"VLOOKUP(G11,男子結果2日目!$A:$K,4,FALSE)","v":13},{"$f":"VLOOKUP(G11,男子結果2日目!$A:$K,8,FALSE)","v":146},null,{"$f":"INDEX(男子結果3日目!A:A,(ROW()-1)*7-3)","v":0},{"$f":"VLOOKUP(L11,男子結果3日目!$A:$K,2,FALSE)&\"-\"&VLOOKUP(L11,男子結果3日目!$A:$K,10,FALSE)","v":{"$error":"#N/A"}},{"$f":"VLOOKUP(L11,男子結果3日目!$A:$K,4,FALSE)","v":{"$error":"#N/A"}},{"$f":"VLOOKUP(L11,男子結果3日目!$A:$K,8,FALSE)","v":{"$error":"#N/A"}}]
[null,{"$f":"INDEX(男子結果1日目!A:A,(ROW()-1)*7-3)","v":0},{"$f":"VLOOKUP(B12,男子結果1日目!$A:$K,2,FALSE)&\"-\"&VLOOKUP(B12,男子結果1日目!$A:$K,10,FALSE)","v":{"$error":"#N/A"}},{"$f":"VLOOKUP(B12,男子結果1日目!$A:$K,4,FALSE)","v":{"$error":"#N/A"}},{"$f":"VLOOKUP(B12,男子結果1日目!$A:$K,8,FALSE)","v":{"$error":"#N/A"}},null,{"$f":"INDEX(男子結果2日目!A:A,(ROW()-1)*7-3)","v":"b5"},{"$f":"VLOOKUP(G12,男子結果2日目!$A:$K,2,FALSE)&\"-\"&VLOOKUP(G12,男子結果2日目!$A:$K,10,FALSE)","v":"紋別潮見・紋別-北見北"},{"$f":"VLOOKUP(G12,男子結果2日目!$A:$K,4,FALSE)","v":40},{"$f":"VLOOKUP(G12,男子結果2日目!$A:$K,8,FALSE)","v":68},null,{"$f":"INDEX(男子結果3日目!A:A,(ROW()-1)*7-3)","v":0},{"$f":"VLOOKUP(L12,男子結果3日目!$A:$K,2,FALSE)&\"-\"&VLOOKUP(L12,男子結果3日目!$A:$K,10,FALSE)","v":{"$error":"#N/A"}},{"$f":"VLOOKUP(L12,男子結果3日目!$A:$K,4,FALSE)","v":{"$error":"#N/A"}},{"$f":"VLOOKUP(L12,男子結果3日目!$A:$K,8,FALSE)","v":{"$error":"#N/A"}}]
[null,{"$f":"INDEX(男子結果1日目!A:A,(ROW()-1)*7-3)","v":0},{"$f":"VLOOKUP(B13,男子結果1日目!$A:$K,2,FALSE)&\"-\"&VLOOKUP(B13,男子結果1日目!$A:$K,10,FALSE)","v":{"$error":"#N/A"}},{"$f":"VLOOKUP(B13,男子結果1日目!$A:$K,4,FALSE)","v":{"$error":"#N/A"}},{"$f":"VLOOKUP(B13,男子結果1日目!$A:$K,8,FALSE)","v":{"$error":"#N/A"}},null,{"$f":"INDEX(男子結果2日目!A:A,(ROW()-1)*7-3)","v":"b6"},{"$f":"VLOOKUP(G13,男子結果2日目!$A:$K,2,FALSE)&\"-\"&VLOOKUP(G13,男子結果2日目!$A:$K,10,FALSE)","v":"美幌北-北見小泉・端野"},{"$f":"VLOOKUP(G13,男子結果2日目!$A:$K,4,FALSE)","v":39},{"$f":"VLOOKUP(G13,男子結果2日目!$A:$K,8,FALSE)","v":83},null,{"$f":"INDEX(男子結果3日目!A:A,(ROW()-1)*7-3)","v":0},{"$f":"VLOOKUP(L13,男子結果3日目!$A:$K,2,FALSE)&\"-\"&VLOOKUP(L13,男子結果3日目!$A:$K,10,FALSE)","v":{"$error":"#N/A"}},{"$f":"VLOOKUP(L13,男子結果3日目!$A:$K,4,FALSE)","v":{"$error":"#N/A"}},{"$f":"VLOOKUP(L13,男子結果3日目!$A:$K,8,FALSE)","v":{"$error":"#N/A"}}]
[null,{"$f":"INDEX(男子結果1日目!A:A,(ROW()-1)*7-3)","v":0},{"$f":"VLOOKUP(B14,男子結果1日目!$A:$K,2,FALSE)&\"-\"&VLOOKUP(B14,男子結果1日目!$A:$K,10,FALSE)","v":{"$error":"#N/A"}},{"$f":"VLOOKUP(B14,男子結果1日目!$A:$K,4,FALSE)","v":{"$error":"#N/A"}},{"$f":"VLOOKUP(B14,男子結果1日目!$A:$K,8,FALSE)","v":{"$error":"#N/A"}},null,{"$f":"INDEX(男子結果2日目!A:A,(ROW()-1)*7-3)","v":0},{"$f":"VLOOKUP(G14,男子結果2日目!$A:$K,2,FALSE)&\"-\"&VLOOKUP(G14,男子結果2日目!$A:$K,10,FALSE)","v":{"$error":"#N/A"}},{"$f":"VLOOKUP(G14,男子結果2日目!$A:$K,4,FALSE)","v":{"$error":"#N/A"}},{"$f":"VLOOKUP(G14,男子結果2日目!$A:$K,8,FALSE)","v":{"$error":"#N/A"}},null,{"$f":"INDEX(男子結果3日目!A:A,(ROW()-1)*7-3)","v":0},{"$f":"VLOOKUP(L14,男子結果3日目!$A:$K,2,FALSE)&\"-\"&VLOOKUP(L14,男子結果3日目!$A:$K,10,FALSE)","v":{"$error":"#N/A"}},{"$f":"VLOOKUP(L14,男子結果3日目!$A:$K,4,FALSE)","v":{"$error":"#N/A"}},{"$f":"VLOOKUP(L14,男子結果3日目!$A:$K,8,FALSE)","v":{"$error":"#N/A"}}]
[null,{"$f":"INDEX(男子結果1日目!A:A,(ROW()-1)*7-3)","v":0},{"$f":"VLOOKUP(B15,男子結果1日目!$A:$K,2,FALSE)&\"-\"&VLOOKUP(B15,男子結果1日目!$A:$K,10,FALSE)","v":{"$error":"#N/A"}},{"$f":"VLOOKUP(B15,男子結果1日目!$A:$K,4,FALSE)","v":{"$error":"#N/A"}},{"$f":"VLOOKUP(B15,男子結果1日目!$A:$K,8,FALSE)","v":{"$error":"#N/A"}},null,{"$f":"INDEX(男子結果2日目!A:A,(ROW()-1)*7-3)","v":0},{"$f":"VLOOKUP(G15,男子結果2日目!$A:$K,2,FALSE)&\"-\"&VLOOKUP(G15,男子結果2日目!$A:$K,10,FALSE)","v":{"$error":"#N/A"}},{"$f":"VLOOKUP(G15,男子結果2日目!$A:$K,4,FALSE)","v":{"$error":"#N/A"}},{"$f":"VLOOKUP(G15,男子結果2日目!$A:$K,8,FALSE)","v":{"$error":"#N/A"}},null,{"$f":"INDEX(男子結果3日目!A:A,(ROW()-1)*7-3)","v":0},{"$f":"VLOOKUP(L15,男子結果3日目!$A:$K,2,FALSE)&\"-\"&VLOOKUP(L15,男子結果3日目!$A:$K,10,FALSE)","v":{"$error":"#N/A"}},{"$f":"VLOOKUP(L15,男子結果3日目!$A:$K,4,FALSE)","v":{"$error":"#N/A"}},{"$f":"VLOOKUP(L15,男子結果3日目!$A:$K,8,FALSE)","v":{"$error":"#N/A"}}]
[null,{"$f":"INDEX(男子結果1日目!A:A,(ROW()-1)*7-3)","v":0},{"$f":"VLOOKUP(B16,男子結果1日目!$A:$K,2,FALSE)&\"-\"&VLOOKUP(B16,男子結果1日目!$A:$K,10,FALSE)","v":{"$error":"#N/A"}},{"$f":"VLOOKUP(B16,男子結果1日目!$A:$K,4,FALSE)","v":{"$error":"#N/A"}},{"$f":"VLOOKUP(B16,男子結果1日目!$A:$K,8,FALSE)","v":{"$error":"#N/A"}},null,{"$f":"INDEX(男子結果2日目!A:A,(ROW()-1)*7-3)","v":0},{"$f":"VLOOKUP(G16,男子結果2日目!$A:$K,2,FALSE)&\"-\"&VLOOKUP(G16,男子結果2日目!$A:$K,10,FALSE)","v":{"$error":"#N/A"}},{"$f":"VLOOKUP(G16,男子結果2日目!$A:$K,4,FALSE)","v":{"$error":"#N/A"}},{"$f":"VLOOKUP(G16,男子結果2日目!$A:$K,8,FALSE)","v":{"$error":"#N/A"}},null,{"$f":"INDEX(男子結果3日目!A:A,(ROW()-1)*7-3)","v":0},{"$f":"VLOOKUP(L16,男子結果3日目!$A:$K,2,FALSE)&\"-\"&VLOOKUP(L16,男子結果3日目!$A:$K,10,FALSE)","v":{"$error":"#N/A"}},{"$f":"VLOOKUP(L16,男子結果3日目!$A:$K,4,FALSE)","v":{"$error":"#N/A"}},{"$f":"VLOOKUP(L16,男子結果3日目!$A:$K,8,FALSE)","v":{"$error":"#N/A"}}]
[null,{"$f":"INDEX(男子結果1日目!A:A,(ROW()-1)*7-3)","v":0},{"$f":"VLOOKUP(B17,男子結果1日目!$A:$K,2,FALSE)&\"-\"&VLOOKUP(B17,男子結果1日目!$A:$K,10,FALSE)","v":{"$error":"#N/A"}},{"$f":"VLOOKUP(B17,男子結果1日目!$A:$K,4,FALSE)","v":{"$error":"#N/A"}},{"$f":"VLOOKUP(B17,男子結果1日目!$A:$K,8,FALSE)","v":{"$error":"#N/A"}},null,{"$f":"INDEX(男子結果2日目!A:A,(ROW()-1)*7-3)","v":0},{"$f":"VLOOKUP(G17,男子結果2日目!$A:$K,2,FALSE)&\"-\"&VLOOKUP(G17,男子結果2日目!$A:$K,10,FALSE)","v":{"$error":"#N/A"}},{"$f":"VLOOKUP(G17,男子結果2日目!$A:$K,4,FALSE)","v":{"$error":"#N/A"}},{"$f":"VLOOKUP(G17,男子結果2日目!$A:$K,8,FALSE)","v":{"$error":"#N/A"}},null,{"$f":"INDEX(男子結果3日目!A:A,(ROW()-1)*7-3)","v":0},{"$f":"VLOOKUP(L17,男子結果3日目!$A:$K,2,FALSE)&\"-\"&VLOOKUP(L17,男子結果3日目!$A:$K,10,FALSE)","v":{"$error":"#N/A"}},{"$f":"VLOOKUP(L17,男子結果3日目!$A:$K,4,FALSE)","v":{"$error":"#N/A"}},{"$f":"VLOOKUP(L17,男子結果3日目!$A:$K,8,FALSE)","v":{"$error":"#N/A"}}]
[null,{"$f":"INDEX(男子結果1日目!A:A,(ROW()-1)*7-3)","v":0},{"$f":"VLOOKUP(B18,男子結果1日目!$A:$K,2,FALSE)&\"-\"&VLOOKUP(B18,男子結果1日目!$A:$K,10,FALSE)","v":{"$error":"#N/A"}},{"$f":"VLOOKUP(B18,男子結果1日目!$A:$K,4,FALSE)","v":{"$error":"#N/A"}},{"$f":"VLOOKUP(B18,男子結果1日目!$A:$K,8,FALSE)","v":{"$error":"#N/A"}},null,{"$f":"INDEX(男子結果2日目!A:A,(ROW()-1)*7-3)","v":0},{"$f":"VLOOKUP(G18,男子結果2日目!$A:$K,2,FALSE)&\"-\"&VLOOKUP(G18,男子結果2日目!$A:$K,10,FALSE)","v":{"$error":"#N/A"}},{"$f":"VLOOKUP(G18,男子結果2日目!$A:$K,4,FALSE)","v":{"$error":"#N/A"}},{"$f":"VLOOKUP(G18,男子結果2日目!$A:$K,8,FALSE)","v":{"$error":"#N/A"}},null,{"$f":"INDEX(男子結果3日目!A:A,(ROW()-1)*7-3)","v":0},{"$f":"VLOOKUP(L18,男子結果3日目!$A:$K,2,FALSE)&\"-\"&VLOOKUP(L18,男子結果3日目!$A:$K,10,FALSE)","v":{"$error":"#N/A"}},{"$f":"VLOOKUP(L18,男子結果3日目!$A:$K,4,FALSE)","v":{"$error":"#N/A"}},{"$f":"VLOOKUP(L18,男子結果3日目!$A:$K,8,FALSE)","v":{"$error":"#N/A"}}]
[null,{"$f":"INDEX(男子結果1日目!A:A,(ROW()-1)*7-3)","v":0},{"$f":"VLOOKUP(B19,男子結果1日目!$A:$K,2,FALSE)&\"-\"&VLOOKUP(B19,男子結果1日目!$A:$K,10,FALSE)","v":{"$error":"#N/A"}},{"$f":"VLOOKUP(B19,男子結果1日目!$A:$K,4,FALSE)","v":{"$error":"#N/A"}},{"$f":"VLOOKUP(B19,男子結果1日目!$A:$K,8,FALSE)","v":{"$error":"#N/A"}},null,{"$f":"INDEX(男子結果2日目!A:A,(ROW()-1)*7-3)","v":0},{"$f":"VLOOKUP(G19,男子結果2日目!$A:$K,2,FALSE)&\"-\"&VLOOKUP(G19,男子結果2日目!$A:$K,10,FALSE)","v":{"$error":"#N/A"}},{"$f":"VLOOKUP(G19,男子結果2日目!$A:$K,4,FALSE)","v":{"$error":"#N/A"}},{"$f":"VLOOKUP(G19,男子結果2日目!$A:$K,8,FALSE)","v":{"$error":"#N/A"}},null,{"$f":"INDEX(男子結果3日目!A:A,(ROW()-1)*7-3)","v":0},{"$f":"VLOOKUP(L19,男子結果3日目!$A:$K,2,FALSE)&\"-\"&VLOOKUP(L19,男子結果3日目!$A:$K,10,FALSE)","v":{"$error":"#N/A"}},{"$f":"VLOOKUP(L19,男子結果3日目!$A:$K,4,FALSE)","v":{"$error":"#N/A"}},{"$f":"VLOOKUP(L19,男子結果3日目!$A:$K,8,FALSE)","v":{"$error":"#N/A"}}]
[null,{"$f":"INDEX(男子結果1日目!A:A,(ROW()-1)*7-3)","v":0},{"$f":"VLOOKUP(B20,男子結果1日目!$A:$K,2,FALSE)&\"-\"&VLOOKUP(B20,男子結果1日目!$A:$K,10,FALSE)","v":{"$error":"#N/A"}},{"$f":"VLOOKUP(B20,男子結果1日目!$A:$K,4,FALSE)","v":{"$error":"#N/A"}},{"$f":"VLOOKUP(B20,男子結果1日目!$A:$K,8,FALSE)","v":{"$error":"#N/A"}},null,{"$f":"INDEX(男子結果2日目!A:A,(ROW()-1)*7-3)","v":0},{"$f":"VLOOKUP(G20,男子結果2日目!$A:$K,2,FALSE)&\"-\"&VLOOKUP(G20,男子結果2日目!$A:$K,10,FALSE)","v":{"$error":"#N/A"}},{"$f":"VLOOKUP(G20,男子結果2日目!$A:$K,4,FALSE)","v":{"$error":"#N/A"}},{"$f":"VLOOKUP(G20,男子結果2日目!$A:$K,8,FALSE)","v":{"$error":"#N/A"}},null,{"$f":"INDEX(男子結果3日目!A:A,(ROW()-1)*7-3)","v":0},{"$f":"VLOOKUP(L20,男子結果3日目!$A:$K,2,FALSE)&\"-\"&VLOOKUP(L20,男子結果3日目!$A:$K,10,FALSE)","v":{"$error":"#N/A"}},{"$f":"VLOOKUP(L20,男子結果3日目!$A:$K,4,FALSE)","v":{"$error":"#N/A"}},{"$f":"VLOOKUP(L20,男子結果3日目!$A:$K,8,FALSE)","v":{"$error":"#N/A"}}]
[null,{"$f":"INDEX(男子結果1日目!A:A,(ROW()-1)*7-3)","v":0},{"$f":"VLOOKUP(B21,男子結果1日目!$A:$K,2,FALSE)&\"-\"&VLOOKUP(B21,男子結果1日目!$A:$K,10,FALSE)","v":{"$error":"#N/A"}},{"$f":"VLOOKUP(B21,男子結果1日目!$A:$K,4,FALSE)","v":{"$error":"#N/A"}},{"$f":"VLOOKUP(B21,男子結果1日目!$A:$K,8,FALSE)","v":{"$error":"#N/A"}},null,{"$f":"INDEX(男子結果2日目!A:A,(ROW()-1)*7-3)","v":0},{"$f":"VLOOKUP(G21,男子結果2日目!$A:$K,2,FALSE)&\"-\"&VLOOKUP(G21,男子結果2日目!$A:$K,10,FALSE)","v":{"$error":"#N/A"}},{"$f":"VLOOKUP(G21,男子結果2日目!$A:$K,4,FALSE)","v":{"$error":"#N/A"}},{"$f":"VLOOKUP(G21,男子結果2日目!$A:$K,8,FALSE)","v":{"$error":"#N/A"}},null,{"$f":"INDEX(男子結果3日目!A:A,(ROW()-1)*7-3)","v":0},{"$f":"VLOOKUP(L21,男子結果3日目!$A:$K,2,FALSE)&\"-\"&VLOOKUP(L21,男子結果3日目!$A:$K,10,FALSE)","v":{"$error":"#N/A"}},{"$f":"VLOOKUP(L21,男子結果3日目!$A:$K,4,FALSE)","v":{"$error":"#N/A"}},{"$f":"VLOOKUP(L21,男子結果3日目!$A:$K,8,FALSE)","v":{"$error":"#N/A"}}]
[null,{"$f":"INDEX(男子結果1日目!A:A,(ROW()-1)*7-3)","v":0},{"$f":"VLOOKUP(B22,男子結果1日目!$A:$K,2,FALSE)&\"-\"&VLOOKUP(B22,男子結果1日目!$A:$K,10,FALSE)","v":{"$error":"#N/A"}},{"$f":"VLOOKUP(B22,男子結果1日目!$A:$K,4,FALSE)","v":{"$error":"#N/A"}},{"$f":"VLOOKUP(B22,男子結果1日目!$A:$K,8,FALSE)","v":{"$error":"#N/A"}},null,{"$f":"INDEX(男子結果2日目!A:A,(ROW()-1)*7-3)","v":0},{"$f":"VLOOKUP(G22,男子結果2日目!$A:$K,2,FALSE)&\"-\"&VLOOKUP(G22,男子結果2日目!$A:$K,10,FALSE)","v":{"$error":"#N/A"}},{"$f":"VLOOKUP(G22,男子結果2日目!$A:$K,4,FALSE)","v":{"$error":"#N/A"}},{"$f":"VLOOKUP(G22,男子結果2日目!$A:$K,8,FALSE)","v":{"$error":"#N/A"}},null,{"$f":"INDEX(男子結果3日目!A:A,(ROW()-1)*7-3)","v":0},{"$f":"VLOOKUP(L22,男子結果3日目!$A:$K,2,FALSE)&\"-\"&VLOOKUP(L22,男子結果3日目!$A:$K,10,FALSE)","v":{"$error":"#N/A"}},{"$f":"VLOOKUP(L22,男子結果3日目!$A:$K,4,FALSE)","v":{"$error":"#N/A"}},{"$f":"VLOOKUP(L22,男子結果3日目!$A:$K,8,FALSE)","v":{"$error":"#N/A"}}]
[null,{"$f":"INDEX(男子結果1日目!A:A,(ROW()-1)*7-3)","v":0},{"$f":"VLOOKUP(B23,男子結果1日目!$A:$K,2,FALSE)&\"-\"&VLOOKUP(B23,男子結果1日目!$A:$K,10,FALSE)","v":{"$error":"#N/A"}},{"$f":"VLOOKUP(B23,男子結果1日目!$A:$K,4,FALSE)","v":{"$error":"#N/A"}},{"$f":"VLOOKUP(B23,男子結果1日目!$A:$K,8,FALSE)","v":{"$error":"#N/A"}},null,{"$f":"INDEX(男子結果2日目!A:A,(ROW()-1)*7-3)","v":0},{"$f":"VLOOKUP(G23,男子結果2日目!$A:$K,2,FALSE)&\"-\"&VLOOKUP(G23,男子結果2日目!$A:$K,10,FALSE)","v":{"$error":"#N/A"}},{"$f":"VLOOKUP(G23,男子結果2日目!$A:$K,4,FALSE)","v":{"$error":"#N/A"}},{"$f":"VLOOKUP(G23,男子結果2日目!$A:$K,8,FALSE)","v":{"$error":"#N/A"}},null,{"$f":"INDEX(男子結果3日目!A:A,(ROW()-1)*7-3)","v":0},{"$f":"VLOOKUP(L23,男子結果3日目!$A:$K,2,FALSE)&\"-\"&VLOOKUP(L23,男子結果3日目!$A:$K,10,FALSE)","v":{"$error":"#N/A"}},{"$f":"VLOOKUP(L23,男子結果3日目!$A:$K,4,FALSE)","v":{"$error":"#N/A"}},{"$f":"VLOOKUP(L23,男子結果3日目!$A:$K,8,FALSE)","v":{"$error":"#N/A"}}]
[null,{"$f":"INDEX(男子結果1日目!A:A,(ROW()-1)*7-3)","v":0},{"$f":"VLOOKUP(B24,男子結果1日目!$A:$K,2,FALSE)&\"-\"&VLOOKUP(B24,男子結果1日目!$A:$K,10,FALSE)","v":{"$error":"#N/A"}},{"$f":"VLOOKUP(B24,男子結果1日目!$A:$K,4,FALSE)","v":{"$error":"#N/A"}},{"$f":"VLOOKUP(B24,男子結果1日目!$A:$K,8,FALSE)","v":{"$error":"#N/A"}},null,{"$f":"INDEX(男子結果2日目!A:A,(ROW()-1)*7-3)","v":0},{"$f":"VLOOKUP(G24,男子結果2日目!$A:$K,2,FALSE)&\"-\"&VLOOKUP(G24,男子結果2日目!$A:$K,10,FALSE)","v":{"$error":"#N/A"}},{"$f":"VLOOKUP(G24,男子結果2日目!$A:$K,4,FALSE)","v":{"$error":"#N/A"}},{"$f":"VLOOKUP(G24,男子結果2日目!$A:$K,8,FALSE)","v":{"$error":"#N/A"}},null,{"$f":"INDEX(男子結果3日目!A:A,(ROW()-1)*7-3)","v":0},{"$f":"VLOOKUP(L24,男子結果3日目!$A:$K,2,FALSE)&\"-\"&VLOOKUP(L24,男子結果3日目!$A:$K,10,FALSE)","v":{"$error":"#N/A"}},{"$f":"VLOOKUP(L24,男子結果3日目!$A:$K,4,FALSE)","v":{"$error":"#N/A"}},{"$f":"VLOOKUP(L24,男子結果3日目!$A:$K,8,FALSE)","v":{"$error":"#N/A"}}]
[null,{"$f":"INDEX(男子結果1日目!A:A,(ROW()-1)*7-3)","v":0},{"$f":"VLOOKUP(B25,男子結果1日目!$A:$K,2,FALSE)&\"-\"&VLOOKUP(B25,男子結果1日目!$A:$K,10,FALSE)","v":{"$error":"#N/A"}},{"$f":"VLOOKUP(B25,男子結果1日目!$A:$K,4,FALSE)","v":{"$error":"#N/A"}},{"$f":"VLOOKUP(B25,男子結果1日目!$A:$K,8,FALSE)","v":{"$error":"#N/A"}},null,{"$f":"INDEX(男子結果2日目!A:A,(ROW()-1)*7-3)","v":0},{"$f":"VLOOKUP(G25,男子結果2日目!$A:$K,2,FALSE)&\"-\"&VLOOKUP(G25,男子結果2日目!$A:$K,10,FALSE)","v":{"$error":"#N/A"}},{"$f":"VLOOKUP(G25,男子結果2日目!$A:$K,4,FALSE)","v":{"$error":"#N/A"}},{"$f":"VLOOKUP(G25,男子結果2日目!$A:$K,8,FALSE)","v":{"$error":"#N/A"}},null,{"$f":"INDEX(男子結果3日目!A:A,(ROW()-1)*7-3)","v":0},{"$f":"VLOOKUP(L25,男子結果3日目!$A:$K,2,FALSE)&\"-\"&VLOOKUP(L25,男子結果3日目!$A:$K,10,FALSE)","v":{"$error":"#N/A"}},{"$f":"VLOOKUP(L25,男子結果3日目!$A:$K,4,FALSE)","v":{"$error":"#N/A"}},{"$f":"VLOOKUP(L25,男子結果3日目!$A:$K,8,FALSE)","v":{"$error":"#N/A"}}]

{"sheet":"fgamedata","index":11,"n_rows":25,"n_cols":15,"rows_kept":25,"cut":false,"hidden":false,"merged":[]}
["m"]
["Day1",{"$f":"INDEX(女子結果1日目!A:A,(ROW()-1)*7-3)","v":"a2"},{"$f":"VLOOKUP(B2,女子結果1日目!$A:$K,2,FALSE)&\"-\"&VLOOKUP(B2,女子結果1日目!$A:$K,10,FALSE)","v":"北見ポプラガールズ　スパークス-網走第三"},{"$f":"VLOOKUP(B2,女子結果1日目!$A:$K,4,FALSE)","v":89},{"$f":"VLOOKUP(B2,女子結果1日目!$A:$K,8,FALSE)","v":20},"Day2",{"$f":"INDEX(女子結果2日目!A:A,(ROW()-1)*7-3)","v":"c1"},{"$f":"VLOOKUP(G2,女子結果2日目!$A:$K,2,FALSE)&\"-\"&VLOOKUP(G2,女子結果2日目!$A:$K,10,FALSE)","v":"上湧別・ゆうべつ・佐呂間・紋別潮見-北見小泉"},{"$f":"VLOOKUP(G2,女子結果2日目!$A:$K,4,FALSE)","v":60},{"$f":"VLOOKUP(G2,女子結果2日目!$A:$K,8,FALSE)","v":63},"Day3",{"$f":"INDEX(女子結果3日目!A:A,(ROW()-1)*7-3)","v":"a1"},{"$f":"VLOOKUP(L2,女子結果3日目!$A:$K,2,FALSE)&\"-\"&VLOOKUP(L2,女子結果3日目!$A:$K,10,FALSE)","v":"okhotsk.black.eagles-北見小泉"},{"$f":"VLOOKUP(L2,女子結果3日目!$A:$K,4,FALSE)","v":64},{"$f":"VLOOKUP(L2,女子結果3日目!$A:$K,8,FALSE)","v":27}]
[null,{"$f":"INDEX(女子結果1日目!A:A,(ROW()-1)*7-3)","v":"a3"},{"$f":"VLOOKUP(B3,女子結果1日目!$A:$K,2,FALSE)&\"-\"&VLOOKUP(B3,女子結果1日目!$A:$K,10,FALSE)","v":"遠軽-遠軽南"},{"$f":"VLOOKUP(B3,女子結果1日目!$A:$K,4,FALSE)","v":16},{"$f":"VLOOKUP(B3,女子結果1日目!$A:$K,8,FALSE)","v":76},null,{"$f":"INDEX(女子結果2日目!A:A,(ROW()-1)*7-3)","v":"c2"},{"$f":"VLOOKUP(G3,女子結果2日目!$A:$K,2,FALSE)&\"-\"&VLOOKUP(G3,女子結果2日目!$A:$K,10,FALSE)","v":"okhotsk.black.eagles-北見光西"},{"$f":"VLOOKUP(G3,女子結果2日目!$A:$K,4,FALSE)","v":106},{"$f":"VLOOKUP(G3,女子結果2日目!$A:$K,8,FALSE)","v":26},null,{"$f":"INDEX(女子結果3日目!A:A,(ROW()-1)*7-3)","v":"b1"},{"$f":"VLOOKUP(L3,女子結果3日目!$A:$K,2,FALSE)&\"-\"&VLOOKUP(L3,女子結果3日目!$A:$K,10,FALSE)","v":"美幌北-置戸"},{"$f":"VLOOKUP(L3,女子結果3日目!$A:$K,4,FALSE)","v":40},{"$f":"VLOOKUP(L3,女子結果3日目!$A:$K,8,FALSE)","v":102}]
[null,{"$f":"INDEX(女子結果1日目!A:A,(ROW()-1)*7-3)","v":"a5"},{"$f":"VLOOKUP(B4,女子結果1日目!$A:$K,2,FALSE)&\"-\"&VLOOKUP(B4,女子結果1日目!$A:$K,10,FALSE)","v":"okhotsk.black.eagles-北見ポプラガールズ　スパークス"},{"$f":"VLOOKUP(B4,女子結果1日目!$A:$K,4,FALSE)","v":92},{"$f":"VLOOKUP(B4,女子結果1日目!$A:$K,8,FALSE)","v":26},null,{"$f":"INDEX(女子結果2日目!A:A,(ROW()-1)*7-3)","v":"c3"},{"$f":"VLOOKUP(G4,女子結果2日目!$A:$K,2,FALSE)&\"-\"&VLOOKUP(G4,女子結果2日目!$A:$K,10,FALSE)","v":"女満別-置戸"},{"$f":"VLOOKUP(G4,女子結果2日目!$A:$K,4,FALSE)","v":30},{"$f":"VLOOKUP(G4,女子結果2日目!$A:$K,8,FALSE)","v":73},null,{"$f":"INDEX(女子結果3日目!A:A,(ROW()-1)*7-3)","v":"a3"},{"$f":"VLOOKUP(L4,女子結果3日目!$A:$K,2,FALSE)&\"-\"&VLOOKUP(L4,女子結果3日目!$A:$K,10,FALSE)","v":"okhotsk.black.eagles-置戸"},{"$f":"VLOOKUP(L4,女子結果3日目!$A:$K,4,FALSE)","v":81},{"$f":"VLOOKUP(L4,女子結果3日目!$A:$K,8,FALSE)","v":45}]
[null,{"$f":"INDEX(女子結果1日目!A:A,(ROW()-1)*7-3)","v":"a6"},{"$f":"VLOOKUP(B5,女子結果1日目!$A:$K,2,FALSE)&\"-\"&VLOOKUP(B5,女子結果1日目!$A:$K,10,FALSE)","v":"上湧別・ゆうべつ・佐呂間・紋別潮見-東相内"},{"$f":"VLOOKUP(B5,女子結果1日目!$A:$K,4,FALSE)","v":75},{"$f":"VLOOKUP(B5,女子結果1日目!$A:$K,8,FALSE)","v":37},null,{"$f":"INDEX(女子結果2日目!A:A,(ROW()-1)*7-3)","v":"c4"},{"$f":"VLOOKUP(G5,女子結果2日目!$A:$K,2,FALSE)&\"-\"&VLOOKUP(G5,女子結果2日目!$A:$K,10,FALSE)","v":"美幌北-遠軽南"},{"$f":"VLOOKUP(G5,女子結果2日目!$A:$K,4,FALSE)","v":71},{"$f":"VLOOKUP(G5,女子結果2日目!$A:$K,8,FALSE)","v":47},null,{"$f":"INDEX(女子結果3日目!A:A,(ROW()-1)*7-3)","v":"b3"},{"$f":"VLOOKUP(L5,女子結果3日目!$A:$K,2,FALSE)&\"-\"&VLOOKUP(L5,女子結果3日目!$A:$K,10,FALSE)","v":"北見小泉-美幌北"},{"$f":"VLOOKUP(L5,女子結果3日目!$A:$K,4,FALSE)","v":61},{"$f":"VLOOKUP(L5,女子結果3日目!$A:$K,8,FALSE)","v":70}]
[null,{"$f":"INDEX(女子結果1日目!A:A,(ROW()-1)*7-3)","v":"b2"},{"$f":"VLOOKUP(B6,女子結果1日目!$A:$K,2,FALSE)&\"-\"&VLOOKUP(B6,女子結果1日目!$A:$K,10,FALSE)","v":"北見北-女満別"},{"$f":"VLOOKUP(B6,女子結果1日目!$A:$K,4,FALSE)","v":24},{"$f":"VLOOKUP(B6,女子結果1日目!$A:$K,8,FALSE)","v":52},null,{"$f":"INDEX(女子結果2日目!A:A,(ROW()-1)*7-3)","v":0},{"$f":"VLOOKUP(G6,女子結果2日目!$A:$K,2,FALSE)&\"-\"&VLOOKUP(G6,女子結果2日目!$A:$K,10,FALSE)","v":{"$error":"#N/A"}},{"$f":"VLOOKUP(G6,女子結果2日目!$A:$K,4,FALSE)","v":{"$error":"#N/A"}},{"$f":"VLOOKUP(G6,女子結果2日目!$A:$K,8,FALSE)","v":{"$error":"#N/A"}},null,{"$f":"INDEX(女子結果3日目!A:A,(ROW()-1)*7-3)","v":0},{"$f":"VLOOKUP(L6,女子結果3日目!$A:$K,2,FALSE)&\"-\"&VLOOKUP(L6,女子結果3日目!$A:$K,10,FALSE)","v":{"$error":"#N/A"}},{"$f":"VLOOKUP(L6,女子結果3日目!$A:$K,4,FALSE)","v":{"$error":"#N/A"}},{"$f":"VLOOKUP(L6,女子結果3日目!$A:$K,8,FALSE)","v":{"$error":"#N/A"}}]
[null,{"$f":"INDEX(女子結果1日目!A:A,(ROW()-1)*7-3)","v":"b3"},{"$f":"VLOOKUP(B7,女子結果1日目!$A:$K,2,FALSE)&\"-\"&VLOOKUP(B7,女子結果1日目!$A:$K,10,FALSE)","v":"北見北光-北見小泉"},{"$f":"VLOOKUP(B7,女子結果1日目!$A:$K,4,FALSE)","v":38},{"$f":"VLOOKUP(B7,女子結果1日目!$A:$K,8,FALSE)","v":99},null,{"$f":"INDEX(女子結果2日目!A:A,(ROW()-1)*7-3)","v":0},{"$f":"VLOOKUP(G7,女子結果2日目!$A:$K,2,FALSE)&\"-\"&VLOOKUP(G7,女子結果2日目!$A:$K,10,FALSE)","v":{"$error":"#N/A"}},{"$f":"VLOOKUP(G7,女子結果2日目!$A:$K,4,FALSE)","v":{"$error":"#N/A"}},{"$f":"VLOOKUP(G7,女子結果2日目!$A:$K,8,FALSE)","v":{"$error":"#N/A"}},null,{"$f":"INDEX(女子結果3日目!A:A,(ROW()-1)*7-3)","v":0},{"$f":"VLOOKUP(L7,女子結果3日目!$A:$K,2,FALSE)&\"-\"&VLOOKUP(L7,女子結果3日目!$A:$K,10,FALSE)","v":{"$error":"#N/A"}},{"$f":"VLOOKUP(L7,女子結果3日目!$A:$K,4,FALSE)","v":{"$error":"#N/A"}},{"$f":"VLOOKUP(L7,女子結果3日目!$A:$K,8,FALSE)","v":{"$error":"#N/A"}}]
[null,{"$f":"INDEX(女子結果1日目!A:A,(ROW()-1)*7-3)","v":"b6"},{"$f":"VLOOKUP(B8,女子結果1日目!$A:$K,2,FALSE)&\"-\"&VLOOKUP(B8,女子結果1日目!$A:$K,10,FALSE)","v":"斜里・第二-置戸"},{"$f":"VLOOKUP(B8,女子結果1日目!$A:$K,4,FALSE)","v":34},{"$f":"VLOOKUP(B8,女子結果1日目!$A:$K,8,FALSE)","v":79},null,{"$f":"INDEX(女子結果2日目!A:A,(ROW()-1)*7-3)","v":0},{"$f":"VLOOKUP(G8,女子結果2日目!$A:$K,2,FALSE)&\"-\"&VLOOKUP(G8,女子結果2日目!$A:$K,10,FALSE)","v":{"$error":"#N/A"}},{"$f":"VLOOKUP(G8,女子結果2日目!$A:$K,4,FALSE)","v":{"$error":"#N/A"}},{"$f":"VLOOKUP(G8,女子結果2日目!$A:$K,8,FALSE)","v":{"$error":"#N/A"}},null,{"$f":"INDEX(女子結果3日目!A:A,(ROW()-1)*7-3)","v":0},{"$f":"VLOOKUP(L8,女子結果3日目!$A:$K,2,FALSE)&\"-\"&VLOOKUP(L8,女子結果3日目!$A:$K,10,FALSE)","v":{"$error":"#N/A"}},{"$f":"VLOOKUP(L8,女子結果3日目!$A:$K,4,FALSE)","v":{"$error":"#N/A"}},{"$f":"VLOOKUP(L8,女子結果3日目!$A:$K,8,FALSE)","v":{"$error":"#N/A"}}]
[null,{"$f":"INDEX(女子結果1日目!A:A,(ROW()-1)*7-3)","v":"c1"},{"$f":"VLOOKUP(B9,女子結果1日目!$A:$K,2,FALSE)&\"-\"&VLOOKUP(B9,女子結果1日目!$A:$K,10,FALSE)","v":"網走第一-北見光西"},{"$f":"VLOOKUP(B9,女子結果1日目!$A:$K,4,FALSE)","v":24},{"$f":"VLOOKUP(B9,女子結果1日目!$A:$K,8,FALSE)","v":93},null,{"$f":"INDEX(女子結果2日目!A:A,(ROW()-1)*7-3)","v":0},{"$f":"VLOOKUP(G9,女子結果2日目!$A:$K,2,FALSE)&\"-\"&VLOOKUP(G9,女子結果2日目!$A:$K,10,FALSE)","v":{"$error":"#N/A"}},{"$f":"VLOOKUP(G9,女子結果2日目!$A:$K,4,FALSE)","v":{"$error":"#N/A"}},{"$f":"VLOOKUP(G9,女子結果2日目!$A:$K,8,FALSE)","v":{"$error":"#N/A"}},null,{"$f":"INDEX(女子結果3日目!A:A,(ROW()-1)*7-3)","v":0},{"$f":"VLOOKUP(L9,女子結果3日目!$A:$K,2,FALSE)&\"-\"&VLOOKUP(L9,女子結果3日目!$A:$K,10,FALSE)","v":{"$error":"#N/A"}},{"$f":"VLOOKUP(L9,女子結果3日目!$A:$K,4,FALSE)","v":{"$error":"#N/A"}},{"$f":"VLOOKUP(L9,女子結果3日目!$A:$K,8,FALSE)","v":{"$error":"#N/A"}}]
[null,{"$f":"INDEX(女子結果1日目!A:A,(ROW()-1)*7-3)","v":"c3"},{"$f":"VLOOKUP(B10,女子結果1日目!$A:$K,2,FALSE)&\"-\"&VLOOKUP(B10,女子結果1日目!$A:$K,10,FALSE)","v":"美幌北-高栄・留辺蘂"},{"$f":"VLOOKUP(B10,女子結果1日目!$A:$K,4,FALSE)","v":75},{"$f":"VLOOKUP(B10,女子結果1日目!$A:$K,8,FALSE)","v":44},null,{"$f":"INDEX(女子結果2日目!A:A,(ROW()-1)*7-3)","v":0},{"$f":"VLOOKUP(G10,女子結果2日目!$A:$K,2,FALSE)&\"-\"&VLOOKUP(G10,女子結果2日目!$A:$K,10,FALSE)","v":{"$error":"#N/A"}},{"$f":"VLOOKUP(G10,女子結果2日目!$A:$K,4,FALSE)","v":{"$error":"#N/A"}},{"$f":"VLOOKUP(G10,女子結果2日目!$A:$K,8,FALSE)","v":{"$error":"#N/A"}},null,{"$f":"INDEX(女子結果3日目!A:A,(ROW()-1)*7-3)","v":0},{"$f":"VLOOKUP(L10,女子結果3日目!$A:$K,2,FALSE)&\"-\"&VLOOKUP(L10,女子結果3日目!$A:$K,10,FALSE)","v":{"$error":"#N/A"}},{"$f":"VLOOKUP(L10,女子結果3日目!$A:$K,4,FALSE)","v":{"$error":"#N/A"}},{"$f":"VLOOKUP(L10,女子結果3日目!$A:$K,8,FALSE)","v":{"$error":"#N/A"}}]
[null,{"$f":"INDEX(女子結果1日目!A:A,(ROW()-1)*7-3)","v":0},{"$f":"VLOOKUP(B11,女子結果1日目!$A:$K,2,FALSE)&\"-\"&VLOOKUP(B11,女子結果1日目!$A:$K,10,FALSE)","v":{"$error":"#N/A"}},{"$f":"VLOOKUP(B11,女子結果1日目!$A:$K,4,FALSE)","v":{"$error":"#N/A"}},{"$f":"VLOOKUP(B11,女子結果1日目!$A:$K,8,FALSE)","v":{"$error":"#N/A"}},null,{"$f":"INDEX(女子結果2日目!A:A,(ROW()-1)*7-3)","v":0},{"$f":"VLOOKUP(G11,女子結果2日目!$A:$K,2,FALSE)&\"-\"&VLOOKUP(G11,女子結果2日目!$A:$K,10,FALSE)","v":{"$error":"#N/A"}},{"$f":"VLOOKUP(G11,女子結果2日目!$A:$K,4,FALSE)","v":{"$error":"#N/A"}},{"$f":"VLOOKUP(G11,女子結果2日目!$A:$K,8,FALSE)","v":{"$error":"#N/A"}},null,{"$f":"INDEX(女子結果3日目!A:A,(ROW()-1)*7-3)","v":0},{"$f":"VLOOKUP(L11,女子結果3日目!$A:$K,2,FALSE)&\"-\"&VLOOKUP(L11,女子結果3日目!$A:$K,10,FALSE)","v":{"$error":"#N/A"}},{"$f":"VLOOKUP(L11,女子結果3日目!$A:$K,4,FALSE)","v":{"$error":"#N/A"}},{"$f":"VLOOKUP(L11,女子結果3日目!$A:$K,8,FALSE)","v":{"$error":"#N/A"}}]
[null,{"$f":"INDEX(女子結果1日目!A:A,(ROW()-1)*7-3)","v":0},{"$f":"VLOOKUP(B12,女子結果1日目!$A:$K,2,FALSE)&\"-\"&VLOOKUP(B12,女子結果1日目!$A:$K,10,FALSE)","v":{"$error":"#N/A"}},{"$f":"VLOOKUP(B12,女子結果1日目!$A:$K,4,FALSE)","v":{"$error":"#N/A"}},{"$f":"VLOOKUP(B12,女子結果1日目!$A:$K,8,FALSE)","v":{"$error":"#N/A"}},null,{"$f":"INDEX(女子結果2日目!A:A,(ROW()-1)*7-3)","v":0},{"$f":"VLOOKUP(G12,女子結果2日目!$A:$K,2,FALSE)&\"-\"&VLOOKUP(G12,女子結果2日目!$A:$K,10,FALSE)","v":{"$error":"#N/A"}},{"$f":"VLOOKUP(G12,女子結果2日目!$A:$K,4,FALSE)","v":{"$error":"#N/A"}},{"$f":"VLOOKUP(G12,女子結果2日目!$A:$K,8,FALSE)","v":{"$error":"#N/A"}},null,{"$f":"INDEX(女子結果3日目!A:A,(ROW()-1)*7-3)","v":0},{"$f":"VLOOKUP(L12,女子結果3日目!$A:$K,2,FALSE)&\"-\"&VLOOKUP(L12,女子結果3日目!$A:$K,10,FALSE)","v":{"$error":"#N/A"}},{"$f":"VLOOKUP(L12,女子結果3日目!$A:$K,4,FALSE)","v":{"$error":"#N/A"}},{"$f":"VLOOKUP(L12,女子結果3日目!$A:$K,8,FALSE)","v":{"$error":"#N/A"}}]
[null,{"$f":"INDEX(女子結果1日目!A:A,(ROW()-1)*7-3)","v":0},{"$f":"VLOOKUP(B13,女子結果1日目!$A:$K,2,FALSE)&\"-\"&VLOOKUP(B13,女子結果1日目!$A:$K,10,FALSE)","v":{"$error":"#N/A"}},{"$f":"VLOOKUP(B13,女子結果1日目!$A:$K,4,FALSE)","v":{"$error":"#N/A"}},{"$f":"VLOOKUP(B13,女子結果1日目!$A:$K,8,FALSE)","v":{"$error":"#N/A"}},null,{"$f":"INDEX(女子結果2日目!A:A,(ROW()-1)*7-3)","v":0},{"$f":"VLOOKUP(G13,女子結果2日目!$A:$K,2,FALSE)&\"-\"&VLOOKUP(G13,女子結果2日目!$A:$K,10,FALSE)","v":{"$error":"#N/A"}},{"$f":"VLOOKUP(G13,女子結果2日目!$A:$K,4,FALSE)","v":{"$error":"#N/A"}},{"$f":"VLOOKUP(G13,女子結果2日目!$A:$K,8,FALSE)","v":{"$error":"#N/A"}},null,{"$f":"INDEX(女子結果3日目!A:A,(ROW()-1)*7-3)","v":0},{"$f":"VLOOKUP(L13,女子結果3日目!$A:$K,2,FALSE)&\"-\"&VLOOKUP(L13,女子結果3日目!$A:$K,10,FALSE)","v":{"$error":"#N/A"}},{"$f":"VLOOKUP(L13,女子結果3日目!$A:$K,4,FALSE)","v":{"$error":"#N/A"}},{"$f":"VLOOKUP(L13,女子結果3日目!$A:$K,8,FALSE)","v":{"$error":"#N/A"}}]
[null,{"$f":"INDEX(女子結果1日目!A:A,(ROW()-1)*7-3)","v":0},{"$f":"VLOOKUP(B14,女子結果1日目!$A:$K,2,FALSE)&\"-\"&VLOOKUP(B14,女子結果1日目!$A:$K,10,FALSE)","v":{"$error":"#N/A"}},{"$f":"VLOOKUP(B14,女子結果1日目!$A:$K,4,FALSE)","v":{"$error":"#N/A"}},{"$f":"VLOOKUP(B14,女子結果1日目!$A:$K,8,FALSE)","v":{"$error":"#N/A"}},null,{"$f":"INDEX(女子結果2日目!A:A,(ROW()-1)*7-3)","v":0},{"$f":"VLOOKUP(G14,女子結果2日目!$A:$K,2,FALSE)&\"-\"&VLOOKUP(G14,女子結果2日目!$A:$K,10,FALSE)","v":{"$error":"#N/A"}},{"$f":"VLOOKUP(G14,女子結果2日目!$A:$K,4,FALSE)","v":{"$error":"#N/A"}},{"$f":"VLOOKUP(G14,女子結果2日目!$A:$K,8,FALSE)","v":{"$error":"#N/A"}},null,{"$f":"INDEX(女子結果3日目!A:A,(ROW()-1)*7-3)","v":0},{"$f":"VLOOKUP(L14,女子結果3日目!$A:$K,2,FALSE)&\"-\"&VLOOKUP(L14,女子結果3日目!$A:$K,10,FALSE)","v":{"$error":"#N/A"}},{"$f":"VLOOKUP(L14,女子結果3日目!$A:$K,4,FALSE)","v":{"$error":"#N/A"}},{"$f":"VLOOKUP(L14,女子結果3日目!$A:$K,8,FALSE)","v":{"$error":"#N/A"}}]
[null,{"$f":"INDEX(女子結果1日目!A:A,(ROW()-1)*7-3)","v":0},{"$f":"VLOOKUP(B15,女子結果1日目!$A:$K,2,FALSE)&\"-\"&VLOOKUP(B15,女子結果1日目!$A:$K,10,FALSE)","v":{"$error":"#N/A"}},{"$f":"VLOOKUP(B15,女子結果1日目!$A:$K,4,FALSE)","v":{"$error":"#N/A"}},{"$f":"VLOOKUP(B15,女子結果1日目!$A:$K,8,FALSE)","v":{"$error":"#N/A"}},null,{"$f":"INDEX(女子結果2日目!A:A,(ROW()-1)*7-3)","v":0},{"$f":"VLOOKUP(G15,女子結果2日目!$A:$K,2,FALSE)&\"-\"&VLOOKUP(G15,女子結果2日目!$A:$K,10,FALSE)","v":{"$error":"#N/A"}},{"$f":"VLOOKUP(G15,女子結果2日目!$A:$K,4,FALSE)","v":{"$error":"#N/A"}},{"$f":"VLOOKUP(G15,女子結果2日目!$A:$K,8,FALSE)","v":{"$error":"#N/A"}},null,{"$f":"INDEX(女子結果3日目!A:A,(ROW()-1)*7-3)","v":0},{"$f":"VLOOKUP(L15,女子結果3日目!$A:$K,2,FALSE)&\"-\"&VLOOKUP(L15,女子結果3日目!$A:$K,10,FALSE)","v":{"$error":"#N/A"}},{"$f":"VLOOKUP(L15,女子結果3日目!$A:$K,4,FALSE)","v":{"$error":"#N/A"}},{"$f":"VLOOKUP(L15,女子結果3日目!$A:$K,8,FALSE)","v":{"$error":"#N/A"}}]
[null,{"$f":"INDEX(女子結果1日目!A:A,(ROW()-1)*7-3)","v":0},{"$f":"VLOOKUP(B16,女子結果1日目!$A:$K,2,FALSE)&\"-\"&VLOOKUP(B16,女子結果1日目!$A:$K,10,FALSE)","v":{"$error":"#N/A"}},{"$f":"VLOOKUP(B16,女子結果1日目!$A:$K,4,FALSE)","v":{"$error":"#N/A"}},{"$f":"VLOOKUP(B16,女子結果1日目!$A:$K,8,FALSE)","v":{"$error":"#N/A"}},null,{"$f":"INDEX(女子結果2日目!A:A,(ROW()-1)*7-3)","v":0},{"$f":"VLOOKUP(G16,女子結果2日目!$A:$K,2,FALSE)&\"-\"&VLOOKUP(G16,女子結果2日目!$A:$K,10,FALSE)","v":{"$error":"#N/A"}},{"$f":"VLOOKUP(G16,女子結果2日目!$A:$K,4,FALSE)","v":{"$error":"#N/A"}},{"$f":"VLOOKUP(G16,女子結果2日目!$A:$K,8,FALSE)","v":{"$error":"#N/A"}},null,{"$f":"INDEX(女子結果3日目!A:A,(ROW()-1)*7-3)","v":0},{"$f":"VLOOKUP(L16,女子結果3日目!$A:$K,2,FALSE)&\"-\"&VLOOKUP(L16,女子結果3日目!$A:$K,10,FALSE)","v":{"$error":"#N/A"}},{"$f":"VLOOKUP(L16,女子結果3日目!$A:$K,4,FALSE)","v":{"$error":"#N/A"}},{"$f":"VLOOKUP(L16,女子結果3日目!$A:$K,8,FALSE)","v":{"$error":"#N/A"}}]
[null,{"$f":"INDEX(女子結果1日目!A:A,(ROW()-1)*7-3)","v":0},{"$f":"VLOOKUP(B17,女子結果1日目!$A:$K,2,FALSE)&\"-\"&VLOOKUP(B17,女子結果1日目!$A:$K,10,FALSE)","v":{"$error":"#N/A"}},{"$f":"VLOOKUP(B17,女子結果1日目!$A:$K,4,FALSE)","v":{"$error":"#N/A"}},{"$f":"VLOOKUP(B17,女子結果1日目!$A:$K,8,FALSE)","v":{"$error":"#N/A"}},null,{"$f":"INDEX(女子結果2日目!A:A,(ROW()-1)*7-3)","v":0},{"$f":"VLOOKUP(G17,女子結果2日目!$A:$K,2,FALSE)&\"-\"&VLOOKUP(G17,女子結果2日目!$A:$K,10,FALSE)","v":{"$error":"#N/A"}},{"$f":"VLOOKUP(G17,女子結果2日目!$A:$K,4,FALSE)","v":{"$error":"#N/A"}},{"$f":"VLOOKUP(G17,女子結果2日目!$A:$K,8,FALSE)","v":{"$error":"#N/A"}},null,{"$f":"INDEX(女子結果3日目!A:A,(ROW()-1)*7-3)","v":0},{"$f":"VLOOKUP(L17,女子結果3日目!$A:$K,2,FALSE)&\"-\"&VLOOKUP(L17,女子結果3日目!$A:$K,10,FALSE)","v":{"$error":"#N/A"}},{"$f":"VLOOKUP(L17,女子結果3日目!$A:$K,4,FALSE)","v":{"$error":"#N/A"}},{"$f":"VLOOKUP(L17,女子結果3日目!$A:$K,8,FALSE)","v":{"$error":"#N/A"}}]
[null,{"$f":"INDEX(女子結果1日目!A:A,(ROW()-1)*7-3)","v":0},{"$f":"VLOOKUP(B18,女子結果1日目!$A:$K,2,FALSE)&\"-\"&VLOOKUP(B18,女子結果1日目!$A:$K,10,FALSE)","v":{"$error":"#N/A"}},{"$f":"VLOOKUP(B18,女子結果1日目!$A:$K,4,FALSE)","v":{"$error":"#N/A"}},{"$f":"VLOOKUP(B18,女子結果1日目!$A:$K,8,FALSE)","v":{"$error":"#N/A"}},null,{"$f":"INDEX(女子結果2日目!A:A,(ROW()-1)*7-3)","v":0},{"$f":"VLOOKUP(G18,女子結果2日目!$A:$K,2,FALSE)&\"-\"&VLOOKUP(G18,女子結果2日目!$A:$K,10,FALSE)","v":{"$error":"#N/A"}},{"$f":"VLOOKUP(G18,女子結果2日目!$A:$K,4,FALSE)","v":{"$error":"#N/A"}},{"$f":"VLOOKUP(G18,女子結果2日目!$A:$K,8,FALSE)","v":{"$error":"#N/A"}},null,{"$f":"INDEX(女子結果3日目!A:A,(ROW()-1)*7-3)","v":0},{"$f":"VLOOKUP(L18,女子結果3日目!$A:$K,2,FALSE)&\"-\"&VLOOKUP(L18,女子結果3日目!$A:$K,10,FALSE)","v":{"$error":"#N/A"}},{"$f":"VLOOKUP(L18,女子結果3日目!$A:$K,4,FALSE)","v":{"$error":"#N/A"}},{"$f":"VLOOKUP(L18,女子結果3日目!$A:$K,8,FALSE)","v":{"$error":"#N/A"}}]
[null,{"$f":"INDEX(女子結果1日目!A:A,(ROW()-1)*7-3)","v":0},{"$f":"VLOOKUP(B19,女子結果1日目!$A:$K,2,FALSE)&\"-\"&VLOOKUP(B19,女子結果1日目!$A:$K,10,FALSE)","v":{"$error":"#N/A"}},{"$f":"VLOOKUP(B19,女子結果1日目!$A:$K,4,FALSE)","v":{"$error":"#N/A"}},{"$f":"VLOOKUP(B19,女子結果1日目!$A:$K,8,FALSE)","v":{"$error":"#N/A"}},null,{"$f":"INDEX(女子結果2日目!A:A,(ROW()-1)*7-3)","v":0},{"$f":"VLOOKUP(G19,女子結果2日目!$A:$K,2,FALSE)&\"-\"&VLOOKUP(G19,女子結果2日目!$A:$K,10,FALSE)","v":{"$error":"#N/A"}},{"$f":"VLOOKUP(G19,女子結果2日目!$A:$K,4,FALSE)","v":{"$error":"#N/A"}},{"$f":"VLOOKUP(G19,女子結果2日目!$A:$K,8,FALSE)","v":{"$error":"#N/A"}},null,{"$f":"INDEX(女子結果3日目!A:A,(ROW()-1)*7-3)","v":0},{"$f":"VLOOKUP(L19,女子結果3日目!$A:$K,2,FALSE)&\"-\"&VLOOKUP(L19,女子結果3日目!$A:$K,10,FALSE)","v":{"$error":"#N/A"}},{"$f":"VLOOKUP(L19,女子結果3日目!$A:$K,4,FALSE)","v":{"$error":"#N/A"}},{"$f":"VLOOKUP(L19,女子結果3日目!$A:$K,8,FALSE)","v":{"$error":"#N/A"}}]
[null,{"$f":"INDEX(女子結果1日目!A:A,(ROW()-1)*7-3)","v":0},{"$f":"VLOOKUP(B20,女子結果1日目!$A:$K,2,FALSE)&\"-\"&VLOOKUP(B20,女子結果1日目!$A:$K,10,FALSE)","v":{"$error":"#N/A"}},{"$f":"VLOOKUP(B20,女子結果1日目!$A:$K,4,FALSE)","v":{"$error":"#N/A"}},{"$f":"VLOOKUP(B20,女子結果1日目!$A:$K,8,FALSE)","v":{"$error":"#N/A"}},null,{"$f":"INDEX(女子結果2日目!A:A,(ROW()-1)*7-3)","v":0},{"$f":"VLOOKUP(G20,女子結果2日目!$A:$K,2,FALSE)&\"-\"&VLOOKUP(G20,女子結果2日目!$A:$K,10,FALSE)","v":{"$error":"#N/A"}},{"$f":"VLOOKUP(G20,女子結果2日目!$A:$K,4,FALSE)","v":{"$error":"#N/A"}},{"$f":"VLOOKUP(G20,女子結果2日目!$A:$K,8,FALSE)","v":{"$error":"#N/A"}},null,{"$f":"INDEX(女子結果3日目!A:A,(ROW()-1)*7-3)","v":0},{"$f":"VLOOKUP(L20,女子結果3日目!$A:$K,2,FALSE)&\"-\"&VLOOKUP(L20,女子結果3日目!$A:$K,10,FALSE)","v":{"$error":"#N/A"}},{"$f":"VLOOKUP(L20,女子結果3日目!$A:$K,4,FALSE)","v":{"$error":"#N/A"}},{"$f":"VLOOKUP(L20,女子結果3日目!$A:$K,8,FALSE)","v":{"$error":"#N/A"}}]
[null,{"$f":"INDEX(女子結果1日目!A:A,(ROW()-1)*7-3)","v":0},{"$f":"VLOOKUP(B21,女子結果1日目!$A:$K,2,FALSE)&\"-\"&VLOOKUP(B21,女子結果1日目!$A:$K,10,FALSE)","v":{"$error":"#N/A"}},{"$f":"VLOOKUP(B21,女子結果1日目!$A:$K,4,FALSE)","v":{"$error":"#N/A"}},{"$f":"VLOOKUP(B21,女子結果1日目!$A:$K,8,FALSE)","v":{"$error":"#N/A"}},null,{"$f":"INDEX(女子結果2日目!A:A,(ROW()-1)*7-3)","v":0},{"$f":"VLOOKUP(G21,女子結果2日目!$A:$K,2,FALSE)&\"-\"&VLOOKUP(G21,女子結果2日目!$A:$K,10,FALSE)","v":{"$error":"#N/A"}},{"$f":"VLOOKUP(G21,女子結果2日目!$A:$K,4,FALSE)","v":{"$error":"#N/A"}},{"$f":"VLOOKUP(G21,女子結果2日目!$A:$K,8,FALSE)","v":{"$error":"#N/A"}},null,{"$f":"INDEX(女子結果3日目!A:A,(ROW()-1)*7-3)","v":0},{"$f":"VLOOKUP(L21,女子結果3日目!$A:$K,2,FALSE)&\"-\"&VLOOKUP(L21,女子結果3日目!$A:$K,10,FALSE)","v":{"$error":"#N/A"}},{"$f":"VLOOKUP(L21,女子結果3日目!$A:$K,4,FALSE)","v":{"$error":"#N/A"}},{"$f":"VLOOKUP(L21,女子結果3日目!$A:$K,8,FALSE)","v":{"$error":"#N/A"}}]
[null,{"$f":"INDEX(女子結果1日目!A:A,(ROW()-1)*7-3)","v":0},{"$f":"VLOOKUP(B22,女子結果1日目!$A:$K,2,FALSE)&\"-\"&VLOOKUP(B22,女子結果1日目!$A:$K,10,FALSE)","v":{"$error":"#N/A"}},{"$f":"VLOOKUP(B22,女子結果1日目!$A:$K,4,FALSE)","v":{"$error":"#N/A"}},{"$f":"VLOOKUP(B22,女子結果1日目!$A:$K,8,FALSE)","v":{"$error":"#N/A"}},null,{"$f":"INDEX(女子結果2日目!A:A,(ROW()-1)*7-3)","v":0},{"$f":"VLOOKUP(G22,女子結果2日目!$A:$K,2,FALSE)&\"-\"&VLOOKUP(G22,女子結果2日目!$A:$K,10,FALSE)","v":{"$error":"#N/A"}},{"$f":"VLOOKUP(G22,女子結果2日目!$A:$K,4,FALSE)","v":{"$error":"#N/A"}},{"$f":"VLOOKUP(G22,女子結果2日目!$A:$K,8,FALSE)","v":{"$error":"#N/A"}},null,{"$f":"INDEX(女子結果3日目!A:A,(ROW()-1)*7-3)","v":0},{"$f":"VLOOKUP(L22,女子結果3日目!$A:$K,2,FALSE)&\"-\"&VLOOKUP(L22,女子結果3日目!$A:$K,10,FALSE)","v":{"$error":"#N/A"}},{"$f":"VLOOKUP(L22,女子結果3日目!$A:$K,4,FALSE)","v":{"$error":"#N/A"}},{"$f":"VLOOKUP(L22,女子結果3日目!$A:$K,8,FALSE)","v":{"$error":"#N/A"}}]
[null,{"$f":"INDEX(女子結果1日目!A:A,(ROW()-1)*7-3)","v":0},{"$f":"VLOOKUP(B23,女子結果1日目!$A:$K,2,FALSE)&\"-\"&VLOOKUP(B23,女子結果1日目!$A:$K,10,FALSE)","v":{"$error":"#N/A"}},{"$f":"VLOOKUP(B23,女子結果1日目!$A:$K,4,FALSE)","v":{"$error":"#N/A"}},{"$f":"VLOOKUP(B23,女子結果1日目!$A:$K,8,FALSE)","v":{"$error":"#N/A"}},null,{"$f":"INDEX(女子結果2日目!A:A,(ROW()-1)*7-3)","v":0},{"$f":"VLOOKUP(G23,女子結果2日目!$A:$K,2,FALSE)&\"-\"&VLOOKUP(G23,女子結果2日目!$A:$K,10,FALSE)","v":{"$error":"#N/A"}},{"$f":"VLOOKUP(G23,女子結果2日目!$A:$K,4,FALSE)","v":{"$error":"#N/A"}},{"$f":"VLOOKUP(G23,女子結果2日目!$A:$K,8,FALSE)","v":{"$error":"#N/A"}},null,{"$f":"INDEX(女子結果3日目!A:A,(ROW()-1)*7-3)","v":0},{"$f":"VLOOKUP(L23,女子結果3日目!$A:$K,2,FALSE)&\"-\"&VLOOKUP(L23,女子結果3日目!$A:$K,10,FALSE)","v":{"$error":"#N/A"}},{"$f":"VLOOKUP(L23,女子結果3日目!$A:$K,4,FALSE)","v":{"$error":"#N/A"}},{"$f":"VLOOKUP(L23,女子結果3日目!$A:$K,8,FALSE)","v":{"$error":"#N/A"}}]
[null,{"$f":"INDEX(女子結果1日目!A:A,(ROW()-1)*7-3)","v":0},{"$f":"VLOOKUP(B24,女子結果1日目!$A:$K,2,FALSE)&\"-\"&VLOOKUP(B24,女子結果1日目!$A:$K,10,FALSE)","v":{"$error":"#N/A"}},{"$f":"VLOOKUP(B24,女子結果1日目!$A:$K,4,FALSE)","v":{"$error":"#N/A"}},{"$f":"VLOOKUP(B24,女子結果1日目!$A:$K,8,FALSE)","v":{"$error":"#N/A"}},null,{"$f":"INDEX(女子結果2日目!A:A,(ROW()-1)*7-3)","v":0},{"$f":"VLOOKUP(G24,女子結果2日目!$A:$K,2,FALSE)&\"-\"&VLOOKUP(G24,女子結果2日目!$A:$K,10,FALSE)","v":{"$error":"#N/A"}},{"$f":"VLOOKUP(G24,女子結果2日目!$A:$K,4,FALSE)","v":{"$error":"#N/A"}},{"$f":"VLOOKUP(G24,女子結果2日目!$A:$K,8,FALSE)","v":{"$error":"#N/A"}},null,{"$f":"INDEX(女子結果3日目!A:A,(ROW()-1)*7-3)","v":0},{"$f":"VLOOKUP(L24,女子結果3日目!$A:$K,2,FALSE)&\"-\"&VLOOKUP(L24,女子結果3日目!$A:$K,10,FALSE)","v":{"$error":"#N/A"}},{"$f":"VLOOKUP(L24,女子結果3日目!$A:$K,4,FALSE)","v":{"$error":"#N/A"}},{"$f":"VLOOKUP(L24,女子結果3日目!$A:$K,8,FALSE)","v":{"$error":"#N/A"}}]
[null,{"$f":"INDEX(女子結果1日目!A:A,(ROW()-1)*7-3)","v":0},{"$f":"VLOOKUP(B25,女子結果1日目!$A:$K,2,FALSE)&\"-\"&VLOOKUP(B25,女子結果1日目!$A:$K,10,FALSE)","v":{"$error":"#N/A"}},{"$f":"VLOOKUP(B25,女子結果1日目!$A:$K,4,FALSE)","v":{"$error":"#N/A"}},{"$f":"VLOOKUP(B25,女子結果1日目!$A:$K,8,FALSE)","v":{"$error":"#N/A"}},null,{"$f":"INDEX(女子結果2日目!A:A,(ROW()-1)*7-3)","v":0},{"$f":"VLOOKUP(G25,女子結果2日目!$A:$K,2,FALSE)&\"-\"&VLOOKUP(G25,女子結果2日目!$A:$K,10,FALSE)","v":{"$error":"#N/A"}},{"$f":"VLOOKUP(G25,女子結果2日目!$A:$K,4,FALSE)","v":{"$error":"#N/A"}},{"$f":"VLOOKUP(G25,女子結果2日目!$A:$K,8,FALSE)","v":{"$error":"#N/A"}},null,{"$f":"INDEX(女子結果3日目!A:A,(ROW()-1)*7-3)","v":0},{"$f":"VLOOKUP(L25,女子結果3日目!$A:$K,2,FALSE)&\"-\"&VLOOKUP(L25,女子結果3日目!$A:$K,10,FALSE)","v":{"$error":"#N/A"}},{"$f":"VLOOKUP(L25,女子結果3日目!$A:$K,4,FALSE)","v":{"$error":"#N/A"}},{"$f":"VLOOKUP(L25,女子結果3日目!$A:$K,8,FALSE)","v":{"$error":"#N/A"}}]